Workbook

Sheet Описание
D11: Предлагаемая таблица налогового регистра, на основании которой заполняется шаблон налоговой отчетности в автоматическом режиме, составлена в соответствии с Правилами составления налоговой отчетности (декларации) по индивидуальному подоходному налогу (далее по тексту - ИПН) и социальному налогу по гражданам Республики Казахстан, утверждены приказом первого заместителя Премьер-Министра Минфина РК от 20 января 2020 года № 39 (с изменениями, внесенными приказом Министра финансов Республики Казахстан от 29.09.2022 года). Данные для заполнения налогового регистра принимаются из расчетных ведомостей по начислению заработной платы сотрудникам юридического лица и бухгалтерских справок по начислению прочих доходов физическим лицам, облагаемых ИПН. Данная форма призвана оказать Вам помощь при заполнении формы 200.00 и приложений 200.01, 200.05 за отчетный квартал 2023 года для юридического лица на общеустановленном режиме. В данном примере не рассмотрен вариант, когда есть работники нерезиденты, по которым необходимо заполнять приложение 200.02, также его необходимо учитывать отдельно, так как их доходы не должны попадать в приложение 200.05. В форме №200.00 Декларация вручную можно заполнять только "Залитые" зеленым цветом ячейки , все остальные данные заполняются автомотически из регистров. В регистрах нужно заполнять также, только "Залитые" зеленым цветом ячейки, все остальное считается автоматически. Регистры созданы из расчета 12 сотрудников, если количество сотрудников больше, то необходимо добавить дополнительные строки в каждом регистре и в каждый месяц, и протянуть формулы. Строчки "залитые" красным цветом ячейки не заполняются, читайте примечание в файле ворд (пример заполнения).
D15: Справочник
D16: МЗП = | E16: 70000 | G16: тенге
D17: 14 МРП | E17: =14*E26 -> 48300
D18: Доход для ОПВ max = | E18: =50*E16 -> 3500000 | G18: тенге
D19: ОПВ max = | E19: =E18*0.1 -> 350000 | G19: тенге
D20: Доход для СО max = | E20: =7*E16 -> 490000 | G20: тенге
D21: СО max = | E21: =E20*0.035 -> 17150 | G21: тенге
D22: Доход для ОСМС max = | E22: =E16*10 -> 700000
D23: Доход для ОСМС min = | E23: 0
D24: ОСМС max = | E24: =E22*3% -> 21000
D25: ОСМС min = | E25: 0
D26: Месячный расчетный показатель = | E26: 3450 | G26: тенге
A27: Кол-во наемных работников 1 мес.
A28: Кол-во наемных работников 2 мес.
A29: Кол-во наемных работников 3 мес.
A31: .

Sheet 200.00 200.01
A1: ■ | M1: ■
E2: ДЕКЛАРАЦИЯ ПО ИНДИВИДУАЛЬНОМУ ПОДОХОДНОМУ НАЛОГУ И СОЦИАЛЬНОМУ НАЛОГУ
L4: Форма 200.00 Стр.01
A5: Прочитайте Правила составления данной формы.
A6: ВНИМАНИЕ! Заполнять шариковой или перьевой ручкой, ЧЕРНЫМИ или СИНИМИ чернилами, ЗАГЛАВНЫМИ ПЕЧАТНЫМИ символами.
A8: Раздел. Общая информация о налогоплательщике
A10: 1 | C10: ИИН (БИН) | E10: 152152152
A12: 2 | C12: Налоговый период, за который представляется налоговая отчетность: квартал | J12: 2 | K12: год | M12: 2023
A14: 3 | C14: Наименование налогового агента/Ф.И.О. вкладчика (плательщика) | J14: ТОО ggggggg
A16: 4 | C16: Вид декларации (укажите Х в соответствующей ячейке):
A19: 5 | C19: Номер и дата уведомления (заполняется в случае представления дополнительной декларации по уведомлению):
B21: A | C21: номер
B23: B | C23: дата
A25: 6 | C25: Категория налогоплательщика (укажите Х в соответствующей ячейке):
B27: A | C27: доверительный управляющий в соответствии со статьей 40 Налогового кодекса
B29: B | C29: налогоплательщик, применяющий специальный налоговый режим для производства сельскохозяйственной продукции и сельскохозяйственных кооперативов в соответствии со статьей 355 Налогового кодекса
B31: C | C31: учредитель доверительного управления в соответствии со статьей 40 Налогового кодекса
B33: D | C33: налогоплательщик, применяющий специальный налоговый режим на основе патента
B35: E | C35: налогоплательщик, применяющий специальный налоговый режим с использованием фиксированного вычета
B37: F | C37: плательщик единого платежа в соответствии со статьей 776-1 Налогового кодекса
A39: 7 | C39: Участник МФЦА в соответствии с Конституционным законом РК "О МФЦА"
A41: 8 | C41: Код валюты | E41: KZT
A43: 9 | C43: Признак резидентства | F43: A | G43: резидент | J43: B | K43: нерезидент
A45: 10 | C45: Численность работников (человек): | F45: 1 мес. | I45: 2 мес. | K45: 3 мес.
C47: в том числе иностранцев и лиц без гражданства | F47: 1 мес. | I47: 2 мес. | K47: 3 мес.
A49: 11 | C49: Наличие структурных подразделений (укажите Х в соответствующей ячейке): | H49: 2 | I49: да | K49: нет
A51: 12 | B51: Представленные приложения (укажите Х в соответствующей ячейке):
A53: 13 | C53: Количество приложений 200.03 | H53: 14 | J53: Количество приложений 200.04
A55: 15 | C55: Количество приложений 200.06
H56: 4
A57: Раздел. Расчетные показатели
A58: Код строки | D58: Наименование показателей | M58: ПРОВЕРКА, ДОЛЖНО БЫТЬ 0
B59: 200.00.001 | D59: Сумма индивидуального подоходного налога, подлежащего уплате в бюджет
C60: 1 мес. | D60: I | E60: =РегистрИПН!R14+ДоговораГПХ!AA8+регистр200.02!AM8 -> 115065.476 | G60: Итого за отчетный квартал | J60: IV | K60: =E60+E62+E64 -> 378105.2057 | L60: =регистр200.02!AM45+регистр200.05!T34 -> 378105.2057 | M60: =K60-L60 -> 0
C62: 2 мес. | D62: II | E62: =РегистрИПН!R27+ДоговораГПХ!AA21+регистр200.02!AM13 -> 118540
C64: 3 мес. | D64: III | E64: =РегистрИПН!R40+ДоговораГПХ!AA34+регистр200.02!AM18 -> 144499.7296
B66: 200.00.002 | D66: Сумма обязательных пенсионных взносов, подлежащих перечислению
C67: 1 мес. | D67: I | E67: =РегистрОПВ!N13+ДоговораГПХ!M8+регистр200.02!AV8 -> 114571.2139 | G67: Итого за отчетный квартал | J67: IV | K67: =E67+E69+E71 -> 347642.8035 | L67: =регистр200.02!AV45+регистр200.05!U34 -> 347642.8035 | M67: =K67-L67 -> 0
C69: 2 мес. | D69: II | E69: =РегистрОПВ!N26+ДоговораГПХ!M21+регистр200.02!AV13 -> 116714.3931
C71: 3 мес. | D71: III | E71: =РегистрОПВ!N39+ДоговораГПХ!M34+регистр200.02!AV18 -> 116357.1965
B73: 200.00.003 | D73: Сумма обязательных профессиональных пенсионных взносов, подлежащих перечислению за работников
C74: 1 мес. | D74: I | G74: 3 мес. | J74: III
C76: 2 мес. | D76: II | G76: Итого за отчетный квартал | J76: IV | K76: =K74+E76+E74 -> 0
B79: 200.00.004 | D79: Сумма обязательных пенсионных взносов, подлежащих перечислению в свою пользу
C80: 1 мес. | D80: I | G80: 3 мес. | J80: III
C82: 2 мес. | D82: II | G82: Итого за отчетный квартал | J82: IV | K82: =K80+E82+E80 -> 0
B84: 200.00.005 | D84: Сумма социального налога, подлежащего уплате в бюджет с применением ставок, установленных п. 1 ст.485 Налогового кодекса
C85: 1 мес. | D85: I | E85: =РегистрСН!K14+регистр200.02!AT8 -> 102536 | G85: 3 мес. | J85: III | K85: =РегистрСН!K40+регистр200.02!AT18 -> 102536
C87: 2 мес. | D87: II | E87: =РегистрСН!K27+регистр200.02!AT13 -> 102536 | G87: Итого за отчетный квартал | J87: IV | K87: =E85+E87+K85 -> 307608 | L87: =регистр200.02!AT45+регистр200.05!AA34 -> 307608 | M87: =K87-L87 -> 0
B89: 200.00.006 | D89: Сумма социального налога по юридическому лицу с учетом особенности, установленной ст.700 Налогового кодекса
C90: 1 мес. | D90: I | G90: 3 мес. | J90: III
C92: 2 мес. | D92: II | G92: Итого за отчетный квартал | J92: IV | K92: 0
B94: 200.00.007 | D94: Сумма социального налога, подлежащего уплате в бюджет с применением ставок, установленных п. 2 ст. 485 Налогового кодекса
C95: 1 мес. | D95: I | G95: 3 мес. | J95: III
C97: 2 мес. | D97: II | G97: Итого за отчетный квартал | J97: IV | K97: =E95+E97+K95 -> 0
B99: 200.00.008 | D99: Сумма социальных отчислений с доходов работников
C100: 1 мес. | D100: I | E100: ='РегистрСО ОСМС'!I14+регистр200.02!AS8 -> 40040 | G100: 3 мес. | J100: III | K100: ='РегистрСО ОСМС'!I40+регистр200.02!AS18 -> 40040
C102: 2 мес. | D102: II | E102: ='РегистрСО ОСМС'!I27+регистр200.02!AS13 -> 40040 | G102: Итого за отчетный квартал | J102: IV | K102: =K100+E102+E100 -> 120120 | L102: =регистр200.02!AS45+регистр200.05!Z34 -> 120120 | M102: =K102-L102 -> 0
B104: 200.00.009 | D104: Сумма социальных отчислений в свою пользу
C105: 1 мес. | D105: I | G105: 3 мес. | J105: III
C107: 2 мес. | D107: II | G107: Итого за отчетный квартал | J107: IV | K107: =K105+E107+E105 -> 0
B110: 200.00.010 | D110: Сумма отчислений на обязательное социальное медицинское страхование
C111: 1 мес. | E111: ='РегистрСО ОСМС'!O14+регистр200.02!BA8 -> 34800 | G111: 3 мес. | K111: ='РегистрСО ОСМС'!O40+регистр200.02!BA18 -> 34800
C113: 2 мес. | E113: ='РегистрСО ОСМС'!O27+регистр200.02!BA13 -> 34800 | G113: Итого за отчетный квартал | K113: =K111+E113+E111 -> 104400 | L113: =регистр200.02!BA45+регистр200.05!AC34 -> 104400 | M113: =K113-L113 -> 0
B116: 200.00.011 | D116: Сумма взносов на обязательное социальное медицинское страхование
C117: 1 мес. | E117: =РегистрОПВ!T13+ДоговораГПХ!AG8+регистр200.02!Z8 -> 23200 | G117: 3 мес. | K117: =РегистрОПВ!T39+ДоговораГПХ!AG34+регистр200.02!Z18 -> 23200
C119: 2 мес. | E119: =РегистрОПВ!T26+ДоговораГПХ!AG21+регистр200.02!Z13 -> 23200 | G119: Итого за отчетный квартал | K119: =K117+E119+E117 -> 69600 | L119: =регистр200.02!Z45+регистр200.05!L34 -> 69600 | M119: =K119-L119 -> 0
B122: 200.00.012 | D122: Сумма взносов на обязательное социальное медицинское страхование в свою пользу
C123: 1 мес. | G123: 3 мес.
C125: 2 мес. | G125: Итого за отчетный квартал | K125: =K123+E125+E123 -> 0
B127: 200.00.013 | D127: Сумма обязательных пенсионных взносов работодателя
C128: 1 мес. | E128: =РегистрОПВ!U13 -> 0 | G128: 3 мес. | K128: =РегистрОПВ!U39 -> 0
C130: 2 мес. | E130: =РегистрОПВ!U26 -> 0 | G130: Итого за отчетный квартал | K130: =K128+E130+E128 -> 0
B132: 200.00.014 | D132: Сумма единого платежа с доходов работников, подлежащих перечислению
C133: 1 мес. | E133: =ЕП!Y13 -> 0 | G133: 3 мес. | K133: =ЕП!Y39 -> 0
C135: 2 мес. | E135: =ЕП!Y26 -> 0 | G135: Итого за отчетный квартал | K135: =K133+E135+E133 -> 0
A137: ИСЧИСЛЕНИЕ ИНДИВИДУАЛЬНОГО ПОДОХОДНОГО НАЛОГА И СОЦИАЛЬНОГО НАЛОГА, ОБЯЗАТЕЛЬНЫХ ПЕНСИОННЫХ ВЗНОСОВ, ОБЯЗАТЕЛЬНЫХ ПРОФЕССИОНАЛЬНЫХ ПЕНСИОННЫХ ВЗНОСОВ, СОЦИАЛЬНЫХ ОТЧИСЛЕНИЙ, ОТЧИСЛЕНИЙ И (ИЛИ) ВЗНОСОВ НА ОБЯЗАТЕЛЬНОЕ СОЦИАЛЬНОЕ МЕДИЦИНСКОЕ СТРАХОВАНИЕ (Приложение 1 к Декларации) Форма 200.01 Стр. 01
A139: Раздел. Индивидуальный подоходный налог
A140: Код строки | D140: Наименование показателей
B141: 200.01.001 | D141: Начисленные доходы
C142: 1 мес. | D142: I | E142: =РегистрИПН!D14+ДоговораГПХ!D8+регистр200.02!O8 -> 1640000 | G142: Итого за отчетный квартал | J142: IV | K142: =E146+E144+E142 -> 5170000
C144: 2 мес. | D144: II | E144: =РегистрИПН!D27+ДоговораГПХ!D21+регистр200.02!O13 -> 1890000
C146: 3 мес. | D146: III | E146: =РегистрИПН!D40+ДоговораГПХ!D34+регистр200.02!O18 -> 1640000
D147: в том числе за отчетный квартал:
D148: A | E148: доходы работников | K148: =РегистрОПВ!E53+регистр200.02!O19 -> 4920000
D150: B | E150: дивиденды
D152: C | E152: выигрыши
D154: D | E154: вознаграждения
D156: E | E156: доходы ФЛ по договорам ГПХ | K156: =ДоговораГПХ!D47 -> 250000
B158: 200.01.002 | C158: Доходы работников, освобожденных от налогообложения в рамках МФЦА
B160: 200.01.003 | D160: Сумма индивидуального подоходного налога, исчисленного с начисленных доходов
C161: 1 мес. | D161: I | E161: =РегистрИПН!Q14+ДоговораГПХ!T8+регистр200.02!AF8 -> 115930 | G161: 3 мес. | J161: III | K161: =РегистрИПН!J40+ДоговораГПХ!T34+регистр200.02!AF18 -> 115930
C163: 2 мес. | D163: II | E163: =РегистрИПН!Q27+ДоговораГПХ!T21+регистр200.02!AF13 -> 140930 | G163: Итого за отчетный квартал | J163: IV | K163: =K161+E163+E161 -> 372790
B165: 200.01.004 | D165: Задолженность по доходам, невыплаченным физическим лицам | K165: =РегистрИПН!N54+ДоговораГПХ!W34+регистр200.02!AJ18 -> 1204870
B167: 200.01.005 | D167: Индивидуальный подоходный налог по доходам, начисленным, но не выплаченным на начало отчетного квартала | K167: =РегистрИПН!P54+ДоговораГПХ!Y8+регистр200.02!AL8 -> 96480
B169: 200.01.006 | D169: Индивидуальный подоходный налог по доходам, начисленным, но не выплаченным на конец отчетного квартала | K169: =РегистрИПН!S54+ДоговораГПХ!AB34+регистр200.02!AL18+регистр200.02!AF18-регистр200.02!AM18 -> 99499.72963
B171: 200.01.007 | D171: Выплачено доходов
C172: 1 мес. | D172: I | E172: =РегистрИПН!M14+ДоговораГПХ!V8+регистр200.02!AI8 -> 1381970 | G172: 3 мес. | J172: III | K172: =РегистрИПН!M40+ДоговораГПХ!V34+регистр200.02!AI18 -> 1609870
C174: 2 мес. | D174: II | E174: =РегистрИПН!M27+ДоговораГПХ!V21+регистр200.02!AI13 -> 1384870 | G174: Итого за отчетный квартал | J174: IV | K174: =K172+E174+E172 -> 4376710
B176: 200.01.008 | D176: Облагаемый доход
C177: 1 мес. | D177: I | E177: =РегистрИПН!I14+ДоговораГПХ!S8+регистр200.02!AE8 -> 1159300 | G177: 3 мес. | J177: III | K177: =РегистрИПН!I40+ДоговораГПХ!S34+регистр200.02!AE18 -> 1159300
C179: 2 мес. | D179: II | E179: =РегистрИПН!I27+ДоговораГПХ!S21+регистр200.02!AE13 -> 1409300 | G179: Итого за отчетный квартал | J179: IV | K179: =K177+E179+E177 -> 3727900
A181: Раздел. Обязательные пенсионные взносы, обязательные профессиональные пенсионные взносы
B183: 200.01.009 | D183: Начисленные доходы, с которых удерживаются (начисляются) обязательные пенсионные взносы
C184: 1 мес. | D184: I | E184: =РегистрОПВ!H13+ДоговораГПХ!G8+регистр200.02!Y8*10 -> 1160000 | G184: 3 мес. | J184: III | K184: =РегистрОПВ!H39+ДоговораГПХ!G34+регистр200.02!Y18*10 -> 1160000
C186: 2 мес. | D186: II | E186: =РегистрОПВ!H26+ДоговораГПХ!G21+регистр200.02!Y13*10 -> 1160000 | G186: Итого за отчетный квартал | J186: IV | K186: =K184+E186+E184 -> 3480000
B188: 200.01.010 | D188: Начисленные доходы, с которых удерживаются (начисляются) обязательные профессиональные пенсионные взносы
C189: 1 мес. | D189: I | G189: 3 мес. | J189: III
C191: 2 мес. | D191: II | G191: Итого за отчетный квартал | J191: IV | K191: =K189+E191+E189 -> 0
B193: 200.01.011 | D193: Начисленные доходы, с которых исчисляются (начисляются) обязательные пенсионные взносы работодателя
C194: 1 мес. | D194: I | G194: 3 мес. | J194: III | N194: С 2024 года
C196: 2 мес. | D196: II | G196: Итого за отчетный квартал | J196: IV | K196: =K194+E196+E194 -> 0
B198: 200.01.012 | D198: Заявленный доход в свою пользу
C199: 1 мес. | D199: I | G199: 3 мес. | J199: III
C201: 2 мес. | D201: II | G201: Итого за отчетный квартал | J201: IV | K201: =E199+E201+K199 -> 0
A203: Раздел. Численность и расходы по оплате труда работников-лиц с инвалидностью
B205: 200.01.013 | D205: Численность работников-лиц с инвалидностью
C206: 1 мес. | D206: I | E206: 0 | G206: 2мес. | H206: II | I206: 0 | K206: 3 мес. | L206: III | M206: 0
B208: 200.01.014 | D208: Удельный вес численности работников-лиц с инвалидностьюв общей численности работников, %
C209: 1 мес. | D209: I | E209: 0 | G209: 2мес. | H209: II | I209: 0 | K209: 3 мес. | L209: III | M209: 0
B211: 200.01.015 | D211: Удельный вес расходов по оплате труда работников-лиц с инвалидностью в общих расходах по оплате труда, %
C212: 1 мес. | D212: I | E212: 0 | G212: 2мес. | H212: II | I212: 0 | K212: 3 мес. | L212: III | M212: 0
A214: Раздел. Социальный налог с применением ставок, установленных п.1 ст. 485 Налогового кодекса
B216: 200.01.016 | D216: Доходы работника, облагаемые социальным налогом
C217: 1 мес. | D217: I | E217: =РегистрСН!H14+регистр200.02!AO8 -> 1500800 | G217: Итого за отчетный квартал | J217: IV | K217: =E221+E219+E217 -> 4502400
C219: 2 мес. | D219: II | E219: =РегистрСН!H27+регистр200.02!AO13 -> 1500800
C221: 3 мес. | D221: III | E221: =РегистрСН!H40+регистр200.02!AO18 -> 1500800
A223: Раздел. Социальные отчисления
B225: 200.01.017 | D225: Доходы физических лиц, с которых исчисляются социальные отчисления
C226: 1 мес. | D226: I | E226: ='РегистрСО ОСМС'!H14+регистр200.02!AR8 -> 1144000 | G226: Итого за отчетный квартал | J226: IV | K226: =E230+E228+E226 -> 3432000
C228: 2 мес. | D228: II | E228: ='РегистрСО ОСМС'!H27+регистр200.02!AR13 -> 1144000
C230: 3 мес. | D230: III | E230: ='РегистрСО ОСМС'!H40+регистр200.02!AR18 -> 1144000
B232: 200.01.018 | D232: Доход, с которого исчисляются социальные отчисления в свою пользу
C233: 1 мес. | D233: I | G233: Итого за отчетный квартал | J233: IV | K233: =E237+E235+E233 -> 0 | N233: для ИП
C235: 2 мес. | D235: II
C237: 3 мес. | D237: III
A240: Раздел. Отчисления и взносы на обязательное социальное медицинское страхование
B242: 200.01.019 | D242: Доходы, с которых исчисляются отчисления на обязательное социальное медицинское страхование
C243: 1 мес. | D243: I | E243: ='РегистрСО ОСМС'!N14+регистр200.02!AZ8 -> 1160000 | G243: Итого за отчетный квартал | J243: IV | K243: =E247+E245+E243 -> 3480000
C245: 2 мес. | D245: II | E245: ='РегистрСО ОСМС'!N27+регистр200.02!AZ13 -> 1160000
C247: 3 мес. | D247: III | E247: ='РегистрСО ОСМС'!N40+регистр200.02!AZ18 -> 1160000
B250: 200.01.020 | D250: Доходы, с которых исчисляются взносы на обязательное социальное медицинское страхование
C251: 1 мес. | D251: I | E251: =РегистрОПВ!S13+ДоговораГПХ!AF8+регистр200.02!Z8/0.02 -> 1160000 | G251: Итого за отчетный квартал | J251: IV | K251: =E255+E253+E251 -> 3480000
C253: 2 мес. | D253: II | E253: =РегистрОПВ!S26+ДоговораГПХ!AF21+регистр200.02!Z13/0.02 -> 1160000
C255: 3 мес. | D255: III | E255: =РегистрОПВ!S39+ДоговораГПХ!AF34+регистр200.02!Z18/0.02 -> 1160000
B258: 200.01.021 | D258: Доходы, с которых исчисляются взносы на обязательное социальное медицинское страхование в свою пользу
C259: 1 мес. | D259: I | G259: Итого за отчетный квартал | J259: IV | K259: =E263+E261+E259 -> 0 | N259: для ИП
C261: 2 мес. | D261: II
C263: 3 мес. | D263: III

Sheet РегистрОПВ
A1: 1. | B1: РНН
A2: 2. | B2: ИИН/БИН | C2: ='200.00 200.01'!E10 -> 152152152
B3: (при их наличии)
A4: 3. | B4: Ф.И.О. или наименование налогоплательщика | D4: ='200.00 200.01'!J14 -> ТОО ggggggg
A5: 4. | B5: Налоговый период (квартал) | G5: квартал | H5: ='200.00 200.01'!J12 -> 2 | I5: год | J5: ='200.00 200.01'!M12 -> 2023
B7: Начисленные доходы для исчисления обязательных пенсионных взносов
L8: (тенге)
A9: № | B9: Ф.И.О. сотрудника | C9: Должность сотрудника | D9: Сумма задолженности по ОПВ на начало месяца | E9: Доход сотрудника за отчетный период | F9: Пенсионер (если да, то нужно поставить 1) | G9: Доход сотрудника с которого не удерживаются ОПВ | H9: Доход сотрудника с которого удерживаются ОПВ | I9: Сумма исчисленного ОПВ | J9: Предел в размере 75-кратного МЗП | K9: Сумма ОПВ, с предельной суммы дохода | L9: Сумма исчисленных обязательных пенсионных взносов в ЕНПФ | M9: Удельный вес выплаченных доходов к доходам, причитающимся к выплате | N9: Сумма ОПВ в НПФ, подлежащая перечислению за работников | O9: Сумма задолженности по ОПВ на конец месяца | P9: Доходы, с которых не удерживаются взносы ОСМС | Q9: Доходы, с которых удерживаются взносы ОСМС | R9: Максимальный доход для взносов ОСМС | S9: Доходы, с которых исчисляются взносы на ОСМС | T9: Взносы ОСМС | U9: ОПВ работодателя, исчисленные
B10: 1 | C10: 2 | D10: 3 | E10: 4 | F10: 5 | G10: 6 | H10: 7 | I10: 8 | J10: 9 | K10: 10 | L10: 11 | M10: 12 | N10: 13 | O10: 14 | P10: 15 | Q10: 16 | R10: 17 | S10: 18 | T10: 19 | U10: 20
D11: переносится с предыдущего периода | H11: гр.3+гр.4-гр.6 | I11: гр.7х10% | J11: 50хМЗП | K11: гр.9х 10% | L11: наименьшая из гр.8 или гр. 10 | O11: гр.3+гр.11-гр.13 | Q11: гр.4-гр.15 | R11: 10МЗП | S11: min гр.16/гр.17 | T11: гр.18*2% | U11: гр.7*0%
B12: ставки | I12: 0.1 | K12: 0.1
B13: 1 месяц квартала | D13: =SUM(D14:D25) -> 116000 | E13: 1440000 | G13: 100000 | H13: 1160000 | I13: 116000 | L13: 116000 | M13: 2.982012236 | N13: 114571.2139 | O13: =SUM(O14:O25) -> 117428.7861 | P13: 280000 | Q13: 1160000 | R13: 8400000 | S13: 1160000 | T13: 23200 | U13: =SUM(U14:U25) -> 0
A14: 1 | B14: Первый | D14: 35000 | E14: 350000 | H14: =IF(F14=1,0,E14-G14) -> 350000 | I14: =H14*$I$12 -> 35000 | J14: =50*Описание!E$16 -> 3500000 | K14: =J14*K$12 -> 350000 | L14: =IF(K14<I14,K14,I14) -> 35000 | M14: =РегистрИПН!O15 -> 0.4683737583 | N14: =IF(РегистрИПН!N15<=0,(D14+L14),(D14+L14)*M14) -> 32786.16308 | O14: =D14+L14-N14 -> 37213.83692 | Q14: =E14-P14 -> 350000 | R14: =10*Описание!E$16 -> 700000 | S14: =IF(Q14<R14,Q14,R14) -> 350000 | T14: =S14*2% -> 7000 | U14: =H14*0% -> 0
A15: 2 | B15: Второй | D15: 30000 | E15: 300000 | H15: =IF(F15=1,0,E15-G15) -> 300000 | I15: =H15*$I$12 -> 30000 | J15: =50*Описание!E$16 -> 3500000 | K15: =J15*K$12 -> 350000 | L15: =IF(K15<I15,K15,I15) -> 30000 | M15: =РегистрИПН!O16 -> 0.5049215814 | N15: =IF(РегистрИПН!N16<=0,(D15+L15),(D15+L15)*M15) -> 30295.29489 | O15: =D15+L15-N15 -> 29704.70511 | Q15: =E15-P15 -> 300000 | R15: =10*Описание!E$16 -> 700000 | S15: =IF(Q15<R15,Q15,R15) -> 300000 | T15: =S15*2% -> 6000 | U15: 0
A16: 3 | B16: Третий | D16: 28000 | E16: 280000 | H16: =IF(F16=1,0,E16-G16) -> 280000 | I16: =H16*$I$12 -> 28000 | J16: =50*Описание!E$16 -> 3500000 | K16: =J16*K$12 -> 350000 | L16: 28000 | M16: =РегистрИПН!O17 -> 0.5048728258 | N16: =IF(РегистрИПН!N17<=0,(D16+L16),(D16+L16)*M16) -> 28272.87824 | O16: 27727.12176 | Q16: 280000 | R16: =10*Описание!E$16 -> 700000 | S16: 280000 | T16: =S16*2% -> 5600 | U16: 0
A17: 4 | B17: Четвертый | D17: 23000 | E17: 230000 | H17: 230000 | I17: 23000 | J17: =50*Описание!E$16 -> 3500000 | K17: 350000 | L17: 23000 | M17: =РегистрИПН!O18 -> 0.5047147322 | N17: =IF(РегистрИПН!N18<=0,(D17+L17),(D17+L17)*M17) -> 23216.87768 | O17: 22783.12232 | Q17: 230000 | R17: =10*Описание!E$16 -> 700000 | S17: 230000 | T17: 4600 | U17: 0
A18: 5 | B18: Пятый | E18: 180000 | F18: 1 | H18: =IF(F18=1,0,E18-G18) -> 0 | I18: 0 | J18: =50*Описание!E$16 -> 3500000 | K18: 350000 | L18: 0 | M18: =РегистрИПН!O19 -> 0.4991293383 | N18: =IF(РегистрИПН!N19<=0,(D18+L18),(D18+L18)*M18) -> 0 | O18: 0 | P18: 180000 | Q18: =E18-P18 -> 0 | R18: =10*Описание!E$16 -> 700000 | S18: 0 | T18: 0 | U18: 0
A19: 6 | B19: Шестой | E19: 100000 | G19: 100000 | H19: 0 | I19: 0 | J19: =50*Описание!E$16 -> 3500000 | K19: 350000 | L19: 0 | M19: =РегистрИПН!O20 -> 0.5 | N19: =IF(РегистрИПН!N20<=0,(D19+L19),(D19+L19)*M19) -> 0 | O19: 0 | P19: 100000 | Q19: 0 | R19: =10*Описание!E$16 -> 700000 | S19: 0 | T19: 0 | U19: 0
A20: 7 | H20: =IF(F20=1,0,E20-G20) -> 0 | I20: 0 | J20: =50*Описание!E$16 -> 3500000 | K20: 350000 | L20: 0 | M20: =РегистрИПН!O21 -> 0 | N20: =IF(РегистрИПН!N21<=0,(D20+L20),(D20+L20)*M20) -> 0 | O20: 0 | Q20: 0 | R20: =10*Описание!E$16 -> 700000 | S20: 0 | T20: 0 | U20: 0
A21: 8 | H21: 0 | I21: 0 | J21: =50*Описание!E$16 -> 3500000 | K21: 350000 | L21: 0 | M21: =РегистрИПН!O22 -> 0 | N21: =IF(РегистрИПН!N22<=0,(D21+L21),(D21+L21)*M21) -> 0 | O21: 0 | Q21: 0 | R21: =10*Описание!E$16 -> 700000 | S21: 0 | T21: 0 | U21: 0
A22: 9 | H22: 0 | I22: 0 | J22: =50*Описание!E$16 -> 3500000 | K22: 350000 | L22: 0 | M22: =РегистрИПН!O23 -> 0 | N22: =IF(РегистрИПН!N23<=0,(D22+L22),(D22+L22)*M22) -> 0 | O22: 0 | Q22: 0 | R22: =10*Описание!E$16 -> 700000 | S22: 0 | T22: 0 | U22: 0
A23: 10 | H23: 0 | I23: 0 | J23: =50*Описание!E$16 -> 3500000 | K23: 350000 | L23: 0 | M23: =РегистрИПН!O24 -> 0 | N23: =IF(РегистрИПН!N24<=0,(D23+L23),(D23+L23)*M23) -> 0 | O23: 0 | Q23: 0 | R23: =10*Описание!E$16 -> 700000 | S23: 0 | T23: 0 | U23: 0
A24: 11 | H24: 0 | I24: 0 | J24: =50*Описание!E$16 -> 3500000 | K24: 350000 | L24: 0 | M24: =РегистрИПН!O25 -> 0 | N24: =IF(РегистрИПН!N25<=0,(D24+L24),(D24+L24)*M24) -> 0 | O24: 0 | Q24: 0 | R24: =10*Описание!E$16 -> 700000 | S24: 0 | T24: 0 | U24: 0
A25: 12 | H25: 0 | I25: 0 | J25: =50*Описание!E$16 -> 3500000 | K25: 350000 | L25: 0 | M25: =РегистрИПН!O26 -> 0 | N25: =IF(РегистрИПН!N26<=0,(D25+L25),(D25+L25)*M25) -> 0 | O25: 0 | Q25: 0 | R25: =10*Описание!E$16 -> 700000 | S25: 0 | T25: 0 | U25: 0
B26: 2 месяц квартала | D26: =SUM(D27:D38) -> 117428.7861 | E26: 1440000 | G26: 100000 | H26: 1160000 | I26: 116000 | L26: 116000 | M26: 3 | N26: 116714.3931 | O26: 116714.3931 | P26: 280000 | Q26: 1160000 | R26: 8400000 | S26: 1160000 | T26: 23200 | U26: =SUM(U27:U38) -> 0
A27: 1 | B27: Первый | D27: 37213.83692 | E27: 350000 | H27: =IF(F27=1,0,E27-G27) -> 350000 | I27: =H27*$I$12 -> 35000 | J27: =50*Описание!E$16 -> 3500000 | K27: =J27*K$12 -> 350000 | L27: =IF(K27<I27,K27,I27) -> 35000 | M27: =РегистрИПН!O28 -> 0.5 | N27: =IF(РегистрИПН!N28<=0,(D27+L27),(D27+L27)*M27) -> 36106.91846 | O27: =D27+L27-N27 -> 36106.91846 | Q27: =E27-P27 -> 350000 | R27: =10*Описание!E$16 -> 700000 | S27: =IF(Q27<R27,Q27,R27) -> 350000 | T27: =S27*2% -> 7000 | U27: =H27*0% -> 0
A28: 2 | B28: Второй | D28: 29704.70511 | E28: 300000 | H28: =IF(F28=1,0,E28-G28) -> 300000 | I28: =H28*$I$12 -> 30000 | J28: =50*Описание!E$16 -> 3500000 | K28: =J28*K$12 -> 350000 | L28: =IF(K28<I28,K28,I28) -> 30000 | M28: =РегистрИПН!O29 -> 0.5 | N28: =IF(РегистрИПН!N29<=0,(D28+L28),(D28+L28)*M28) -> 29852.35256 | O28: 29852.35256 | Q28: =E28-P28 -> 300000 | R28: =10*Описание!E$16 -> 700000 | S28: =IF(Q28<R28,Q28,R28) -> 300000 | T28: =S28*2% -> 6000 | U28: 0
A29: 3 | B29: Третий | D29: 27727.12176 | E29: 280000 | H29: =IF(F29=1,0,E29-G29) -> 280000 | I29: 28000 | J29: =50*Описание!E$16 -> 3500000 | K29: 350000 | L29: =IF(K29<I29,K29,I29) -> 28000 | M29: =РегистрИПН!O30 -> 0.5 | N29: =IF(РегистрИПН!N30<=0,(D29+L29),(D29+L29)*M29) -> 27863.56088 | O29: =D29+L29-N29 -> 27863.56088 | Q29: 280000 | R29: =10*Описание!E$16 -> 700000 | S29: 280000 | T29: 5600 | U29: 0
A30: 4 | B30: Четвертый | D30: 22783.12232 | E30: 230000 | H30: 230000 | I30: 23000 | J30: =50*Описание!E$16 -> 3500000 | K30: 350000 | L30: 23000 | M30: =РегистрИПН!O31 -> 0.5 | N30: =IF(РегистрИПН!N31<=0,(D30+L30),(D30+L30)*M30) -> 22891.56116 | O30: 22891.56116 | Q30: 230000 | R30: =10*Описание!E$16 -> 700000 | S30: =IF(Q30<R30,Q30,R30) -> 230000 | T30: 4600 | U30: 0
A31: 5 | B31: Пятый | E31: 180000 | F31: 1 | H31: 0 | I31: 0 | J31: =50*Описание!E$16 -> 3500000 | K31: 350000 | L31: 0 | M31: =РегистрИПН!O32 -> 0.5 | N31: =IF(РегистрИПН!N32<=0,(D31+L31),(D31+L31)*M31) -> 0 | O31: 0 | P31: 180000 | Q31: =E31-P31 -> 0 | R31: =10*Описание!E$16 -> 700000 | S31: 0 | T31: 0 | U31: 0
A32: 6 | B32: Шестой | E32: 100000 | G32: 100000 | H32: 0 | I32: =H32*$I$12 -> 0 | J32: =50*Описание!E$16 -> 3500000 | K32: 350000 | L32: 0 | M32: =РегистрИПН!O33 -> 0.5 | N32: =IF(РегистрИПН!N33<=0,(D32+L32),(D32+L32)*M32) -> 0 | O32: 0 | P32: 100000 | Q32: 0 | R32: =10*Описание!E$16 -> 700000 | S32: 0 | T32: 0 | U32: 0
A33: 7 | H33: 0 | I33: 0 | J33: =50*Описание!E$16 -> 3500000 | K33: 350000 | L33: 0 | M33: =РегистрИПН!O34 -> 0 | N33: =IF(РегистрИПН!N34<=0,(D33+L33),(D33+L33)*M33) -> 0 | O33: 0 | Q33: 0 | R33: =10*Описание!E$16 -> 700000 | S33: 0 | T33: 0 | U33: 0
A34: 8 | H34: 0 | I34: 0 | J34: =50*Описание!E$16 -> 3500000 | K34: 350000 | L34: 0 | M34: =РегистрИПН!O35 -> 0 | N34: =IF(РегистрИПН!N35<=0,(D34+L34),(D34+L34)*M34) -> 0 | O34: 0 | Q34: 0 | R34: =10*Описание!E$16 -> 700000 | S34: 0 | T34: 0 | U34: 0
A35: 9 | H35: 0 | I35: 0 | J35: =50*Описание!E$16 -> 3500000 | K35: 350000 | L35: 0 | M35: =РегистрИПН!O36 -> 0 | N35: =IF(РегистрИПН!N36<=0,(D35+L35),(D35+L35)*M35) -> 0 | O35: 0 | Q35: 0 | R35: =10*Описание!E$16 -> 700000 | S35: 0 | T35: 0 | U35: 0
A36: 10 | H36: 0 | I36: 0 | J36: =50*Описание!E$16 -> 3500000 | K36: 350000 | L36: 0 | M36: =РегистрИПН!O37 -> 0 | N36: =IF(РегистрИПН!N37<=0,(D36+L36),(D36+L36)*M36) -> 0 | O36: 0 | Q36: 0 | R36: =10*Описание!E$16 -> 700000 | S36: 0 | T36: 0 | U36: 0
A37: 11 | H37: 0 | I37: 0 | J37: =50*Описание!E$16 -> 3500000 | K37: 350000 | L37: 0 | M37: =РегистрИПН!O38 -> 0 | N37: =IF(РегистрИПН!N38<=0,(D37+L37),(D37+L37)*M37) -> 0 | O37: 0 | Q37: 0 | R37: =10*Описание!E$16 -> 700000 | S37: 0 | T37: 0 | U37: 0
A38: 12 | H38: 0 | I38: 0 | J38: =50*Описание!E$16 -> 3500000 | K38: 350000 | L38: 0 | M38: =РегистрИПН!O39 -> 0 | N38: =IF(РегистрИПН!N39<=0,(D38+L38),(D38+L38)*M38) -> 0 | O38: 0 | Q38: 0 | R38: =10*Описание!E$16 -> 700000 | S38: 0 | T38: 0 | U38: 0
B39: 3 месяц квартала | D39: =SUM(D40:D52) -> 116714.3931 | E39: =SUM(E40:E52) -> 1440000 | G39: 100000 | H39: 1160000 | I39: 116000 | L39: 116000 | M39: 3 | N39: 116357.1965 | O39: 116357.1965 | P39: 280000 | Q39: =SUM(Q40:Q52) -> 1160000 | R39: =SUM(R40:R52) -> 9100000 | S39: =SUM(S40:S52) -> 1160000 | T39: 23200 | U39: =SUM(U40:U52) -> 0
A40: 1 | B40: Первый | D40: 36106.91846 | E40: 350000 | H40: =IF(F40=1,0,E40-G40) -> 350000 | I40: =H40*$I$12 -> 35000 | J40: =50*Описание!E$16 -> 3500000 | K40: =J40*K$12 -> 350000 | L40: 35000 | M40: =РегистрИПН!O41 -> 0.5 | N40: =IF(РегистрИПН!N41<=0,(D40+L40),(D40+L40)*M40) -> 35553.45923 | O40: =D40+L40-N40 -> 35553.45923 | Q40: =E40-P40 -> 350000 | R40: =10*Описание!E$16 -> 700000 | S40: =IF(Q40<R40,Q40,R40) -> 350000 | T40: =S40*2% -> 7000 | U40: =H40*0% -> 0
A41: 2 | B41: Второй | D41: 29852.35256 | E41: 300000 | H41: =IF(F41=1,0,E41-G41) -> 300000 | I41: =H41*$I$12 -> 30000 | J41: =50*Описание!E$16 -> 3500000 | K41: =J41*K$12 -> 350000 | L41: =IF(K41<I41,K41,I41) -> 30000 | M41: =РегистрИПН!O42 -> 0.5 | N41: =IF(РегистрИПН!N42<=0,(D41+L41),(D41+L41)*M41) -> 29926.17628 | O41: 29926.17628 | Q41: =E41-P41 -> 300000 | R41: =10*Описание!E$16 -> 700000 | S41: =IF(Q41<R41,Q41,R41) -> 300000 | T41: =S41*2% -> 6000 | U41: 0
A42: 3 | B42: Третий | D42: 27863.56088 | E42: 280000 | H42: =IF(F42=1,0,E42-G42) -> 280000 | I42: 28000 | J42: =50*Описание!E$16 -> 3500000 | K42: 350000 | L42: 28000 | M42: =РегистрИПН!O43 -> 0.5 | N42: =IF(РегистрИПН!N43<=0,(D42+L42),(D42+L42)*M42) -> 27931.78044 | O42: 27931.78044 | Q42: 280000 | R42: =10*Описание!E$16 -> 700000 | S42: =IF(Q42<R42,Q42,R42) -> 280000 | T42: 5600 | U42: 0
A43: 4 | B43: Четвертый | D43: 22891.56116 | E43: 230000 | H43: 230000 | I43: 23000 | J43: =50*Описание!E$16 -> 3500000 | K43: 350000 | L43: 23000 | M43: =РегистрИПН!O44 -> 0.5 | N43: =IF(РегистрИПН!N44<=0,(D43+L43),(D43+L43)*M43) -> 22945.78058 | O43: 22945.78058 | Q43: 230000 | R43: =10*Описание!E$16 -> 700000 | S43: 230000 | T43: 4600 | U43: 0
A44: 5 | B44: Пятый | E44: 180000 | F44: 1 | H44: 0 | I44: 0 | J44: =50*Описание!E$16 -> 3500000 | K44: 350000 | L44: 0 | M44: =РегистрИПН!O45 -> 0.5 | N44: =IF(РегистрИПН!N45<=0,(D44+L44),(D44+L44)*M44) -> 0 | O44: 0 | P44: 180000 | Q44: 0 | R44: =10*Описание!E$16 -> 700000 | S44: 0 | T44: 0 | U44: 0
A45: 6 | B45: Шестой | E45: 100000 | G45: 100000 | H45: 0 | I45: 0 | J45: =50*Описание!E$16 -> 3500000 | K45: 350000 | L45: 0 | M45: =РегистрИПН!O46 -> 0.5 | N45: =IF(РегистрИПН!N46<=0,(D45+L45),(D45+L45)*M45) -> 0 | O45: 0 | P45: 100000 | Q45: 0 | R45: =10*Описание!E$16 -> 700000 | S45: 0 | T45: 0 | U45: 0
A46: 7 | H46: 0 | I46: 0 | J46: =50*Описание!E$16 -> 3500000 | K46: 350000 | L46: 0 | M46: =РегистрИПН!O47 -> 0 | N46: =IF(РегистрИПН!N47<=0,(D46+L46),(D46+L46)*M46) -> 0 | O46: 0 | Q46: 0 | R46: =10*Описание!E$16 -> 700000 | S46: 0 | T46: 0 | U46: 0
A47: 8 | H47: 0 | I47: 0 | J47: =50*Описание!E$16 -> 3500000 | K47: 350000 | L47: 0 | M47: =РегистрИПН!O48 -> 0 | N47: =IF(РегистрИПН!N48<=0,(D47+L47),(D47+L47)*M47) -> 0 | O47: 0 | Q47: 0 | R47: =10*Описание!E$16 -> 700000 | S47: 0 | T47: 0 | U47: 0
A48: 9 | H48: 0 | I48: 0 | J48: =50*Описание!E$16 -> 3500000 | K48: 350000 | L48: 0 | M48: =РегистрИПН!O49 -> 0 | N48: =IF(РегистрИПН!N49<=0,(D48+L48),(D48+L48)*M48) -> 0 | O48: 0 | Q48: 0 | R48: =10*Описание!E$16 -> 700000 | S48: 0 | T48: 0 | U48: 0
A49: 10 | H49: 0 | I49: 0 | J49: =50*Описание!E$16 -> 3500000 | K49: 350000 | L49: 0 | M49: =РегистрИПН!O50 -> 0 | N49: =IF(РегистрИПН!N50<=0,(D49+L49),(D49+L49)*M49) -> 0 | O49: 0 | Q49: 0 | R49: =10*Описание!E$16 -> 700000 | S49: 0 | T49: 0 | U49: 0
A50: 11 | H50: 0 | I50: 0 | J50: =50*Описание!E$16 -> 3500000 | K50: 350000 | L50: 0 | M50: =РегистрИПН!O51 -> 0 | N50: =IF(РегистрИПН!N51<=0,(D50+L50),(D50+L50)*M50) -> 0 | O50: 0 | Q50: 0 | R50: =10*Описание!E$16 -> 700000 | S50: 0 | T50: 0 | U50: 0
A51: 12 | H51: 0 | I51: 0 | J51: =50*Описание!E$16 -> 3500000 | K51: 350000 | L51: 0 | M51: =РегистрИПН!O52 -> 0 | N51: =IF(РегистрИПН!N52<=0,(D51+L51),(D51+L51)*M51) -> 0 | O51: 0 | Q51: 0 | R51: =10*Описание!E$16 -> 700000 | S51: 0 | T51: 0 | U51: 0
A52: 13 | H52: 0 | I52: 0 | J52: =50*Описание!E$16 -> 3500000 | K52: 350000 | L52: 0 | M52: =РегистрИПН!O53 -> 0 | N52: =IF(РегистрИПН!N53<=0,(D52+L52),(D52+L52)*M52) -> 0 | O52: 0 | Q52: =E52-P52 -> 0 | R52: =10*Описание!E$16 -> 700000 | S52: =IF(Q52<R52,Q52,R52) -> 0 | T52: 0 | U52: 0
B53: Итого(строка заполняется по итогам квартала) | D53: =D13 -> 116000 | E53: =E39+E26+E13 -> 4320000 | G53: 300000 | H53: 3480000 | I53: 348000 | J53: 0 | K53: 0 | L53: 348000 | N53: =N39+N26+N13 -> 347642.8035 | O53: =O39 -> 116357.1965 | P53: =P39 -> 280000 | Q53: =Q39+Q26+Q13 -> 3480000 | R53: =R39+R26+R13 -> 25900000 | S53: =S39+S26+S13 -> 3480000 | T53: =T39+T26+T13 -> 69600 | U53: =U39+U26+U13 -> 0
A56: _______________________________________________________________________________________
A57: (Ф.И.О., подпись руководителя (налогоплательщика), печать)
A58: _______________________________________________________________________________________
A59: (Ф.И.О., подпись главного бухгалтера)
A60: _______________________________________________________________________________________
A61: (Ф.И.О., подпись лица, ответственного за составление налогового регистра)
A62: __________________________________
A63: (Дата составления налогового регистра)
A65: Итого за квартал

Sheet регистр200.02
A1: № | B1: Ф.И.О. иностранца или лица без гражднства | C1: ИИН иностранца или лица без гражданства | D1: Код страны гражданства | E1: признак резидентства | F1: код страны резидентства | G1: номер налоговой регистрации иностранца или лица без гражданства в стране резидентства | H1: вид, номер и дата выдачи документа, удостоверяющего личность иностранца или лица без гражднства | K1: код вида дохода | L1: код вида международного договора | M1: ставка налога | N1: работники-нерезиденты – граждане стран – членов ЕАЭС | O1: начисленно доходов, за квартал | P1: Доходы не облагаемые ОПВ | Q1: Ограничение по ОПВ | R1: Доходы принятые для исчисления ОПВ | S1: Пенсионер | T1: Ограничение по взносы на ОСМС | U1: Доходы принятые для исчисления взносов на ОСМС | V1: эти графы не участвуют в расчетах Доходы, не подлежащине налогообложению | W1: эти графы не участвуют в расчетах Доходы, не подлежащине налогообложению | X1: эти графы не участвуют в расчетах Доходы, не подлежащине налогообложению | Y1: ОПВ | Z1: взносы на ОСМС | AA1: стандартные налоговые вычеты | AB1: сумма стандартных налоговых вычетов | AC1: прочие налоговые вычеты | AD1: сумма прочих налоговых вычетов | AE1: Облагаемый доход | AF1: ИПН | AG1: Задолженность на начало | AH1: Сумма к выплате за отчетный период | AI1: Выплачено доходов | AJ1: задолженность на конец | AK1: Удельный вес выплаченных доходов к доходам, причитающимся к выплате | AL1: Задолженность по ИПН на начало | AM1: сумма ИПН, подлежащая оплате | AN1: Выплаты, не облагаемые социальным налогом, за исключением ОПВ | AO1: выплаты, облагаемые социальным налогом | AP1: Социальный налог, исчисленный с доходов иностранцев и лиц без гражданства | AQ1: Расходы работодателя, с которых исчисляются социальные отчисления | AR1: Расходы работодателя, с которых исчисляются социальные отчисления c учетом ограничения | AS1: сумма социальных отчислений | AT1: сумма социального налога, подлежащего уплате в бюджет | AU1: Задолженность по ОПВ на начало | AV1: сумма обязательных пенсионных взносов, подлежащих перечислению | AW1: Задолженность по взносов на ОСМС на начало | AX1: сумма взносов на ОСМС, подлежащих перечислению | AY1: Доходы для исчисления ООСМС | AZ1: Доходы для исчисления ООСМС, с учетом ограничений | BA1: Сумма отчислений на ОСМС | BB1: Сумма ОПВ работодателя, подлежащих уплате
A2: A | B2: B | C2: C | D2: D | E2: E | F2: F | G2: G | H2: H | K2: I | L2: J | M2: O | O2: P | Q2: 50 МЗП | T2: 10 МЗП | V2: Q | W2: R | X2: S | Y2: T | Z2: U | AA2: V | AB2: W | AC2: X | AD2: Y | AF2: Z | AI2: AB | AJ2: АА | AM2: AC | AN2: AF | AO2: AG | AP2: AH | AR2: 7 МРЗП | AS2: AI | AT2: AJ | AV2: AD | AX2: AE | AZ2: 10 МРЗП | BA2: AL | BB2: AM
E3: нужно выбрать | H3: вид | I3: № | J3: дата | K3: Согласно пункту 34 Правил | L3: Согласно пункту 34 Правил | M3: % | N3: Если да, то нужно поставить 1 | S3: Если нет, то нужно поставить 1 | T3: Если работник работал не 3 месяца, то сумму необходимо откорректировать | V3: в соответствии п.1 ст. 341 и 654 НК | W3: в соответствии с п.1 ст. 341 НК | X3: в соответствии со ст. 654 НК | AA3: нужно выбрать | AC3: нужно выбрать | AN3: с подпунктом 4) и 5) пункта 3 статьи 484 | AT3: AH-AI | BA3: 0.03 | BB3: 0
A4: 1 | B4: Девятый | E4: 2 - нерезидент | M4: 0.1 | N4: 1 | O4: 200000 | Q4: =Описание!E$18 -> 3500000 | R4: =IF((O4-P4)<Q4,O4-P4,Q4) -> 200000 | S4: 1 | T4: =Описание!E$22 -> 700000 | U4: =IF(O4<T4,O4,T4) -> 200000 | Y4: =IF(AND(E4=G$24,S4=1),(R4)*10%,0) -> 0 | Z4: =IF(AND(E4=G$24,S4=1),(U4)*2%,0) -> 0 | AA4: 1 – один МЗП, в соответствии с пп.1) п.1 ст. 346 НК; | AC4: 1 - налоговый вычет по добровольным пенсионным взносам; | AE4: =IF(E4=G$24,O4-Y4-Z4-AB4-AD4-V4-W4-X4,O4) -> 200000 | AF4: =AE4*M4 -> 20000 | AH4: =O4-Y4-AF4-Z4 -> 180000 | AI4: 180000 | AJ4: =AG4+AH4-AI4 -> 0 | AK4: =IF(AI4=0,0,AI4/(AG4+AH4)) -> 1 | AM4: =IF(AJ4=0,AL4+AF4,(AF4+AL4)*AK4) -> 20000 | AO4: =O4-Y4-AN4-Z4 -> 200000 | AP4: =AO4*9.5% -> 19000 | AQ4: =IF(AND(E4=G$24,S4=1),O4-Y4,0) -> 0 | AR4: =IF(AQ4>(7*Описание!E$16*3),7*Описание!E$16,AQ4) -> 0 | AS4: =AR4*3.5% -> 0 | AT4: =IF(AP4-AS4<0,0,AP4-AS4) -> 19000 | AV4: =IF((AU4+Y4)>0,(AU4+Y4)*AK4,0) -> 0 | AX4: =IF((AW4+Z4)>0,(AW4+Z4)*AK4,0) -> 0 | AY4: =IF(AND(E4=G$24,N4=1,S4=1),O4,0) -> 0 | AZ4: =IF(AY4>(10*Описание!E$16),10*Описание!E$16,AY4) -> 0 | BA4: =AZ4*3% -> 0
A5: 2 | E5: 2 - нерезидент | M5: 0.1 | N5: 1 | Q5: =Описание!E$18 -> 3500000 | R5: =IF((O5-P5)<Q5,O5-P5,Q5) -> 0 | T5: =Описание!E$22 -> 700000 | U5: =IF(O5<T5,O5,T5) -> 0 | Y5: =IF(AND(E5=G$24,S5=1),(R5)*10%,0) -> 0 | Z5: =IF(AND(E5=G$24,S5=1),(U5)*2%,0) -> 0 | AC5: 2 - налоговый вычет на медицину; | AE5: =IF(E5=G$24,O5-Y5-Z5-AB5-AD5-V5-W5-X5,O5) -> 0 | AF5: =AE5*M5 -> 0 | AH5: =O5-Y5-AF5-Z5 -> 0 | AJ5: =AG5+AH5-AI5 -> 0 | AK5: =IF(AI5=0,0,AI5/(AG5+AH5)) -> 0 | AM5: =IF(AJ5=0,AL5+AF5,(AF5+AL5)*AK5) -> 0 | AO5: =O5-Y5-AN5-Z5 -> 0 | AP5: =AO5*9.5% -> 0 | AQ5: =IF(AND(E5=G$24,S5=1),O5-Y5,0) -> 0 | AR5: =IF(AQ5>(7*Описание!E$16*3),7*Описание!E$16,AQ5) -> 0 | AS5: =AR5*3.5% -> 0 | AT5: =IF(AP5-AS5<0,0,AP5-AS5) -> 0 | AV5: =IF((AU5+Y5)>0,(AU5+Y5)*AK5,0) -> 0 | AX5: =IF((AW5+Z5)>0,(AW5+Z5)*AK5,0) -> 0 | AY5: =IF(AND(E5=G$24,N5=1,S5=1),O5,0) -> 0 | AZ5: =IF(AY5>(10*Описание!E$16),10*Описание!E$16,AY5) -> 0 | BA5: =AZ5*3% -> 0
A6: 3 | E6: 1 - резидент, | M6: 0.1 | N6: 1 | Q6: =Описание!E$18 -> 3500000 | R6: =IF((O6-P6)<Q6,O6-P6,Q6) -> 0 | T6: =Описание!E$22 -> 700000 | U6: =IF(O6<T6,O6,T6) -> 0 | Y6: =IF(AND(E6=G$24,S6=1),(R6)*10%,0) -> 0 | Z6: =IF(AND(E6=G$24,S6=1),(U6)*2%,0) -> 0 | AA6: 1 – один МЗП, в соответствии с пп.1) п.1 ст. 346 НК; | AC6: 3 - налоговый вычет по вознаграждениям. | AE6: =IF(E6=G$24,O6-Y6-Z6-AB6-AD6-V6-W6-X6,O6) -> 0 | AF6: =AE6*M6 -> 0 | AH6: =O6-Y6-AF6-Z6 -> 0 | AJ6: =AG6+AH6-AI6 -> 0 | AK6: =IF(AI6=0,0,AI6/(AG6+AH6)) -> 0 | AM6: =IF(AJ6=0,AL6+AF6,(AF6+AL6)*AK6) -> 0 | AO6: =O6-Y6-AN6-Z6 -> 0 | AP6: =AO6*9.5% -> 0 | AQ6: =IF(AND(E6=G$24,S6=1),O6-Y6,0) -> 0 | AR6: =IF(AQ6>(7*Описание!E$16*3),7*Описание!E$16,AQ6) -> 0 | AS6: =AR6*3.5% -> 0 | AT6: =IF(AP6-AS6<0,0,AP6-AS6) -> 0 | AV6: =IF((AU6+Y6)>0,(AU6+Y6)*AK6,0) -> 0 | AX6: =IF((AW6+Z6)>0,(AW6+Z6)*AK6,0) -> 0 | AY6: =IF(AND(E6=G$24,N6=1,S6=1),O6,0) -> 0 | AZ6: =IF(AY6>(10*Описание!E$16),10*Описание!E$16,AY6) -> 0 | BA6: 0
A7: 4 | E7: 2 - нерезидент | M7: 0.2 | Q7: =Описание!E$18 -> 3500000 | R7: =IF((O7-P7)<Q7,O7-P7,Q7) -> 0 | T7: =Описание!E$22 -> 700000 | U7: =IF(O7<T7,O7,T7) -> 0 | Y7: =IF(AND(E7=G$24,S7=1),(R7)*10%,0) -> 0 | Z7: =IF(AND(E7=G$24,S7=1),(U7)*2%,0) -> 0 | AE7: =IF(E7=G$24,O7-Y7-Z7-AB7-AD7-V7-W7-X7,O7) -> 0 | AF7: =AE7*M7 -> 0 | AH7: =O7-Y7-AF7-Z7 -> 0 | AJ7: =AG7+AH7-AI7 -> 0 | AK7: =IF(AI7=0,0,AI7/(AG7+AH7)) -> 0 | AL7: 0 | AM7: =IF(AJ7=0,AL7+AF7,(AF7+AL7)*AK7) -> 0 | AO7: =O7-Y7-AN7-Z7 -> 0 | AP7: =AO7*9.5% -> 0 | AQ7: =IF(AND(E7=G$24,S7=1),O7-Y7,0) -> 0 | AR7: =IF(AQ7>(7*Описание!E$16*3),7*Описание!E$16,AQ7) -> 0 | AS7: =AR7*3.5% -> 0 | AT7: =IF(AP7-AS7<0,0,AP7-AS7) -> 0 | AV7: =IF((AU7+Y7)>0,(AU7+Y7)*AK7,0) -> 0 | AX7: =IF((AW7+Z7)>0,(AW7+Z7)*AK7,0) -> 0 | AY7: =IF(AND(E7=G$24,N7=1,S7=1),O7,0) -> 0 | AZ7: =IF(AY7>(10*Описание!E$16),10*Описание!E$16,AY7) -> 0 | BA7: 0
B8: 1 месяц | O8: =SUM(O4:O7) -> 200000 | Q8: =SUM(Q4:Q7) -> 14000000 | R8: 200000 | T8: 2800000 | U8: 200000 | V8: 0 | W8: 0 | X8: 0 | Y8: =SUM(Y4:Y7) -> 0 | Z8: =SUM(Z4:Z7) -> 0 | AA8: =SUM(AA4:AA7) -> 0 | AB8: =SUM(AB4:AB7) -> 0 | AE8: =SUM(AE4:AE7) -> 200000 | AF8: =SUM(AF4:AF7) -> 20000 | AG8: 0 | AH8: 180000 | AI8: 180000 | AJ8: 0 | AL8: 0 | AM8: 20000 | AN8: 0 | AO8: 200000 | AP8: 19000 | AQ8: 0 | AR8: 0 | AS8: 0 | AT8: 19000 | AU8: 0 | AV8: 0 | AW8: 0 | AX8: 0 | AY8: 0 | AZ8: 0 | BA8: 0 | BB8: =SUM(BB4:BB7) -> 0
A9: 1 | B9: Девятый | E9: 2 - нерезидент | M9: 0.1 | N9: 1 | O9: 200000 | Q9: =Описание!E$18 -> 3500000 | R9: =IF((O9-P9)<Q9,O9-P9,Q9) -> 200000 | S9: 1 | T9: =Описание!E$22 -> 700000 | U9: =IF(O9<T9,O9,T9) -> 200000 | Y9: =IF(AND(E9=G$24,S9=1),(R9)*10%,0) -> 0 | Z9: =IF(AND(E9=G$24,S9=1),(U9)*2%,0) -> 0 | AA9: 1 – один МЗП, в соответствии с пп.1) п.1 ст. 346 НК; | AC9: 1 - налоговый вычет по добровольным пенсионным взносам; | AE9: =IF(E9=G$24,O9-Y9-Z9-AB9-AD9-V9-W9-X9,O9) -> 200000 | AF9: =AE9*M9 -> 20000 | AG9: =SUMIF(B$9:B$12,B9,AJ$4:AJ$7) -> 0 | AH9: =O9-Y9-AF9-Z9 -> 180000 | AI9: 180000 | AJ9: =AG9+AH9-AI9 -> 0 | AK9: =IF(AI9=0,0,AI9/(AG9+AH9)) -> 1 | AM9: =IF(AJ9=0,AL9+AF9,(AF9+AL9)*AK9) -> 20000 | AO9: =O9-Y9-AN9-Z9 -> 200000 | AP9: =AO9*9.5% -> 19000 | AQ9: =IF(AND(E9=G$24,S9=1),O9-Y9,0) -> 0 | AR9: =IF(AQ9>(7*Описание!E$16*3),7*Описание!E$16,AQ9) -> 0 | AS9: =AR9*3.5% -> 0 | AT9: =IF(AP9-AS9<0,0,AP9-AS9) -> 19000 | AV9: =IF((AU9+Y9)>0,(AU9+Y9)*AK9,0) -> 0 | AX9: =IF((AW9+Z9)>0,(AW9+Z9)*AK9,0) -> 0 | AY9: =IF(AND(E9=G$24,N9=1,S9=1),O9,0) -> 0 | AZ9: =IF(AY9>(10*Описание!E$16),10*Описание!E$16,AY9) -> 0 | BA9: =AZ9*3% -> 0
A10: 2 | E10: 2 - нерезидент | M10: 0.1 | N10: 1 | Q10: =Описание!E$18 -> 3500000 | R10: =IF((O10-P10)<Q10,O10-P10,Q10) -> 0 | T10: =Описание!E$22 -> 700000 | U10: =IF(O10<T10,O10,T10) -> 0 | Y10: =IF(AND(E10=G$24,S10=1),(R10)*10%,0) -> 0 | Z10: =IF(AND(E10=G$24,S10=1),(U10)*2%,0) -> 0 | AC10: 2 - налоговый вычет на медицину; | AE10: =IF(E10=G$24,O10-Y10-Z10-AB10-AD10-V10-W10-X10,O10) -> 0 | AF10: =AE10*M10 -> 0 | AG10: =SUMIF(B$9:B$12,B10,AJ$4:AJ$7) -> 0 | AH10: =O10-Y10-AF10-Z10 -> 0 | AJ10: =AG10+AH10-AI10 -> 0 | AK10: =IF(AI10=0,0,AI10/(AG10+AH10)) -> 0 | AM10: =IF(AJ10=0,AL10+AF10,(AF10+AL10)*AK10) -> 0 | AO10: =O10-Y10-AN10-Z10 -> 0 | AP10: =AO10*9.5% -> 0 | AQ10: =IF(AND(E10=G$24,S10=1),O10-Y10,0) -> 0 | AR10: =IF(AQ10>(7*Описание!E$16*3),7*Описание!E$16,AQ10) -> 0 | AS10: =AR10*3.5% -> 0 | AT10: =IF(AP10-AS10<0,0,AP10-AS10) -> 0 | AV10: =IF((AU10+Y10)>0,(AU10+Y10)*AK10,0) -> 0 | AX10: =IF((AW10+Z10)>0,(AW10+Z10)*AK10,0) -> 0 | AY10: =IF(AND(E10=G$24,N10=1,S10=1),O10,0) -> 0 | AZ10: =IF(AY10>(10*Описание!E$16),10*Описание!E$16,AY10) -> 0 | BA10: 0
A11: 3 | E11: 1 - резидент, | M11: 0.1 | N11: 1 | Q11: =Описание!E$18 -> 3500000 | R11: =IF((O11-P11)<Q11,O11-P11,Q11) -> 0 | T11: =Описание!E$22 -> 700000 | U11: =IF(O11<T11,O11,T11) -> 0 | Y11: =IF(AND(E11=G$24,S11=1),(R11)*10%,0) -> 0 | Z11: =IF(AND(E11=G$24,S11=1),(U11)*2%,0) -> 0 | AA11: 1 – один МЗП, в соответствии с пп.1) п.1 ст. 346 НК; | AC11: 3 - налоговый вычет по вознаграждениям. | AE11: =IF(E11=G$24,O11-Y11-Z11-AB11-AD11-V11-W11-X11,O11) -> 0 | AF11: =AE11*M11 -> 0 | AG11: =SUMIF(B$9:B$12,B11,AJ$4:AJ$7) -> 0 | AH11: =O11-Y11-AF11-Z11 -> 0 | AJ11: =AG11+AH11-AI11 -> 0 | AK11: =IF(AI11=0,0,AI11/(AG11+AH11)) -> 0 | AM11: =IF(AJ11=0,AL11+AF11,(AF11+AL11)*AK11) -> 0 | AO11: =O11-Y11-AN11-Z11 -> 0 | AP11: =AO11*9.5% -> 0 | AQ11: =IF(AND(E11=G$24,S11=1),O11-Y11,0) -> 0 | AR11: =IF(AQ11>(7*Описание!E$16*3),7*Описание!E$16,AQ11) -> 0 | AS11: =AR11*3.5% -> 0 | AT11: =IF(AP11-AS11<0,0,AP11-AS11) -> 0 | AV11: =IF((AU11+Y11)>0,(AU11+Y11)*AK11,0) -> 0 | AX11: =IF((AW11+Z11)>0,(AW11+Z11)*AK11,0) -> 0 | AY11: =IF(AND(E11=G$24,N11=1,S11=1),O11,0) -> 0 | AZ11: =IF(AY11>(10*Описание!E$16),10*Описание!E$16,AY11) -> 0 | BA11: 0
A12: 4 | E12: 2 - нерезидент | M12: 0.2 | Q12: =Описание!E$18 -> 3500000 | R12: =IF((O12-P12)<Q12,O12-P12,Q12) -> 0 | T12: =Описание!E$22 -> 700000 | U12: =IF(O12<T12,O12,T12) -> 0 | Y12: =IF(AND(E12=G$24,S12=1),(R12)*10%,0) -> 0 | Z12: =IF(AND(E12=G$24,S12=1),(U12)*2%,0) -> 0 | AE12: =IF(E12=G$24,O12-Y12-Z12-AB12-AD12-V12-W12-X12,O12) -> 0 | AF12: =AE12*M12 -> 0 | AG12: =SUMIF(B$9:B$12,B12,AJ$4:AJ$7) -> 0 | AH12: =O12-Y12-AF12-Z12 -> 0 | AJ12: =AG12+AH12-AI12 -> 0 | AK12: =IF(AI12=0,0,AI12/(AG12+AH12)) -> 0 | AL12: 0 | AM12: =IF(AJ12=0,AL12+AF12,(AF12+AL12)*AK12) -> 0 | AO12: =O12-Y12-AN12-Z12 -> 0 | AP12: =AO12*9.5% -> 0 | AQ12: =IF(AND(E12=G$24,S12=1),O12-Y12,0) -> 0 | AR12: =IF(AQ12>(7*Описание!E$16*3),7*Описание!E$16,AQ12) -> 0 | AS12: =AR12*3.5% -> 0 | AT12: =IF(AP12-AS12<0,0,AP12-AS12) -> 0 | AV12: =IF((AU12+Y12)>0,(AU12+Y12)*AK12,0) -> 0 | AX12: =IF((AW12+Z12)>0,(AW12+Z12)*AK12,0) -> 0 | AY12: =IF(AND(E12=G$24,N12=1,S12=1),O12,0) -> 0 | AZ12: =IF(AY12>(10*Описание!E$16),10*Описание!E$16,AY12) -> 0 | BA12: 0
B13: 2 месяц | O13: =SUM(O9:O12) -> 200000 | Q13: =SUM(Q9:Q12) -> 14000000 | R13: 200000 | T13: 2800000 | U13: 200000 | V13: 0 | W13: 0 | X13: 0 | Y13: =SUM(Y9:Y12) -> 0 | Z13: =SUM(Z9:Z12) -> 0 | AA13: =SUM(AA9:AA12) -> 0 | AB13: =SUM(AB9:AB12) -> 0 | AE13: =SUM(AE9:AE12) -> 200000 | AF13: 20000 | AG13: 0 | AH13: 180000 | AI13: 180000 | AJ13: 0 | AL13: =SUM(AL9:AL12) -> 0 | AM13: 20000 | AN13: 0 | AO13: 200000 | AP13: 19000 | AQ13: 0 | AR13: 0 | AS13: 0 | AT13: 19000 | AU13: 0 | AV13: 0 | AW13: 0 | AX13: 0 | AY13: 0 | AZ13: 0 | BA13: 0 | BB13: =SUM(BB9:BB12) -> 0
A14: 1 | B14: Девятый | E14: 2 - нерезидент | M14: 0.1 | N14: 1 | O14: 200000 | Q14: =Описание!E$18 -> 3500000 | R14: =IF((O14-P14)<Q14,O14-P14,Q14) -> 200000 | S14: 1 | T14: =Описание!E$22 -> 700000 | U14: =IF(O14<T14,O14,T14) -> 200000 | Y14: =IF(AND(E14=G$24,S14=1),(R14)*10%,0) -> 0 | Z14: =IF(AND(E14=G$24,S14=1),(U14)*2%,0) -> 0 | AA14: 1 – один МЗП, в соответствии с пп.1) п.1 ст. 346 НК; | AC14: 1 - налоговый вычет по добровольным пенсионным взносам; | AE14: =IF(E14=G$24,O14-Y14-Z14-AB14-AD14-V14-W14-X14,O14) -> 200000 | AF14: =AE14*M14 -> 20000 | AG14: =SUMIF(B$9:B$12,B14,AJ$9:AJ$12) -> 0 | AH14: =O14-Y14-AF14-Z14 -> 180000 | AI14: 180000 | AJ14: =AG14+AH14-AI14 -> 0 | AK14: =IF(AI14=0,0,AI14/(AG14+AH14)) -> 1 | AM14: =IF(AJ14=0,AL14+AF14,(AF14+AL14)*AK14) -> 20000 | AO14: =O14-Y14-AN14-Z14 -> 200000 | AP14: =AO14*9.5% -> 19000 | AQ14: =IF(AND(E14=G$24,S14=1),O14-Y14,0) -> 0 | AR14: =IF(AQ14>(7*Описание!E$16*3),7*Описание!E$16,AQ14) -> 0 | AS14: =AR14*3.5% -> 0 | AT14: =IF(AP14-AS14<0,0,AP14-AS14) -> 19000 | AV14: =IF((AU14+Y14)>0,(AU14+Y14)*AK14,0) -> 0 | AX14: =IF((AW14+Z14)>0,(AW14+Z14)*AK14,0) -> 0 | AY14: =IF(AND(E14=G$24,N14=1,S14=1),O14,0) -> 0 | AZ14: =IF(AY14>(10*Описание!E$16),10*Описание!E$16,AY14) -> 0 | BA14: =AZ14*3% -> 0
A15: 2 | E15: 2 - нерезидент | M15: 0.1 | N15: 1 | Q15: =Описание!E$18 -> 3500000 | R15: =IF((O15-P15)<Q15,O15-P15,Q15) -> 0 | T15: =Описание!E$22 -> 700000 | U15: =IF(O15<T15,O15,T15) -> 0 | Y15: =IF(AND(E15=G$24,S15=1),(R15)*10%,0) -> 0 | Z15: =IF(AND(E15=G$24,S15=1),(U15)*2%,0) -> 0 | AC15: 2 - налоговый вычет на медицину; | AE15: =IF(E15=G$24,O15-Y15-Z15-AB15-AD15-V15-W15-X15,O15) -> 0 | AF15: =AE15*M15 -> 0 | AG15: =SUMIF(B$9:B$12,B15,AJ$9:AJ$12) -> 0 | AH15: =O15-Y15-AF15-Z15 -> 0 | AJ15: =AG15+AH15-AI15 -> 0 | AK15: =IF(AI15=0,0,AI15/(AG15+AH15)) -> 0 | AM15: =IF(AJ15=0,AL15+AF15,(AF15+AL15)*AK15) -> 0 | AO15: =O15-Y15-AN15-Z15 -> 0 | AP15: =AO15*9.5% -> 0 | AQ15: =IF(AND(E15=G$24,S15=1),O15-Y15,0) -> 0 | AR15: =IF(AQ15>(7*Описание!E$16*3),7*Описание!E$16,AQ15) -> 0 | AS15: =AR15*3.5% -> 0 | AT15: =IF(AP15-AS15<0,0,AP15-AS15) -> 0 | AV15: =IF((AU15+Y15)>0,(AU15+Y15)*AK15,0) -> 0 | AX15: =IF((AW15+Z15)>0,(AW15+Z15)*AK15,0) -> 0 | AY15: =IF(AND(E15=G$24,N15=1,S15=1),O15,0) -> 0 | AZ15: =IF(AY15>(10*Описание!E$16),10*Описание!E$16,AY15) -> 0 | BA15: 0
A16: 3 | E16: 1 - резидент, | M16: 0.1 | N16: 1 | Q16: =Описание!E$18 -> 3500000 | R16: =IF((O16-P16)<Q16,O16-P16,Q16) -> 0 | T16: =Описание!E$22 -> 700000 | U16: =IF(O16<T16,O16,T16) -> 0 | Y16: =IF(AND(E16=G$24,S16=1),(R16)*10%,0) -> 0 | Z16: =IF(AND(E16=G$24,S16=1),(U16)*2%,0) -> 0 | AA16: 1 – один МЗП, в соответствии с пп.1) п.1 ст. 346 НК; | AC16: 3 - налоговый вычет по вознаграждениям. | AE16: =IF(E16=G$24,O16-Y16-Z16-AB16-AD16-V16-W16-X16,O16) -> 0 | AF16: =AE16*M16 -> 0 | AG16: =SUMIF(B$9:B$12,B16,AJ$9:AJ$12) -> 0 | AH16: =O16-Y16-AF16-Z16 -> 0 | AJ16: =AG16+AH16-AI16 -> 0 | AK16: =IF(AI16=0,0,AI16/(AG16+AH16)) -> 0 | AM16: =IF(AJ16=0,AL16+AF16,(AF16+AL16)*AK16) -> 0 | AO16: =O16-Y16-AN16-Z16 -> 0 | AP16: =AO16*9.5% -> 0 | AQ16: =IF(AND(E16=G$24,S16=1),O16-Y16,0) -> 0 | AR16: =IF(AQ16>(7*Описание!E$16*3),7*Описание!E$16,AQ16) -> 0 | AS16: =AR16*3.5% -> 0 | AT16: =IF(AP16-AS16<0,0,AP16-AS16) -> 0 | AV16: =IF((AU16+Y16)>0,(AU16+Y16)*AK16,0) -> 0 | AX16: =IF((AW16+Z16)>0,(AW16+Z16)*AK16,0) -> 0 | AY16: =IF(AND(E16=G$24,N16=1,S16=1),O16,0) -> 0 | AZ16: =IF(AY16>(10*Описание!E$16),10*Описание!E$16,AY16) -> 0 | BA16: 0
A17: 4 | E17: 2 - нерезидент | M17: 0.2 | Q17: =Описание!E$18 -> 3500000 | R17: =IF((O17-P17)<Q17,O17-P17,Q17) -> 0 | T17: =Описание!E$22 -> 700000 | U17: =IF(O17<T17,O17,T17) -> 0 | Y17: =IF(AND(E17=G$24,S17=1),(R17)*10%,0) -> 0 | Z17: =IF(AND(E17=G$24,S17=1),(U17)*2%,0) -> 0 | AE17: =IF(E17=G$24,O17-Y17-Z17-AB17-AD17-V17-W17-X17,O17) -> 0 | AF17: =AE17*M17 -> 0 | AG17: =SUMIF(B$9:B$12,B17,AJ$9:AJ$12) -> 0 | AH17: =O17-Y17-AF17-Z17 -> 0 | AJ17: =AG17+AH17-AI17 -> 0 | AK17: =IF(AI17=0,0,AI17/(AG17+AH17)) -> 0 | AL17: 0 | AM17: =IF(AJ17=0,AL17+AF17,(AF17+AL17)*AK17) -> 0 | AO17: =O17-Y17-AN17-Z17 -> 0 | AP17: =AO17*9.5% -> 0 | AQ17: =IF(AND(E17=G$24,S17=1),O17-Y17,0) -> 0 | AR17: =IF(AQ17>(7*Описание!E$16*3),7*Описание!E$16,AQ17) -> 0 | AS17: =AR17*3.5% -> 0 | AT17: =IF(AP17-AS17<0,0,AP17-AS17) -> 0 | AV17: =IF((AU17+Y17)>0,(AU17+Y17)*AK17,0) -> 0 | AX17: =IF((AW17+Z17)>0,(AW17+Z17)*AK17,0) -> 0 | AY17: =IF(AND(E17=G$24,N17=1,S17=1),O17,0) -> 0 | AZ17: =IF(AY17>(10*Описание!E$16),10*Описание!E$16,AY17) -> 0 | BA17: 0
B18: 3 месяц | O18: =SUM(O14:O17) -> 200000 | Q18: =SUM(Q14:Q17) -> 14000000 | R18: 200000 | T18: 2800000 | U18: 200000 | V18: 0 | W18: 0 | X18: 0 | Y18: =SUM(Y14:Y17) -> 0 | Z18: =SUM(Z14:Z17) -> 0 | AA18: =SUM(AA14:AA17) -> 0 | AB18: =SUM(AB14:AB17) -> 0 | AE18: =SUM(AE14:AE17) -> 200000 | AF18: 20000 | AG18: 0 | AH18: 180000 | AI18: 180000 | AJ18: 0 | AL18: =SUM(AL14:AL17) -> 0 | AM18: 20000 | AN18: 0 | AO18: 200000 | AP18: 19000 | AQ18: 0 | AR18: 0 | AS18: 0 | AT18: 19000 | AU18: 0 | AV18: 0 | AW18: 0 | AX18: 0 | AY18: 0 | AZ18: 0 | BA18: 0 | BB18: =SUM(BB14:BB17) -> 0
B19: итого приложение 200.02 | O19: =O18+O13+O8 -> 600000 | Q19: =Q18+Q13+Q8 -> 42000000 | R19: 600000 | T19: 8400000 | U19: 600000 | V19: 0 | W19: 0 | X19: 0 | Y19: =Y18+Y13+Y8 -> 0 | Z19: =Z18+Z13+Z8 -> 0 | AA19: =AA18+AA13+AA8 -> 0 | AB19: =AB18+AB13+AB8 -> 0 | AE19: =AE18+AE13+AE8 -> 600000 | AF19: =AF18+AF13+AF8 -> 60000 | AG19: 0 | AH19: 540000 | AI19: 540000 | AJ19: =AJ18+AJ13+AJ8 -> 0 | AK19: 0 | AL19: 0 | AM19: 60000 | AN19: 0 | AO19: 600000 | AP19: 57000 | AQ19: 0 | AR19: 0 | AS19: 0 | AT19: 57000 | AU19: 0 | AV19: 0 | AW19: 0 | AX19: 0 | AY19: 0 | AZ19: 0 | BA19: 0 | BB19: =BB18+BB13+BB8 -> 0
AA22: 1 – 14 МРП, в соответствии с пп.1) п.1 ст. 346 НК; | AC22: 1 - налоговый вычет по добровольным пенсионным взносам;
B23: Расшифровка графы G | G23: Столбец 1 | AA23: 2 - 882-кратный размер МРП за календарный год в соответствии с пп.2) п.1 ст. 346 НК; | AC23: 2 - налоговый вычет на медицину;
B24: 02 - удостоверение личности иностранного гражданина | G24: 1 - резидент, | AA24: 3 - 882-кратный размер МРП за календарный год в соответствии с пп.3) п.1 ст. 346 НК; | AC24: 3 - налоговый вычет по вознаграждениям.
B25: 03 - паспорт моряка; | G25: 2 - нерезидент
B26: 04 - вид на жительство;
B27: 05 - другие документы;
A30: № | B30: Ф.И.О. иностранца или лица без гражднства | C30: ИИН иностранца или лица без гражднства | D30: Код страны гражданства | E30: признак резидентства | F30: код страны резидентства | G30: номер налоговой регистрации иностранца или лица без гражданства в стране резидентства | H30: вид, номер и дата выдачи документа, удостоверяющего личность иностранца или лица без гражднства | K30: код вида дохода | L30: код вида международного договора | M30: ставка налога | N30: работники-нерезиденты – граждане стран – членов ЕАЭС | O30: начисленно доходов, за квартал | Q30: Ограничение по ОПВ | R30: Доходы принятые для исчисления ОПВ | S30: Пенсионер | T30: Ограничение по взносы на ОСМС | U30: Доходы принятые для исчисления взносов на ОСМС | V30: Доходы, не подлежащине налогообложению | W30: Доходы, не подлежащине налогообложению | X30: Доходы, не подлежащине налогообложению | Y30: ОПВ | Z30: взносы на ОСМС | AA30: стандартные налоговые вычеты | AB30: сумма стандартных налоговых вычетов | AC30: прочие налоговые вычеты | AD30: сумма прочих налоговых вычетов | AE30: Облагаемый доход | AF30: ИПН | AG30: Задолженность на начало | AH30: Сумма к выплате за отчетный период | AI30: Выплачено доходов | AJ30: задолженность на конец | AK30: Удельный вес выплаченных доходов к доходам, причитающимся к выплате | AL30: Задолженность по ИПН на начало | AM30: сумма ИПН, подлежащая оплате | AN30: Выплаты, не облагаемые социальным налогом, за исключением ОПВ | AO30: выплаты, облагаемые социальным налогом | AP30: Социальный налог, исчисленный с доходов иностранцев и лиц без гражданства | AQ30: Расходы работодателя, с которых исчисляются социальные отчисления | AR30: Расходы работодателя, с которых исчисляются социальные отчисления c учетом ограничения | AS30: сумма социальных отчислений | AT30: сумма социального налога, подлежащего уплате в бюджет | AU30: Задолженность по ОПВ на начало | AV30: сумма обязательных пенсионных взносов, подлежащих перечислению | AW30: Задолженность по взносов на ОСМС на начало | AX30: сумма взносов на ОСМС, подлежащих перечислению | AY30: Доходы для исчисления ООСМС | AZ30: Доходы для исчисления ООСМС, с учетом ограничений | BA30: Сумма отчислений на ОСМС | BB30: Сумма ОПВ работодателя, подлежащих уплате
A31: A | B31: B | C31: C | D31: D | E31: E | F31: F | G31: G | H31: H | K31: I | L31: J | M31: O | O31: P | Q31: 50 МЗП*3 | T31: 10 МЗП*3 | V31: Q | W31: R | X31: S | Y31: T | Z31: U | AA31: V | AB31: W | AC31: X | AD31: Y | AF31: Z | AI31: AB | AJ31: АА | AM31: AC | AN31: AF | AO31: AG | AP31: AH | AR31: 7 МРЗП*3 | AS31: AI | AT31: AJ | AV31: AD | AX31: AE | AZ31: 10 МРЗП*3 | BA31: AL | BB31: AM
A32: если во втором и 3 месяце есть новые работники, то нужно добавить фамилию и ИИН вручную | E32: нужно выбрать | H32: вид | I32: № | J32: дата | K32: Согласно пункту 34 Правил | L32: Согласно пункту 34 Правил | M32: % | N32: Если да, то нужно поставить 1 | S32: Если нет, то нужно поставить 1 | T32: Если работник работал не 3 месяца, то сумму необходимо откорректировать | V32: в соответствии п.1 ст. 341 и 654 НК | W32: в соответствии с п.1 ст. 341 НК | X32: в соответствии со ст. 654 НК | AA32: нужно выбрать | AC32: нужно выбрать | AN32: с подпунктом 4) и 5) пункта 3 статьи 484 | AT32: AH-AI | BA32: 0.03 | BB32: 0
A33: 1 | B33: =B4 -> Девятый | C33: =C4 -> 0 | E33: 1 - резидент, | M33: 0.1 | N33: 1 | O33: =SUMIF(B$4:B$17,B33,O$4:O$17) -> 600000 | Q33: =SUMIF(B$4:B$17,B33,Q$4:Q$17) -> 10500000 | R33: =IF(O33<Q33,O33,Q33) -> 600000 | S33: 1 | T33: =SUMIF(B$4:B$17,B33,T$4:T$17) -> 2100000 | U33: =SUMIF(B$4:B$17,B33,U$4:U$17) -> 600000 | V33: =SUMIF(B$4:B$17,B33,V$4:V$17) -> 0 | W33: =SUMIF(B$4:B$17,B33,W$4:W$17) -> 0 | X33: =SUMIF(B$4:B$17,B33,X$4:X$17) -> 0 | Y33: =SUMIF(B$4:B$17,B33,Y$4:Y$17) -> 0 | Z33: =SUMIF(B$4:B$17,B33,Z$4:Z$17) -> 0 | AA33: 1 – один МЗП, в соответствии с пп.1) п.1 ст. 346 НК; | AB33: =SUMIF(B$4:B$17,B33,AB$4:AB$17) -> 0 | AC33: 1 - налоговый вычет по добровольным пенсионным взносам; | AE33: =SUMIF(B$4:B$17,B33,AE$4:AE$17) -> 600000 | AF33: =SUMIF(B$4:B$17,B33,AF$4:AF$17) -> 60000 | AG33: =SUMIF(B$4:B$7,B33,AG$4:AG$7) -> 0 | AH33: =O33-Y33-AF33-Z33 -> 540000 | AI33: =SUMIF(B$4:B$17,B33,AI$4:AI$17) -> 540000 | AJ33: =AG33+AH33-AI33 -> 0 | AL33: =SUMIF(B$4:B$7,B33,AL$4:AL$7) -> 0 | AM33: =SUMIF(B$4:B$17,B33,AM$4:AM$17) -> 60000 | AO33: =O33-Y33-AN33-Z33 -> 600000 | AP33: =AO33*9.5% -> 57000 | AQ33: =SUMIF(B$4:B$17,B33,AQ$4:AQ$17) -> 0 | AR33: =SUMIF(B$4:B$17,B33,AR$4:AR$17) -> 0 | AS33: =AR33*3.5% -> 0 | AT33: =SUMIF(B$4:B$17,B33,AT$4:AT$17) -> 57000 | AU33: =AU4 -> 0 | AV33: =SUMIF(B$4:B$17,B33,AV$4:AV$17) -> 0 | AW33: =SUMIF(B$4:B$17,B33,AW$4:AW$17) -> 0 | AX33: =SUMIF(B$4:B$17,B33,AX$4:AX$17) -> 0 | AY33: =SUMIF(B$4:B$17,B33,AY$4:AY$17) -> 0 | AZ33: =SUMIF(B$4:B$17,B33,AZ$4:AZ$17) -> 0 | BA33: =AZ33*3% -> 0
A34: 2 | B34: =B5 -> 0 | C34: 0 | E34: 2 - нерезидент | M34: 0.1 | N34: 1 | O34: =SUMIF(B$4:B$17,B34,O$4:O$17) -> 0 | Q34: =SUMIF(B$4:B$17,B34,Q$4:Q$17) -> 0 | R34: 0 | T34: =SUMIF(B$4:B$17,B34,T$4:T$17) -> 0 | U34: =SUMIF(B$4:B$17,B34,U$4:U$17) -> 0 | V34: =SUMIF(B$4:B$17,B34,V$4:V$17) -> 0 | W34: =SUMIF(B$4:B$17,B34,W$4:W$17) -> 0 | X34: =SUMIF(B$4:B$17,B34,X$4:X$17) -> 0 | Y34: =SUMIF(B$4:B$17,B34,Y$4:Y$17) -> 0 | Z34: =SUMIF(B$4:B$17,B34,Z$4:Z$17) -> 0 | AB34: =SUMIF(B$4:B$17,B34,AB$4:AB$17) -> 0 | AC34: 2 - налоговый вычет на медицину; | AE34: =SUMIF(B$4:B$17,B34,AE$4:AE$17) -> 0 | AF34: =SUMIF(B$4:B$17,B34,AF$4:AF$17) -> 0 | AG34: =SUMIF(B$4:B$7,B34,AG$4:AG$7) -> 0 | AH34: =O34-Y34-AF34-Z34 -> 0 | AI34: =SUMIF(B$4:B$17,B34,AI$4:AI$17) -> 0 | AJ34: 0 | AL34: =SUMIF(B$4:B$7,B34,AL$4:AL$7) -> 0 | AM34: =SUMIF(B$4:B$17,B34,AM$4:AM$17) -> 0 | AO34: 0 | AP34: 0 | AQ34: =SUMIF(B$4:B$17,B34,AQ$4:AQ$17) -> 0 | AR34: =SUMIF(B$4:B$17,B34,AR$4:AR$17) -> 0 | AS34: 0 | AT34: =SUMIF(B$4:B$17,B34,AT$4:AT$17) -> 0 | AU34: =AU5 -> 0 | AV34: =SUMIF(B$4:B$17,B34,AV$4:AV$17) -> 0 | AW34: =SUMIF(B$4:B$17,B34,AW$4:AW$17) -> 0 | AX34: =SUMIF(B$4:B$17,B34,AX$4:AX$17) -> 0 | AY34: =SUMIF(B$4:B$17,B34,AY$4:AY$17) -> 0 | AZ34: =SUMIF(B$4:B$17,B34,AZ$4:AZ$17) -> 0 | BA34: =AZ34*3% -> 0
A35: 3 | B35: 0 | C35: 0 | E35: 1 - резидент, | M35: 0.1 | N35: 1 | O35: =SUMIF(B$4:B$17,B35,O$4:O$17) -> 0 | Q35: =SUMIF(B$4:B$17,B35,Q$4:Q$17) -> 0 | R35: 0 | S35: 1 | T35: 0 | U35: 0 | V35: 0 | W35: 0 | X35: 0 | Y35: =SUMIF(B$4:B$17,B35,Y$4:Y$17) -> 0 | Z35: 0 | AA35: 1 – один МЗП, в соответствии с пп.1) п.1 ст. 346 НК; | AB35: 0 | AC35: 3 - налоговый вычет по вознаграждениям. | AE35: 0 | AF35: 0 | AG35: 0 | AH35: 0 | AI35: 0 | AJ35: 0 | AL35: 0 | AM35: 0 | AO35: 0 | AP35: 0 | AQ35: 0 | AR35: 0 | AS35: 0 | AT35: 0 | AU35: =AU6 -> 0 | AV35: 0 | AW35: 0 | AX35: 0 | AY35: 0 | AZ35: 0 | BA35: 0
A36: 4 | B36: 0 | C36: 0 | E36: 2 - нерезидент | M36: 0.2 | O36: 0 | Q36: 0 | R36: 0 | S36: 1 | T36: 0 | U36: 0 | V36: 0 | W36: 0 | X36: 0 | Y36: 0 | Z36: 0 | AB36: 0 | AE36: 0 | AF36: 0 | AG36: 0 | AH36: 0 | AI36: 0 | AJ36: 0 | AL36: 0 | AM36: 0 | AO36: 0 | AP36: 0 | AQ36: 0 | AR36: 0 | AS36: 0 | AT36: 0 | AU36: =AU7 -> 0 | AV36: 0 | AW36: 0 | AX36: 0 | AY36: 0 | AZ36: 0 | BA36: 0
A37: 1 | E37: 2 - нерезидент | O37: 0 | Q37: 0 | R37: 0 | T37: 0 | U37: 0 | V37: 0 | W37: 0 | X37: 0 | Y37: 0 | Z37: 0 | AB37: 0 | AE37: 0 | AF37: 0 | AG37: 0 | AH37: 0 | AI37: 0 | AJ37: 0 | AL37: 0 | AM37: 0 | AO37: 0 | AP37: 0 | AQ37: 0 | AR37: 0 | AS37: 0 | AT37: =SUMIF(B$4:B$17,B37,AT$4:AT$17) -> 0 | AV37: 0 | AW37: 0 | AX37: 0 | AY37: 0 | AZ37: 0 | BA37: 0
A38: 2 | E38: 2 - нерезидент | O38: 0 | Q38: 0 | R38: 0 | T38: 0 | U38: 0 | V38: 0 | W38: 0 | X38: 0 | Y38: 0 | Z38: 0 | AB38: 0 | AE38: 0 | AF38: 0 | AG38: 0 | AH38: 0 | AI38: 0 | AJ38: 0 | AL38: 0 | AM38: 0 | AO38: 0 | AP38: 0 | AQ38: 0 | AR38: 0 | AS38: 0 | AT38: 0 | AV38: 0 | AW38: 0 | AX38: 0 | AY38: 0 | AZ38: 0 | BA38: 0
A39: 3 | E39: 2 - нерезидент | O39: 0 | Q39: 0 | R39: 0 | T39: 0 | U39: 0 | V39: 0 | W39: 0 | X39: 0 | Y39: 0 | Z39: 0 | AB39: 0 | AE39: 0 | AF39: 0 | AG39: 0 | AH39: 0 | AI39: 0 | AJ39: =AG39+AH39-AI39 -> 0 | AL39: =SUMIF(B$4:B$7,B39,AL$4:AL$7) -> 0 | AM39: 0 | AO39: 0 | AP39: 0 | AQ39: 0 | AR39: 0 | AS39: 0 | AT39: 0 | AV39: 0 | AW39: 0 | AX39: 0 | AY39: 0 | AZ39: 0 | BA39: 0
A40: 4 | E40: 2 - нерезидент | O40: 0 | Q40: 0 | R40: 0 | T40: 0 | U40: 0 | V40: 0 | W40: 0 | X40: 0 | Y40: 0 | Z40: 0 | AB40: 0 | AE40: 0 | AF40: 0 | AG40: 0 | AH40: 0 | AI40: 0 | AJ40: 0 | AL40: 0 | AM40: 0 | AO40: 0 | AP40: 0 | AQ40: 0 | AR40: 0 | AS40: 0 | AT40: 0 | AV40: 0 | AW40: 0 | AX40: 0 | AY40: 0 | AZ40: 0 | BA40: 0
A41: 10 | E41: 2 - нерезидент | O41: 0 | Q41: 0 | R41: 0 | T41: 0 | U41: 0 | V41: 0 | W41: 0 | X41: 0 | Y41: 0 | Z41: 0 | AB41: 0 | AE41: 0 | AF41: 0 | AG41: 0 | AH41: 0 | AI41: 0 | AJ41: 0 | AL41: 0 | AM41: 0 | AO41: 0 | AP41: 0 | AQ41: 0 | AR41: 0 | AS41: 0 | AT41: 0 | AV41: 0 | AW41: 0 | AX41: 0 | AY41: 0 | AZ41: 0 | BA41: 0
A42: 11 | E42: 2 - нерезидент | O42: 0 | Q42: 0 | R42: 0 | T42: 0 | U42: 0 | V42: 0 | W42: 0 | X42: 0 | Y42: 0 | Z42: 0 | AB42: 0 | AE42: 0 | AF42: 0 | AG42: 0 | AH42: 0 | AI42: 0 | AJ42: 0 | AL42: 0 | AM42: 0 | AO42: 0 | AP42: 0 | AQ42: 0 | AR42: 0 | AS42: 0 | AT42: 0 | AV42: 0 | AW42: 0 | AX42: 0 | AY42: 0 | AZ42: 0 | BA42: 0
A43: 12 | E43: 2 - нерезидент | O43: 0 | Q43: 0 | R43: 0 | T43: 0 | U43: 0 | V43: 0 | W43: 0 | X43: 0 | Y43: 0 | Z43: 0 | AB43: =SUMIF(B$4:B$17,B43,AB$4:AB$17) -> 0 | AE43: 0 | AF43: 0 | AG43: 0 | AH43: 0 | AI43: 0 | AJ43: 0 | AL43: 0 | AM43: 0 | AO43: 0 | AP43: 0 | AQ43: 0 | AR43: 0 | AS43: 0 | AT43: 0 | AV43: 0 | AW43: 0 | AX43: 0 | AY43: 0 | AZ43: 0 | BA43: 0
A44: 13 | E44: 2 - нерезидент | O44: 0 | Q44: 0 | R44: 0 | T44: 0 | U44: 0 | V44: 0 | W44: 0 | X44: 0 | Y44: 0 | Z44: 0 | AB44: 0 | AE44: 0 | AF44: 0 | AG44: 0 | AH44: 0 | AI44: 0 | AJ44: 0 | AL44: 0 | AM44: 0 | AO44: 0 | AP44: 0 | AQ44: =SUMIF(B$4:B$17,B44,AQ$4:AQ$17) -> 0 | AR44: 0 | AS44: 0 | AT44: 0 | AV44: 0 | AW44: 0 | AX44: 0 | AY44: 0 | AZ44: 0 | BA44: 0
B45: итого приложение 200.02 | O45: =SUM(O33:O44) -> 600000 | Q45: =SUM(Q33:Q44) -> 10500000 | R45: 600000 | T45: 2100000 | U45: 600000 | V45: 0 | W45: 0 | X45: 0 | Y45: 0 | Z45: 0 | AA45: 0 | AB45: 0 | AC45: 0 | AD45: 0 | AE45: 600000 | AF45: 60000 | AG45: 0 | AH45: 540000 | AI45: 540000 | AJ45: =SUM(AJ33:AJ44) -> 0 | AK45: 0 | AL45: 0 | AM45: 60000 | AN45: 0 | AO45: 600000 | AP45: 57000 | AQ45: 0 | AR45: 0 | AS45: 0 | AT45: 57000 | AU45: 0 | AV45: 0 | AW45: 0 | AX45: 0 | AY45: 0 | AZ45: 0 | BA45: 0 | BB45: =SUM(BB33:BB44) -> 0
O46: =O45-O19 -> 0 | Q46: =Q45-Q19 -> -31500000 | R46: =R45-R19 -> 0 | S46: 0 | T46: -6300000 | U46: 0 | V46: 0 | W46: 0 | X46: 0 | Y46: 0 | Z46: 0 | AA46: 0 | AB46: 0 | AC46: 0 | AD46: 0 | AE46: =AE45-AE19 -> 0 | AF46: 0 | AG46: =AG45-AG8 -> 0 | AH46: 0 | AI46: 0 | AJ46: =AJ45-AJ18 -> 0 | AK46: 0 | AL46: =AL45-AL8 -> 0 | AM46: 0 | AN46: 0 | AO46: 0 | AP46: 0 | AQ46: 0 | AR46: 0 | AS46: 0 | AT46: 0 | AU46: 0 | AV46: 0 | AW46: 0 | AX46: 0 | AY46: =AY45-AY19 -> 0 | AZ46: 0 | BA46: 0 | BB46: =BB45-BB19 -> 0

Sheet регистр200.05
A1: № | B1: Ф.И.О. физ. лица | C1: ИИН физ. лица | D1: Статус | E1: категория физического лица | F1: отмечается если физическое лицо в соответствии со статьей 6 Конституционного закона является работником участника или органа МФЦА | G1: отмечается если физическое лицо осуществляет деятельность в структурном подразделении, не признанном налоговым агентом | H1: Начисленные доходы | I1: указывается корректировка согласно пункту 1 статьи 341 Налогового кодекса. | J1: корректировка согласно пункту 1 статьи 341 Налогового кодекса | K1: ОПВ | L1: Взносы на ОСМС | M1: указывается налоговые стандартные вычеты, согласно пункта 1 статьи 346 Налогового кодекса. | N1: налоговые стандартные вычеты, согласно подпунктам 2 и 3 пункта 1 статьи 346 Налогового кодекса | O1: прочие налоговые вычеты | P1: сумма прочих налоговых вычетов | Q1: ИПН к начислению | R1: сумма задолженности по начисленным, но невыплаченным доходам физических лиц за отчетный квартал | S1: Cумма выплаченного дохода | T1: сумма ИПН, подлежащая оплате | U1: сумма ОПВ, подлежащих перечислению | V1: сумма взносов на ОСМС | W1: суммы доходов, не облагаемые социальным налогом | X1: доходы, облагаемые социальным налогом | Y1: Сумма исчисленного соц. Налога | Z1: сумма социальных отчислений | AA1: сумма социального налога, подлежащего уплате в бюджет | AB1: сумма обязательных профессиональных пенсионных взносов | AC1: cумма отчислений на обязательное социальное медицинское страхование | AD1: ОПВ работодателя
A2: A | B2: B | C2: C | D2: D | E2: E | F2: F | G2: G | H2: H | I2: I | J2: J | K2: K | L2: L | M2: м | N2: N | O2: o | P2: P | Q2: Q | R2: R | S2: S | T2: T | U2: U | V2: V | W2: W | X2: Х | Y2: Y | Z2: Z | AA2: AA | AB2: АВ | AC2: АС | AD2: АD
A3: работники
A4: 2 | B4: Первый | H4: =SUMIF(РегистрОПВ!B$14:B$52,регистр200.05!B4,РегистрОПВ!E$14:E$52) -> 1050000 | J4: =SUMIF(РегистрИПН!B$15:B$53,B4,РегистрИПН!E$15:E$53) -> 0 | K4: =SUMIF(РегистрОПВ!B$14:B$52,B4,РегистрОПВ!L$14:L$52) -> 105000 | L4: =SUMIF(РегистрОПВ!B$14:B$52,B4,РегистрОПВ!T$14:T$52) -> 21000 | N4: =SUMIF(РегистрИПН!B$15:B$53,B4,РегистрИПН!F$15:F$53) -> 144900 | Q4: =SUMIF(РегистрИПН!B$15:B$53,B4,РегистрИПН!J$15:J$53) -> 77910 | R4: =РегистрИПН!N41 -> 282030 | S4: =SUMIF(РегистрИПН!B$15:B$53,B4,РегистрИПН!M$15:M$53) -> 830930 | T4: =SUMIF(РегистрИПН!B$15:B$53,РегистрИПН!B15,РегистрИПН!R$15:R$53) -> 78861.1214 | U4: =SUMIF(РегистрОПВ!B$14:B$52,РегистрОПВ!B14,РегистрОПВ!N$14:N$52) -> 104446.5408 | V4: =SUMIF(РегистрОПВ!B$14:B$52,РегистрОПВ!B14,РегистрОПВ!T$14:T$52) -> 21000 | W4: =SUMIF(РегистрСН!B$15:B$53,РегистрСН!B15,РегистрСН!F15:G53) -> 0 | X4: =SUMIF(РегистрСН!B$15:B$53,РегистрСН!B15,РегистрСН!H$15:H$53) -> 924000 | Y4: =Z4+AA4 -> 87780 | Z4: =SUMIF('РегистрСО ОСМС'!B$15:B$53,B4,'РегистрСО ОСМС'!I$15:I$53) -> 33075 | AA4: =SUMIF(РегистрСН!B$15:B$53,B4,РегистрСН!K$15:K$53) -> 54705 | AC4: =SUMIF('РегистрСО ОСМС'!B$15:B$53,B4,'РегистрСО ОСМС'!O$15:O$53) -> 31500 | AD4: =SUMIF(РегистрОПВ!B14:B53,B4,РегистрОПВ!U14:U53) -> 0
A5: 3 | B5: Второй | H5: =SUMIF(РегистрОПВ!B$14:B$52,регистр200.05!B5,РегистрОПВ!E$14:E$52) -> 900000 | J5: =SUMIF(РегистрИПН!B$15:B$53,B5,РегистрИПН!E$15:E$53) -> 0 | K5: =SUMIF(РегистрОПВ!B$14:B$52,B5,РегистрОПВ!L$14:L$52) -> 90000 | L5: =SUMIF(РегистрОПВ!B$14:B$52,B5,РегистрОПВ!T$14:T$52) -> 18000 | N5: =SUMIF(РегистрИПН!B$15:B$53,B5,РегистрИПН!F$15:F$53) -> 144900 | Q5: =SUMIF(РегистрИПН!B$15:B$53,B5,РегистрИПН!J$15:J$53) -> 64710 | R5: =РегистрИПН!N42 -> 242430 | S5: =SUMIF(РегистрИПН!B$15:B$53,B5,РегистрИПН!M$15:M$53) -> 732110 | T5: =SUMIF(РегистрИПН!B$15:B$53,РегистрИПН!B16,РегистрИПН!R$15:R$53) -> 67695.34461 | U5: =SUMIF(РегистрОПВ!B$14:B$52,РегистрОПВ!B15,РегистрОПВ!N$14:N$52) -> 90073.82372 | V5: =SUMIF(РегистрОПВ!B$14:B$52,РегистрОПВ!B15,РегистрОПВ!T$14:T$52) -> 18000 | W5: =SUMIF(РегистрСН!B$15:B$53,РегистрСН!B16,РегистрСН!F16:G54) -> 0 | X5: =SUMIF(РегистрСН!B$15:B$53,РегистрСН!B16,РегистрСН!H$15:H$53) -> 792000 | Y5: =Z5+AA5 -> 75240 | Z5: =SUMIF('РегистрСО ОСМС'!B$15:B$53,B5,'РегистрСО ОСМС'!I$15:I$53) -> 28350 | AA5: =SUMIF(РегистрСН!B$15:B$53,B5,РегистрСН!K$15:K$53) -> 46890 | AC5: =SUMIF('РегистрСО ОСМС'!B$15:B$53,B5,'РегистрСО ОСМС'!O$15:O$53) -> 27000 | AD5: =SUMIF(РегистрОПВ!B15:B54,B5,РегистрОПВ!U15:U54) -> 0
A6: 4 | B6: Третий | H6: =SUMIF(РегистрОПВ!B$14:B$52,регистр200.05!B6,РегистрОПВ!E$14:E$52) -> 840000 | J6: =SUMIF(РегистрИПН!B$15:B$53,B6,РегистрИПН!E$15:E$53) -> 0 | K6: =SUMIF(РегистрОПВ!B$14:B$52,B6,РегистрОПВ!L$14:L$52) -> 84000 | L6: =SUMIF(РегистрОПВ!B$14:B$52,B6,РегистрОПВ!T$14:T$52) -> 16800 | N6: =SUMIF(РегистрИПН!B$15:B$53,B6,РегистрИПН!F$15:F$53) -> 144900 | Q6: =SUMIF(РегистрИПН!B$15:B$53,B6,РегистрИПН!J$15:J$53) -> 59430 | R6: =РегистрИПН!N43 -> 226590 | S6: =SUMIF(РегистрИПН!B$15:B$53,B6,РегистрИПН!M$15:M$53) -> 684230 | T6: =SUMIF(РегистрИПН!B$15:B$53,РегистрИПН!B17,РегистрИПН!R$15:R$53) -> 62426.61732 | U6: =SUMIF(РегистрОПВ!B$14:B$52,РегистрОПВ!B16,РегистрОПВ!N$14:N$52) -> 84068.21956 | V6: =SUMIF(РегистрОПВ!B$14:B$52,РегистрОПВ!B16,РегистрОПВ!T$14:T$52) -> 16800 | W6: =SUMIF(РегистрСН!B$15:B$53,РегистрСН!B17,РегистрСН!F17:G55) -> 0 | X6: =SUMIF(РегистрСН!B$15:B$53,РегистрСН!B17,РегистрСН!H$15:H$53) -> 739200 | Y6: 70224 | Z6: =SUMIF('РегистрСО ОСМС'!B$15:B$53,B6,'РегистрСО ОСМС'!I$15:I$53) -> 26460 | AA6: =SUMIF(РегистрСН!B$15:B$53,B6,РегистрСН!K$15:K$53) -> 43764 | AC6: =SUMIF('РегистрСО ОСМС'!B$15:B$53,B6,'РегистрСО ОСМС'!O$15:O$53) -> 25200 | AD6: =SUMIF(РегистрОПВ!B16:B55,B6,РегистрОПВ!U16:U55) -> 0
A7: 5 | B7: Четвертый | H7: =SUMIF(РегистрОПВ!B$14:B$52,регистр200.05!B7,РегистрОПВ!E$14:E$52) -> 690000 | J7: =SUMIF(РегистрИПН!B$15:B$53,B7,РегистрИПН!E$15:E$53) -> 0 | K7: =SUMIF(РегистрОПВ!B$14:B$52,B7,РегистрОПВ!L$14:L$52) -> 69000 | L7: =SUMIF(РегистрОПВ!B$14:B$52,B7,РегистрОПВ!T$14:T$52) -> 13800 | N7: =SUMIF(РегистрИПН!B$15:B$53,B7,РегистрИПН!F$15:F$53) -> 144900 | Q7: =SUMIF(РегистрИПН!B$15:B$53,B7,РегистрИПН!J$15:J$53) -> 46230 | R7: =РегистрИПН!N44 -> 186990 | S7: =SUMIF(РегистрИПН!B$15:B$53,B7,РегистрИПН!M$15:M$53) -> 564530 | T7: =SUMIF(РегистрИПН!B$15:B$53,РегистрИПН!B18,РегистрИПН!R$15:R$53) -> 49668.85933 | U7: =SUMIF(РегистрОПВ!B$14:B$52,РегистрОПВ!B17,РегистрОПВ!N$14:N$52) -> 69054.21942 | V7: =SUMIF(РегистрОПВ!B$14:B$52,РегистрОПВ!B17,РегистрОПВ!T$14:T$52) -> 13800 | W7: =SUMIF(РегистрСН!B$15:B$53,РегистрСН!B18,РегистрСН!F18:G56) -> 0 | X7: =SUMIF(РегистрСН!B$15:B$53,РегистрСН!B18,РегистрСН!H$15:H$53) -> 607200 | Y7: 57684 | Z7: =SUMIF('РегистрСО ОСМС'!B$15:B$53,B7,'РегистрСО ОСМС'!I$15:I$53) -> 21735 | AA7: =SUMIF(РегистрСН!B$15:B$53,B7,РегистрСН!K$15:K$53) -> 35949 | AC7: =SUMIF('РегистрСО ОСМС'!B$15:B$53,B7,'РегистрСО ОСМС'!O$15:O$53) -> 20700 | AD7: =SUMIF(РегистрОПВ!B17:B56,B7,РегистрОПВ!U17:U56) -> 0
A8: 6 | B8: Пятый | H8: =SUMIF(РегистрОПВ!B$14:B$52,регистр200.05!B8,РегистрОПВ!E$14:E$52) -> 540000 | J8: =SUMIF(РегистрИПН!B$15:B$53,B8,РегистрИПН!E$15:E$53) -> 0 | K8: =SUMIF(РегистрОПВ!B$14:B$52,B8,РегистрОПВ!L$14:L$52) -> 0 | L8: =SUMIF(РегистрОПВ!B$14:B$52,B8,РегистрОПВ!T$14:T$52) -> 0 | N8: =SUMIF(РегистрИПН!B$15:B$53,B8,РегистрИПН!F$15:F$53) -> 144900 | Q8: =SUMIF(РегистрИПН!B$15:B$53,B8,РегистрИПН!J$15:J$53) -> 39510 | R8: =РегистрИПН!N45 -> 166830 | S8: =SUMIF(РегистрИПН!B$15:B$53,B8,РегистрИПН!M$15:M$53) -> 499910 | T8: =SUMIF(РегистрИПН!B$15:B$53,РегистрИПН!B19,РегистрИПН!R$15:R$53) -> 34453.26301 | U8: =SUMIF(РегистрОПВ!B$14:B$52,РегистрОПВ!B18,РегистрОПВ!N$14:N$52) -> 0 | V8: =SUMIF(РегистрОПВ!B$14:B$52,РегистрОПВ!B18,РегистрОПВ!T$14:T$52) -> 0 | W8: =SUMIF(РегистрСН!B$15:B$53,РегистрСН!B19,РегистрСН!F19:G57) -> 0 | X8: =SUMIF(РегистрСН!B$15:B$53,РегистрСН!B19,РегистрСН!H$15:H$53) -> 540000 | Y8: 51300 | Z8: =SUMIF('РегистрСО ОСМС'!B$15:B$53,B8,'РегистрСО ОСМС'!I$15:I$53) -> 0 | AA8: =SUMIF(РегистрСН!B$15:B$53,B8,РегистрСН!K$15:K$53) -> 51300 | AC8: =SUMIF('РегистрСО ОСМС'!B$15:B$53,B8,'РегистрСО ОСМС'!O$15:O$53) -> 0 | AD8: =SUMIF(РегистрОПВ!B18:B57,B8,РегистрОПВ!U18:U57) -> 0
A9: 7 | B9: Шестой | H9: =SUMIF(РегистрОПВ!B$14:B$52,регистр200.05!B9,РегистрОПВ!E$14:E$52) -> 300000 | J9: =SUMIF(РегистрИПН!B$15:B$53,B9,РегистрИПН!E$15:E$53) -> 0 | K9: =SUMIF(РегистрОПВ!B$14:B$52,B9,РегистрОПВ!L$14:L$52) -> 0 | L9: =SUMIF(РегистрОПВ!B$14:B$52,B9,РегистрОПВ!T$14:T$52) -> 0 | N9: =SUMIF(РегистрИПН!B$15:B$53,B9,РегистрИПН!F$15:F$53) -> 300000 | Q9: =SUMIF(РегистрИПН!B$15:B$53,B9,РегистрИПН!J$15:J$53) -> 0 | R9: =РегистрИПН!N46 -> 100000 | S9: =SUMIF(РегистрИПН!B$15:B$53,B9,РегистрИПН!M$15:M$53) -> 300000 | T9: =SUMIF(РегистрИПН!B$15:B$53,РегистрИПН!B20,РегистрИПН!R$15:R$53) -> 0 | U9: =SUMIF(РегистрОПВ!B$14:B$52,РегистрОПВ!B19,РегистрОПВ!N$14:N$52) -> 0 | V9: =SUMIF(РегистрОПВ!B$14:B$52,РегистрОПВ!B19,РегистрОПВ!T$14:T$52) -> 0 | W9: =SUMIF(РегистрСН!B$15:B$53,РегистрСН!B20,РегистрСН!F20:G58) -> 0 | X9: =SUMIF(РегистрСН!B$15:B$53,РегистрСН!B20,РегистрСН!H$15:H$53) -> 300000 | Y9: 28500 | Z9: =SUMIF('РегистрСО ОСМС'!B$15:B$53,B9,'РегистрСО ОСМС'!I$15:I$53) -> 10500 | AA9: =SUMIF(РегистрСН!B$15:B$53,B9,РегистрСН!K$15:K$53) -> 18000 | AC9: =SUMIF('РегистрСО ОСМС'!B$15:B$53,B9,'РегистрСО ОСМС'!O$15:O$53) -> 0 | AD9: =SUMIF(РегистрОПВ!B19:B58,B9,РегистрОПВ!U19:U58) -> 0
A10: 8 | H10: =SUMIF(РегистрОПВ!B$14:B$52,регистр200.05!B10,РегистрОПВ!E$14:E$52) -> 0 | J10: =SUMIF(РегистрИПН!B$15:B$53,B10,РегистрИПН!E$15:E$53) -> 0 | K10: =SUMIF(РегистрОПВ!B$14:B$52,B10,РегистрОПВ!L$14:L$52) -> 0 | L10: =SUMIF(РегистрОПВ!B$14:B$52,B10,РегистрОПВ!T$14:T$52) -> 0 | N10: =SUMIF(РегистрИПН!B$15:B$53,B10,РегистрИПН!F$15:F$53) -> 0 | Q10: =SUMIF(РегистрИПН!B$15:B$53,B10,РегистрИПН!J$15:J$53) -> 0 | R10: =РегистрИПН!N47 -> 0 | S10: =SUMIF(РегистрИПН!B$15:B$53,B10,РегистрИПН!M$15:M$53) -> 0 | T10: =SUMIF(РегистрИПН!B$15:B$53,РегистрИПН!B21,РегистрИПН!R$15:R$53) -> 0 | U10: =SUMIF(РегистрОПВ!B$14:B$52,РегистрОПВ!B20,РегистрОПВ!N$14:N$52) -> 0 | V10: =SUMIF(РегистрОПВ!B$14:B$52,РегистрОПВ!B20,РегистрОПВ!T$14:T$52) -> 0 | W10: =SUMIF(РегистрСН!B$15:B$53,РегистрСН!B21,РегистрСН!F21:G59) -> 0 | X10: =SUMIF(РегистрСН!B$15:B$53,РегистрСН!B21,РегистрСН!H$15:H$53) -> 0 | Y10: 0 | Z10: =SUMIF('РегистрСО ОСМС'!B$15:B$53,B10,'РегистрСО ОСМС'!I$15:I$53) -> 0 | AA10: =SUMIF(РегистрСН!B$15:B$53,B10,РегистрСН!K$15:K$53) -> 0 | AC10: =SUMIF('РегистрСО ОСМС'!B$15:B$53,B10,'РегистрСО ОСМС'!O$15:O$53) -> 0 | AD10: =SUMIF(РегистрОПВ!B20:B59,B10,РегистрОПВ!U20:U59) -> 0
A11: 9 | H11: =SUMIF(РегистрОПВ!B$14:B$52,регистр200.05!B11,РегистрОПВ!E$14:E$52) -> 0 | J11: =SUMIF(РегистрИПН!B$15:B$53,B11,РегистрИПН!E$15:E$53) -> 0 | K11: =SUMIF(РегистрОПВ!B$14:B$52,B11,РегистрОПВ!L$14:L$52) -> 0 | L11: =SUMIF(РегистрОПВ!B$14:B$52,B11,РегистрОПВ!T$14:T$52) -> 0 | N11: =SUMIF(РегистрИПН!B$15:B$53,B11,РегистрИПН!F$15:F$53) -> 0 | Q11: =SUMIF(РегистрИПН!B$15:B$53,B11,РегистрИПН!J$15:J$53) -> 0 | R11: =РегистрИПН!N48 -> 0 | S11: =SUMIF(РегистрИПН!B$15:B$53,B11,РегистрИПН!M$15:M$53) -> 0 | T11: =SUMIF(РегистрИПН!B$15:B$53,РегистрИПН!B22,РегистрИПН!R$15:R$53) -> 0 | U11: =SUMIF(РегистрОПВ!B$14:B$52,РегистрОПВ!B21,РегистрОПВ!N$14:N$52) -> 0 | V11: =SUMIF(РегистрОПВ!B$14:B$52,РегистрОПВ!B21,РегистрОПВ!T$14:T$52) -> 0 | W11: =SUMIF(РегистрСН!B$15:B$53,РегистрСН!B22,РегистрСН!F22:G60) -> 0 | X11: =SUMIF(РегистрСН!B$15:B$53,РегистрСН!B22,РегистрСН!H$15:H$53) -> 0 | Y11: 0 | Z11: =SUMIF('РегистрСО ОСМС'!B$15:B$53,B11,'РегистрСО ОСМС'!I$15:I$53) -> 0 | AA11: =SUMIF(РегистрСН!B$15:B$53,B11,РегистрСН!K$15:K$53) -> 0 | AC11: =SUMIF('РегистрСО ОСМС'!B$15:B$53,B11,'РегистрСО ОСМС'!O$15:O$53) -> 0 | AD11: =SUMIF(РегистрОПВ!B21:B60,B11,РегистрОПВ!U21:U60) -> 0
A12: 10 | H12: =SUMIF(РегистрОПВ!B$14:B$52,регистр200.05!B12,РегистрОПВ!E$14:E$52) -> 0 | J12: =SUMIF(РегистрИПН!B$15:B$53,B12,РегистрИПН!E$15:E$53) -> 0 | K12: =SUMIF(РегистрОПВ!B$14:B$52,B12,РегистрОПВ!L$14:L$52) -> 0 | L12: =SUMIF(РегистрОПВ!B$14:B$52,B12,РегистрОПВ!T$14:T$52) -> 0 | N12: =SUMIF(РегистрИПН!B$15:B$53,B12,РегистрИПН!F$15:F$53) -> 0 | Q12: =SUMIF(РегистрИПН!B$15:B$53,B12,РегистрИПН!J$15:J$53) -> 0 | R12: =РегистрИПН!N49 -> 0 | S12: =SUMIF(РегистрИПН!B$15:B$53,B12,РегистрИПН!M$15:M$53) -> 0 | T12: =SUMIF(РегистрИПН!B$15:B$53,РегистрИПН!B23,РегистрИПН!R$15:R$53) -> 0 | U12: =SUMIF(РегистрОПВ!B$14:B$52,РегистрОПВ!B22,РегистрОПВ!N$14:N$52) -> 0 | V12: =SUMIF(РегистрОПВ!B$14:B$52,РегистрОПВ!B22,РегистрОПВ!T$14:T$52) -> 0 | W12: =SUMIF(РегистрСН!B$15:B$53,РегистрСН!B23,РегистрСН!F23:G61) -> 0 | X12: =SUMIF(РегистрСН!B$15:B$53,РегистрСН!B23,РегистрСН!H$15:H$53) -> 0 | Y12: 0 | Z12: =SUMIF('РегистрСО ОСМС'!B$15:B$53,B12,'РегистрСО ОСМС'!I$15:I$53) -> 0 | AA12: =SUMIF(РегистрСН!B$15:B$53,B12,РегистрСН!K$15:K$53) -> 0 | AC12: =SUMIF('РегистрСО ОСМС'!B$15:B$53,B12,'РегистрСО ОСМС'!O$15:O$53) -> 0 | AD12: =SUMIF(РегистрОПВ!B22:B61,B12,РегистрОПВ!U22:U61) -> 0
A13: 11 | H13: =SUMIF(РегистрОПВ!B$14:B$52,регистр200.05!B13,РегистрОПВ!E$14:E$52) -> 0 | J13: =SUMIF(РегистрИПН!B$15:B$53,B13,РегистрИПН!E$15:E$53) -> 0 | K13: =SUMIF(РегистрОПВ!B$14:B$52,B13,РегистрОПВ!L$14:L$52) -> 0 | L13: =SUMIF(РегистрОПВ!B$14:B$52,B13,РегистрОПВ!T$14:T$52) -> 0 | N13: =SUMIF(РегистрИПН!B$15:B$53,B13,РегистрИПН!F$15:F$53) -> 0 | Q13: =SUMIF(РегистрИПН!B$15:B$53,B13,РегистрИПН!J$15:J$53) -> 0 | R13: =РегистрИПН!N50 -> 0 | S13: =SUMIF(РегистрИПН!B$15:B$53,B13,РегистрИПН!M$15:M$53) -> 0 | T13: =SUMIF(РегистрИПН!B$15:B$53,РегистрИПН!B24,РегистрИПН!R$15:R$53) -> 0 | U13: =SUMIF(РегистрОПВ!B$14:B$52,РегистрОПВ!B23,РегистрОПВ!N$14:N$52) -> 0 | V13: =SUMIF(РегистрОПВ!B$14:B$52,РегистрОПВ!B23,РегистрОПВ!T$14:T$52) -> 0 | W13: =SUMIF(РегистрСН!B$15:B$53,РегистрСН!B24,РегистрСН!F24:G62) -> 0 | X13: =SUMIF(РегистрСН!B$15:B$53,РегистрСН!B24,РегистрСН!H$15:H$53) -> 0 | Y13: 0 | Z13: =SUMIF('РегистрСО ОСМС'!B$15:B$53,B13,'РегистрСО ОСМС'!I$15:I$53) -> 0 | AA13: =SUMIF(РегистрСН!B$15:B$53,B13,РегистрСН!K$15:K$53) -> 0 | AC13: =SUMIF('РегистрСО ОСМС'!B$15:B$53,B13,'РегистрСО ОСМС'!O$15:O$53) -> 0 | AD13: =SUMIF(РегистрОПВ!B23:B62,B13,РегистрОПВ!U23:U62) -> 0
A14: 12 | H14: =SUMIF(РегистрОПВ!B$14:B$52,регистр200.05!B14,РегистрОПВ!E$14:E$52) -> 0 | J14: =SUMIF(РегистрИПН!B$15:B$53,B14,РегистрИПН!E$15:E$53) -> 0 | K14: =SUMIF(РегистрОПВ!B$14:B$52,B14,РегистрОПВ!L$14:L$52) -> 0 | L14: =SUMIF(РегистрОПВ!B$14:B$52,B14,РегистрОПВ!T$14:T$52) -> 0 | N14: =SUMIF(РегистрИПН!B$15:B$53,B14,РегистрИПН!F$15:F$53) -> 0 | Q14: =SUMIF(РегистрИПН!B$15:B$53,B14,РегистрИПН!J$15:J$53) -> 0 | R14: =РегистрИПН!N51 -> 0 | S14: =SUMIF(РегистрИПН!B$15:B$53,B14,РегистрИПН!M$15:M$53) -> 0 | T14: =SUMIF(РегистрИПН!B$15:B$53,РегистрИПН!B25,РегистрИПН!R$15:R$53) -> 0 | U14: =SUMIF(РегистрОПВ!B$14:B$52,РегистрОПВ!B24,РегистрОПВ!N$14:N$52) -> 0 | V14: =SUMIF(РегистрОПВ!B$14:B$52,РегистрОПВ!B24,РегистрОПВ!T$14:T$52) -> 0 | W14: =SUMIF(РегистрСН!B$15:B$53,РегистрСН!B25,РегистрСН!F25:G63) -> 0 | X14: =SUMIF(РегистрСН!B$15:B$53,РегистрСН!B25,РегистрСН!H$15:H$53) -> 0 | Y14: 0 | Z14: =SUMIF('РегистрСО ОСМС'!B$15:B$53,B14,'РегистрСО ОСМС'!I$15:I$53) -> 0 | AA14: =SUMIF(РегистрСН!B$15:B$53,B14,РегистрСН!K$15:K$53) -> 0 | AC14: =SUMIF('РегистрСО ОСМС'!B$15:B$53,B14,'РегистрСО ОСМС'!O$15:O$53) -> 0 | AD14: =SUMIF(РегистрОПВ!B24:B63,B14,РегистрОПВ!U24:U63) -> 0
A15: 13 | K15: =SUMIF(РегистрОПВ!B$14:B$52,B15,РегистрОПВ!L$14:L$52) -> 0 | AD15: =SUMIF(РегистрОПВ!B25:B64,B15,РегистрОПВ!U25:U64) -> 0
B16: итого | H16: =SUM(H4:H15) -> 4320000 | J16: =SUM(J4:J15) -> 0 | K16: =SUM(K4:K15) -> 348000 | L16: 69600 | N16: 1024500 | P16: 0 | Q16: 287790 | R16: 1204870 | S16: 3611710 | T16: 293105.2057 | U16: 347642.8035 | V16: 69600 | W16: 0 | X16: 3902400 | Y16: 370728 | Z16: =SUM(Z4:Z15) -> 120120 | AA16: 250608 | AB16: =SUM(AB4:AB15) -> 0 | AC16: =SUM(AC4:AC15) -> 104400 | AD16: =SUM(AD4:AD15) -> 0
B17: проверка (должно быть равно 0) | H17: =H16-РегистрИПН!D54 -> 0 | J17: =J16-РегистрИПН!E54 -> 0 | K17: =РегистрИПН!G54-регистр200.05!K16 -> 0 | L17: =L16-РегистрОПВ!T53 -> 0 | N17: =РегистрИПН!F54-регистр200.05!N16 -> 0 | Q17: =Q16-РегистрИПН!J54 -> 0 | S17: =S16-РегистрИПН!M54 -> 0 | T17: =T16-РегистрИПН!R54 -> 0 | Z17: =регистр200.05!Z16-'РегистрСО ОСМС'!I54 -> 0 | AA17: =AA16-РегистрСН!K54 -> 0 | AC17: =AC16-'РегистрСО ОСМС'!O54 -> 0 | AD17: =AD16-'РегистрСО ОСМС'!P54 -> 0
A18: договора ГПХ
A19: 1 | B19: Восьмой | H19: =SUMIF(ДоговораГПХ!B$9:B$46,B19,ДоговораГПХ!D$9:D$47) -> 250000 | J19: =SUMIF(ДоговораГПХ!B$9:B$46,B19,ДоговораГПХ!P$9:P$46) -> 0 | K19: =SUMIF(ДоговораГПХ!B$9:B$46,B19,ДоговораГПХ!H$9:H$46) -> 0 | L19: =SUMIF(ДоговораГПХ!B$9:B$46,B19,ДоговораГПХ!AG$9:AG$46) -> 0 | N19: =SUMIF(ДоговораГПХ!B$9:B$46,B19,ДоговораГПХ!Q$9:Q$46) -> 0 | Q19: =SUMIF(ДоговораГПХ!B$9:B$46,ДоговораГПХ!B9,ДоговораГПХ!T$9:T$46) -> 25000 | S19: =SUMIF(ДоговораГПХ!B$9:B$46,B19,ДоговораГПХ!V$9:V$46) -> 225000 | T19: =SUMIF(ДоговораГПХ!B$9:B$46,B19,ДоговораГПХ!AA$9:AA$46) -> 25000
A20: 2 | H20: =SUMIF(ДоговораГПХ!B$9:B$46,B20,ДоговораГПХ!D$9:D$47) -> 0 | J20: =SUMIF(ДоговораГПХ!B$9:B$46,B20,ДоговораГПХ!P$9:P$46) -> 0 | K20: =SUMIF(ДоговораГПХ!B$9:B$46,B20,ДоговораГПХ!H$9:H$46) -> 0 | L20: =SUMIF(ДоговораГПХ!B$9:B$46,B20,ДоговораГПХ!AG$9:AG$46) -> 0 | N20: =SUMIF(ДоговораГПХ!B$9:B$46,B20,ДоговораГПХ!Q$9:Q$46) -> 0 | Q20: =SUMIF(ДоговораГПХ!B$9:B$46,ДоговораГПХ!B10,ДоговораГПХ!T$9:T$46) -> 0 | S20: =SUMIF(ДоговораГПХ!B$9:B$46,B20,ДоговораГПХ!V$9:V$46) -> 0 | T20: =SUMIF(ДоговораГПХ!B$9:B$46,B20,ДоговораГПХ!AA$9:AA$46) -> 0
A21: 3 | H21: =SUMIF(ДоговораГПХ!B$9:B$46,B21,ДоговораГПХ!D$9:D$47) -> 0 | J21: =SUMIF(ДоговораГПХ!B$9:B$46,B21,ДоговораГПХ!P$9:P$46) -> 0 | K21: =SUMIF(ДоговораГПХ!B$9:B$46,B21,ДоговораГПХ!H$9:H$46) -> 0 | L21: =SUMIF(ДоговораГПХ!B$9:B$46,B21,ДоговораГПХ!AG$9:AG$46) -> 0 | N21: =SUMIF(ДоговораГПХ!B$9:B$46,B21,ДоговораГПХ!Q$9:Q$46) -> 0 | Q21: =SUMIF(ДоговораГПХ!B$9:B$46,ДоговораГПХ!B11,ДоговораГПХ!T$9:T$46) -> 0 | S21: =SUMIF(ДоговораГПХ!B$9:B$46,B21,ДоговораГПХ!V$9:V$46) -> 0 | T21: =SUMIF(ДоговораГПХ!B$9:B$46,B21,ДоговораГПХ!AA$9:AA$46) -> 0
A22: 4 | H22: =SUMIF(ДоговораГПХ!B$9:B$46,B22,ДоговораГПХ!D$9:D$47) -> 0 | J22: =SUMIF(ДоговораГПХ!B$9:B$46,B22,ДоговораГПХ!P$9:P$46) -> 0 | K22: =SUMIF(ДоговораГПХ!B$9:B$46,B22,ДоговораГПХ!H$9:H$46) -> 0 | L22: =SUMIF(ДоговораГПХ!B$9:B$46,B22,ДоговораГПХ!AG$9:AG$46) -> 0 | N22: =SUMIF(ДоговораГПХ!B$9:B$46,B22,ДоговораГПХ!Q$9:Q$46) -> 0 | Q22: =SUMIF(ДоговораГПХ!B$9:B$46,ДоговораГПХ!B12,ДоговораГПХ!T$9:T$46) -> 0 | S22: =SUMIF(ДоговораГПХ!B$9:B$46,B22,ДоговораГПХ!V$9:V$46) -> 0 | T22: =SUMIF(ДоговораГПХ!B$9:B$46,B22,ДоговораГПХ!AA$9:AA$46) -> 0
A23: 5 | H23: =SUMIF(ДоговораГПХ!B$9:B$46,B23,ДоговораГПХ!D$9:D$47) -> 0 | J23: =SUMIF(ДоговораГПХ!B$9:B$46,B23,ДоговораГПХ!P$9:P$46) -> 0 | K23: =SUMIF(ДоговораГПХ!B$9:B$46,B23,ДоговораГПХ!H$9:H$46) -> 0 | L23: =SUMIF(ДоговораГПХ!B$9:B$46,B23,ДоговораГПХ!AG$9:AG$46) -> 0 | N23: =SUMIF(ДоговораГПХ!B$9:B$46,B23,ДоговораГПХ!Q$9:Q$46) -> 0 | Q23: =SUMIF(ДоговораГПХ!B$9:B$46,ДоговораГПХ!B13,ДоговораГПХ!T$9:T$46) -> 0 | S23: =SUMIF(ДоговораГПХ!B$9:B$46,B23,ДоговораГПХ!V$9:V$46) -> 0 | T23: =SUMIF(ДоговораГПХ!B$9:B$46,B23,ДоговораГПХ!AA$9:AA$46) -> 0
A24: 6 | H24: =SUMIF(ДоговораГПХ!B$9:B$46,B24,ДоговораГПХ!D$9:D$47) -> 0 | J24: =SUMIF(ДоговораГПХ!B$9:B$46,B24,ДоговораГПХ!P$9:P$46) -> 0 | K24: =SUMIF(ДоговораГПХ!B$9:B$46,B24,ДоговораГПХ!H$9:H$46) -> 0 | L24: =SUMIF(ДоговораГПХ!B$9:B$46,B24,ДоговораГПХ!AG$9:AG$46) -> 0 | N24: =SUMIF(ДоговораГПХ!B$9:B$46,B24,ДоговораГПХ!Q$9:Q$46) -> 0 | Q24: =SUMIF(ДоговораГПХ!B$9:B$46,ДоговораГПХ!B14,ДоговораГПХ!T$9:T$46) -> 0 | S24: =SUMIF(ДоговораГПХ!B$9:B$46,B24,ДоговораГПХ!V$9:V$46) -> 0 | T24: =SUMIF(ДоговораГПХ!B$9:B$46,B24,ДоговораГПХ!AA$9:AA$46) -> 0
A25: 7 | H25: =SUMIF(ДоговораГПХ!B$9:B$46,B25,ДоговораГПХ!D$9:D$47) -> 0 | J25: =SUMIF(ДоговораГПХ!B$9:B$46,B25,ДоговораГПХ!P$9:P$46) -> 0 | K25: =SUMIF(ДоговораГПХ!B$9:B$46,B25,ДоговораГПХ!H$9:H$46) -> 0 | L25: =SUMIF(ДоговораГПХ!B$9:B$46,B25,ДоговораГПХ!AG$9:AG$46) -> 0 | N25: =SUMIF(ДоговораГПХ!B$9:B$46,B25,ДоговораГПХ!Q$9:Q$46) -> 0 | Q25: =SUMIF(ДоговораГПХ!B$9:B$46,ДоговораГПХ!B15,ДоговораГПХ!T$9:T$46) -> 0 | S25: =SUMIF(ДоговораГПХ!B$9:B$46,B25,ДоговораГПХ!V$9:V$46) -> 0 | T25: =SUMIF(ДоговораГПХ!B$9:B$46,B25,ДоговораГПХ!AA$9:AA$46) -> 0
A26: 8 | H26: =SUMIF(ДоговораГПХ!B$9:B$46,B26,ДоговораГПХ!D$9:D$47) -> 0 | J26: =SUMIF(ДоговораГПХ!B$9:B$46,B26,ДоговораГПХ!P$9:P$46) -> 0 | K26: =SUMIF(ДоговораГПХ!B$9:B$46,B26,ДоговораГПХ!H$9:H$46) -> 0 | L26: =SUMIF(ДоговораГПХ!B$9:B$46,B26,ДоговораГПХ!AG$9:AG$46) -> 0 | N26: =SUMIF(ДоговораГПХ!B$9:B$46,B26,ДоговораГПХ!Q$9:Q$46) -> 0 | Q26: =SUMIF(ДоговораГПХ!B$9:B$46,ДоговораГПХ!B16,ДоговораГПХ!T$9:T$46) -> 0 | S26: =SUMIF(ДоговораГПХ!B$9:B$46,B26,ДоговораГПХ!V$9:V$46) -> 0 | T26: =SUMIF(ДоговораГПХ!B$9:B$46,B26,ДоговораГПХ!AA$9:AA$46) -> 0
A27: 9 | H27: =SUMIF(ДоговораГПХ!B$9:B$46,B27,ДоговораГПХ!D$9:D$47) -> 0 | J27: =SUMIF(ДоговораГПХ!B$9:B$46,B27,ДоговораГПХ!P$9:P$46) -> 0 | K27: =SUMIF(ДоговораГПХ!B$9:B$46,B27,ДоговораГПХ!H$9:H$46) -> 0 | L27: =SUMIF(ДоговораГПХ!B$9:B$46,B27,ДоговораГПХ!AG$9:AG$46) -> 0 | N27: =SUMIF(ДоговораГПХ!B$9:B$46,B27,ДоговораГПХ!Q$9:Q$46) -> 0 | Q27: =SUMIF(ДоговораГПХ!B$9:B$46,ДоговораГПХ!B17,ДоговораГПХ!T$9:T$46) -> 0 | S27: =SUMIF(ДоговораГПХ!B$9:B$46,B27,ДоговораГПХ!V$9:V$46) -> 0 | T27: =SUMIF(ДоговораГПХ!B$9:B$46,B27,ДоговораГПХ!AA$9:AA$46) -> 0
A28: 10 | H28: =SUMIF(ДоговораГПХ!B$9:B$46,B28,ДоговораГПХ!D$9:D$47) -> 0 | J28: =SUMIF(ДоговораГПХ!B$9:B$46,B28,ДоговораГПХ!P$9:P$46) -> 0 | K28: =SUMIF(ДоговораГПХ!B$9:B$46,B28,ДоговораГПХ!H$9:H$46) -> 0 | L28: =SUMIF(ДоговораГПХ!B$9:B$46,B28,ДоговораГПХ!AG$9:AG$46) -> 0 | N28: =SUMIF(ДоговораГПХ!B$9:B$46,B28,ДоговораГПХ!Q$9:Q$46) -> 0 | Q28: =SUMIF(ДоговораГПХ!B$9:B$46,ДоговораГПХ!B18,ДоговораГПХ!T$9:T$46) -> 0 | S28: =SUMIF(ДоговораГПХ!B$9:B$46,B28,ДоговораГПХ!V$9:V$46) -> 0 | T28: =SUMIF(ДоговораГПХ!B$9:B$46,B28,ДоговораГПХ!AA$9:AA$46) -> 0
A29: 11 | H29: =SUMIF(ДоговораГПХ!B$9:B$46,B29,ДоговораГПХ!D$9:D$47) -> 0 | J29: =SUMIF(ДоговораГПХ!B$9:B$46,B29,ДоговораГПХ!P$9:P$46) -> 0 | K29: =SUMIF(ДоговораГПХ!B$9:B$46,B29,ДоговораГПХ!H$9:H$46) -> 0 | L29: =SUMIF(ДоговораГПХ!B$9:B$46,B29,ДоговораГПХ!AG$9:AG$46) -> 0 | N29: =SUMIF(ДоговораГПХ!B$9:B$46,B29,ДоговораГПХ!Q$9:Q$46) -> 0 | Q29: =SUMIF(ДоговораГПХ!B$9:B$46,ДоговораГПХ!B19,ДоговораГПХ!T$9:T$46) -> 0 | S29: =SUMIF(ДоговораГПХ!B$9:B$46,B29,ДоговораГПХ!V$9:V$46) -> 0 | T29: =SUMIF(ДоговораГПХ!B$9:B$46,B29,ДоговораГПХ!AA$9:AA$46) -> 0
A30: 12 | H30: =SUMIF(ДоговораГПХ!B$9:B$46,B30,ДоговораГПХ!D$9:D$47) -> 0 | J30: =SUMIF(ДоговораГПХ!B$9:B$46,B30,ДоговораГПХ!P$9:P$46) -> 0 | K30: =SUMIF(ДоговораГПХ!B$9:B$46,B30,ДоговораГПХ!H$9:H$46) -> 0 | L30: =SUMIF(ДоговораГПХ!B$9:B$46,B30,ДоговораГПХ!AG$9:AG$46) -> 0 | N30: =SUMIF(ДоговораГПХ!B$9:B$46,B30,ДоговораГПХ!Q$9:Q$46) -> 0 | Q30: =SUMIF(ДоговораГПХ!B$9:B$46,ДоговораГПХ!B20,ДоговораГПХ!T$9:T$46) -> 0 | S30: =SUMIF(ДоговораГПХ!B$9:B$46,B30,ДоговораГПХ!V$9:V$46) -> 0 | T30: =SUMIF(ДоговораГПХ!B$9:B$46,B30,ДоговораГПХ!AA$9:AA$46) -> 0
B32: итого | H32: =SUM(H19:H31) -> 250000 | J32: =SUM(J19:J31) -> 0 | K32: 0 | L32: 0 | N32: 0 | P32: 0 | Q32: 25000 | S32: 225000 | T32: 25000 | U32: 0 | V32: 0 | W32: 0 | X32: 0 | Y32: 0 | Z32: =SUM(Z19:Z31) -> 0 | AA32: =SUM(AA19:AA31) -> 0 | AB32: 0 | AC32: 0 | AD32: =SUM(AD19:AD31) -> 0
B33: проверка (должно быть равно 0) | H33: =H32-ДоговораГПХ!D47 -> 0 | J33: =ДоговораГПХ!P47 -> 0 | K33: =K32-ДоговораГПХ!H47 -> 0 | L33: =L32-ДоговораГПХ!AG47 -> 0 | N33: =N32-ДоговораГПХ!Q47 -> 0 | Q33: =Q32-ДоговораГПХ!T47 -> 0 | S33: =S32-ДоговораГПХ!V47 -> 0 | T33: =T32-ДоговораГПХ!AA47 -> 0
B34: итого приложение 200.05 | H34: =H16+H32 -> 4570000 | J34: =J16+J32 -> 0 | K34: 348000 | L34: 69600 | N34: 1024500 | P34: 0 | Q34: 312790 | S34: 3836710 | T34: =T16+T32 -> 318105.2057 | U34: 347642.8035 | V34: 69600 | W34: 0 | X34: 3902400 | Y34: 370728 | Z34: 120120 | AA34: 250608 | AB34: 0 | AC34: 104400 | AD34: =AD16+AD32 -> 0
B39: 1-пенсионер
B40: 2-инвалид
B41: 3-лицо, приравненное к участникам Великой Отечественной войны
B42: 4-родитель, опекун, попечитель ребенка-инвалида, не достигшего восемнадцатилетнего возраста, или лица, признанного инвалидом по причине «инвалид с детства»;
B43: 5-усыновитель (удочеритель) ребенка, не достигшего восемнадцатилетнего возраста
B44: 6-приемный родитель, принявший детей-сирот и детей, оставшихся без попечения родителей, в приемную семью.

Sheet РегистрИПН
A1: Форма налогового регистра по индивидуальному подоходному налогу
A3: 1. | B3: РНН
A4: 2. | B4: ИИН/БИН | C4: ='200.00 200.01'!E10 -> 152152152
B5: (при их наличии)
A6: 3. | B6: Ф.И.О. или наименование налогоплательщика
A7: 4. | B7: Налоговый период (квартал) | C7: ='200.00 200.01'!J12 -> 2 | E7: год | F7: ='200.00 200.01'!M12 -> 2023
A9: № п/п | B9: Наименование | C9: ИИН | D9: Начислено доходов | E9: Корректировка доходов и доходы, не подлежащие налогообложению ИПН, кроме ОПВ | F9: Налоговые вычеты | G9: ОПВ | H9: Взносы ОСМС | I9: Доходы, облагаемые ИПН | J9: ИПН | K9: Выплаченные доходы | P9: Расчет суммы ИПН, подлежащей перечислению
K10: Задолженность по невыплаченным доходам на начало месяца | L10: Доход к выплате за отчетный месяц | M10: Выплачено доходов | N10: Задолженность по невыплаченным доходам на конец месяца | O10: Удельный вес выплаченных доходов к доходам, причитающимся к выплате | P10: Задолженность по ИПН на начало месяца | Q10: Начислено ИПН за отчетный месяц | R10: Сумма ИПН, подлежащего перечислению | S10: Задолженность по ИПН на конец месяца
A11: 1 | B11: 2 | C11: 3 | D11: 4 | E11: 5 | F11: 6 | G11: 7 | I11: 8 | J11: 9 | K11: 10 | L11: 11 | M11: 12 | N11: 13 | O11: 14 | P11: 15 | Q11: 16 | R11: 17 | S11: 18
G12: гр. 11 регистр по расчету ОПВ и взносам ОСМС | I12: гр.4-гр.5-гр.6-гр.7 | J12: гр.8*10% | K12: переносится с предыдущего периода | L12: гр.4-гр.9-гр.7 | M12: Заполняется самостоятельно | N12: гр.10+гр.11-гр.12 | O12: гр.12/(гр.10+гр.11) | P12: переносится с предыдущего периода | Q12: гр.9 | R12: (гр.15+гр.16)*гр.14 | S12: гр.15+гр.16-гр.17
B13: ставки | J13: 0.1
B14: 1 месяц квартала | D14: =SUM(D15:D26) -> 1440000 | E14: 0 | F14: 341500 | G14: 116000 | H14: 23200 | I14: 959300 | J14: =SUM(J15:J26) -> 95930 | K14: =SUM(K15:K26) -> 1222850 | L14: 1204870 | M14: 1201970 | N14: 1225750 | P14: =SUM(P15:P26) -> 96480 | Q14: 95930 | R14: =SUM(R15:R26) -> 95065.47604 | S14: 97344.52396
A15: 1 | B15: =РегистрОПВ!B14 -> Первый | D15: =РегистрОПВ!E14 -> 350000 | F15: 48300 | G15: =РегистрОПВ!L14 -> 35000 | H15: =РегистрОПВ!T14 -> 7000 | I15: =IF((D15-E15-F15-G15-H15)>0,(D15-E15-F15-G15-H15),0) -> 259700 | J15: =IF(D15<=Описание!E$26*25,I15*J$13/10,I15*J$13) -> 25970 | K15: 287750 | L15: =D15-G15-J15-H15 -> 282030 | M15: =287750-20880 -> 266870 | N15: =K15+L15-M15 -> 302910 | O15: =IF(D15=0,0,M15/(K15+L15)) -> 0.4683737583 | P15: 28775 | Q15: =J15 -> 25970 | R15: =IF(N15<=0,(P15+Q15),(P15+Q15)*O15) -> 25641.1214 | S15: =P15+Q15-R15 -> 29103.8786
A16: 2 | B16: =РегистрОПВ!B15 -> Второй | D16: =РегистрОПВ!E15 -> 300000 | F16: 48300 | G16: =РегистрОПВ!L15 -> 30000 | H16: =РегистрОПВ!T15 -> 6000 | I16: =IF((D16-E16-F16-G16-H16)>0,(D16-E16-F16-G16-H16),0) -> 215700 | J16: =IF(D16<=Описание!E$26*25,I16*J$13/10,I16*J$13) -> 21570 | K16: 247250 | L16: =D16-G16-J16-H16 -> 242430 | M16: 247250 | N16: =K16+L16-M16 -> 242430 | O16: =IF(D16=0,0,M16/(K16+L16)) -> 0.5049215814 | P16: 24725 | Q16: =J16 -> 21570 | R16: =IF(N16<=0,(P16+Q16),(P16+Q16)*O16) -> 23375.34461 | S16: =P16+Q16-R16 -> 22919.65539
A17: 3 | B17: =РегистрОПВ!B16 -> Третий | D17: =РегистрОПВ!E16 -> 280000 | F17: 48300 | G17: =РегистрОПВ!L16 -> 28000 | H17: =РегистрОПВ!T16 -> 5600 | I17: 198100 | J17: =IF(D17<=Описание!E$26*25,I17*J$13/10,I17*J$13) -> 19810 | K17: 231050 | L17: 226590 | M17: 231050 | N17: 226590 | O17: =IF(D17=0,0,M17/(K17+L17)) -> 0.5048728258 | P17: 23105 | Q17: =J17 -> 19810 | R17: =IF(N17<=0,(P17+Q17),(P17+Q17)*O17) -> 21666.61732 | S17: 21248.38268
A18: 4 | B18: =РегистрОПВ!B17 -> Четвертый | D18: =РегистрОПВ!E17 -> 230000 | F18: 48300 | G18: =РегистрОПВ!L17 -> 23000 | H18: =РегистрОПВ!T17 -> 4600 | I18: 154100 | J18: =IF(D18<=Описание!E$26*25,I18*J$13/10,I18*J$13) -> 15410 | K18: 190550 | L18: 186990 | M18: 190550 | N18: 186990 | O18: 0.5047147322 | P18: 19875 | Q18: 15410 | R18: 17808.85933 | S18: 17476.14067
A19: 5 | B19: =РегистрОПВ!B18 -> Пятый | D19: =РегистрОПВ!E18 -> 180000 | F19: 48300 | G19: =РегистрОПВ!L18 -> 0 | H19: =РегистрОПВ!T18 -> 0 | I19: 131700 | J19: =IF(D19<=Описание!E$26*25,I19*J$13/10,I19*J$13) -> 13170 | K19: 166250 | L19: 166830 | M19: 166250 | N19: 166830 | O19: 0.4991293383 | Q19: 13170 | R19: 6573.533385 | S19: 6596.466615
A20: 6 | B20: =РегистрОПВ!B19 -> Шестой | D20: =РегистрОПВ!E19 -> 100000 | F20: 100000 | G20: =РегистрОПВ!L19 -> 0 | H20: =РегистрОПВ!T19 -> 0 | I20: 0 | J20: =IF(D20<=Описание!E$26*25,I20*J$13/10,I20*J$13) -> 0 | K20: 100000 | L20: 100000 | M20: 100000 | N20: 100000 | O20: 0.5 | Q20: =J20 -> 0 | R20: 0 | S20: 0
A21: 7 | B21: =РегистрОПВ!B20 -> 0 | D21: =РегистрОПВ!E20 -> 0 | G21: =РегистрОПВ!L20 -> 0 | H21: =РегистрОПВ!T20 -> 0 | I21: =IF((D21-E21-F21-G21-H21)>0,(D21-E21-F21-G21-H21),0) -> 0 | J21: =IF(D21<=Описание!E$26*25,I21*J$13/10,I21*J$13) -> 0 | K21: 0 | L21: 0 | N21: =K21+L21-M21 -> 0 | O21: 0 | Q21: 0 | R21: 0 | S21: 0
A22: 8 | B22: =РегистрОПВ!B21 -> 0 | D22: =РегистрОПВ!E21 -> 0 | G22: =РегистрОПВ!L21 -> 0 | H22: =РегистрОПВ!T21 -> 0 | I22: 0 | J22: =IF(D22<=Описание!E$26*25,I22*J$13/10,I22*J$13) -> 0 | L22: 0 | N22: 0 | O22: 0 | Q22: 0 | R22: 0 | S22: 0
A23: 9 | B23: =РегистрОПВ!B22 -> 0 | D23: =РегистрОПВ!E22 -> 0 | G23: =РегистрОПВ!L22 -> 0 | H23: =РегистрОПВ!T22 -> 0 | I23: 0 | J23: =IF(D23<=Описание!E$26*25,I23*J$13/10,I23*J$13) -> 0 | L23: 0 | N23: 0 | O23: 0 | Q23: 0 | R23: 0 | S23: 0
A24: 10 | B24: =РегистрОПВ!B23 -> 0 | D24: =РегистрОПВ!E23 -> 0 | G24: =РегистрОПВ!L23 -> 0 | H24: =РегистрОПВ!T23 -> 0 | I24: 0 | J24: =IF(D24<=Описание!E$26*25,I24*J$13/10,I24*J$13) -> 0 | L24: 0 | N24: 0 | O24: 0 | Q24: 0 | R24: 0 | S24: 0
A25: 11 | B25: =РегистрОПВ!B24 -> 0 | D25: =РегистрОПВ!E24 -> 0 | G25: =РегистрОПВ!L24 -> 0 | H25: =РегистрОПВ!T24 -> 0 | I25: 0 | J25: =IF(D25<=Описание!E$26*25,I25*J$13/10,I25*J$13) -> 0 | L25: 0 | N25: 0 | O25: 0 | Q25: 0 | R25: 0 | S25: 0
A26: 12 | B26: =РегистрОПВ!B25 -> 0 | D26: =РегистрОПВ!E25 -> 0 | G26: =РегистрОПВ!L25 -> 0 | H26: =РегистрОПВ!T25 -> 0 | I26: 0 | J26: =IF(D26<=Описание!E$26*25,I26*J$13/10,I26*J$13) -> 0 | L26: 0 | N26: 0 | O26: 0 | Q26: 0 | R26: 0 | S26: 0
B27: 2 месяц квартала | D27: =SUM(D28:D39) -> 1440000 | E27: 0 | F27: 341500 | G27: 116000 | H27: 23200 | I27: 959300 | J27: =SUM(J28:J39) -> 95930 | K27: =SUM(K28:K39) -> 1204870 | L27: 1204870 | M27: 1204870 | N27: 1204870 | P27: 101150 | Q27: =SUM(Q28:Q39) -> 95930 | R27: 98540 | S27: 98540
A28: 1 | B28: =РегистрОПВ!B27 -> Первый | D28: =РегистрОПВ!E27 -> 350000 | F28: 48300 | G28: =РегистрОПВ!L27 -> 35000 | H28: =РегистрОПВ!T27 -> 7000 | I28: =IF((D28-E28-F28-G28-H28)>0,(D28-E28-F28-G28-H28),0) -> 259700 | J28: =IF(D28<=Описание!E$26*25,I28*J$13/10,I28*J$13) -> 25970 | K28: 282030 | L28: =D28-G28-J28-H28 -> 282030 | M28: 282030 | N28: =K28+L28-M28 -> 282030 | O28: =IF(D28=0,0,M28/(K28+L28)) -> 0.5 | P28: 27250 | Q28: =J28 -> 25970 | R28: =IF(N28<=0,(P28+Q28),(P28+Q28)*O28) -> 26610 | S28: =P28+Q28-R28 -> 26610
A29: 2 | B29: =РегистрОПВ!B28 -> Второй | D29: =РегистрОПВ!E28 -> 300000 | F29: 48300 | G29: =РегистрОПВ!L28 -> 30000 | H29: =РегистрОПВ!T28 -> 6000 | I29: =IF((D29-E29-F29-G29-H29)>0,(D29-E29-F29-G29-H29),0) -> 215700 | J29: =IF(D29<=Описание!E$26*25,I29*J$13/10,I29*J$13) -> 21570 | K29: 242430 | L29: =D29-G29-J29-H29 -> 242430 | M29: 242430 | N29: =K29+L29-M29 -> 242430 | O29: 0.5 | P29: 22750 | Q29: =J29 -> 21570 | R29: 22160 | S29: =P29+Q29-R29 -> 22160
A30: 3 | B30: =РегистрОПВ!B29 -> Третий | D30: =РегистрОПВ!E29 -> 280000 | F30: 48300 | G30: =РегистрОПВ!L29 -> 28000 | H30: =РегистрОПВ!T29 -> 5600 | I30: 198100 | J30: =IF(D30<=Описание!E$26*25,I30*J$13/10,I30*J$13) -> 19810 | K30: 226590 | L30: 226590 | M30: 226590 | N30: =K30+L30-M30 -> 226590 | O30: 0.5 | P30: 20950 | Q30: =J30 -> 19810 | R30: 20380 | S30: 20380
A31: 4 | B31: =РегистрОПВ!B30 -> Четвертый | D31: =РегистрОПВ!E30 -> 230000 | F31: 48300 | G31: =РегистрОПВ!L30 -> 23000 | H31: =РегистрОПВ!T30 -> 4600 | I31: 154100 | J31: =IF(D31<=Описание!E$26*25,I31*J$13/10,I31*J$13) -> 15410 | K31: 186990 | L31: 186990 | M31: 186990 | N31: 186990 | O31: 0.5 | P31: 16450 | Q31: 15410 | R31: 15930 | S31: 15930
A32: 5 | B32: =РегистрОПВ!B31 -> Пятый | D32: =РегистрОПВ!E31 -> 180000 | F32: 48300 | G32: =РегистрОПВ!L31 -> 0 | H32: =РегистрОПВ!T31 -> 0 | I32: 131700 | J32: =IF(D32<=Описание!E$26*25,I32*J$13/10,I32*J$13) -> 13170 | K32: 166830 | L32: 166830 | M32: 166830 | N32: 166830 | O32: 0.5 | P32: 13750 | Q32: 13170 | R32: 13460 | S32: 13460
A33: 6 | B33: =РегистрОПВ!B32 -> Шестой | D33: =РегистрОПВ!E32 -> 100000 | F33: 100000 | G33: =РегистрОПВ!L32 -> 0 | H33: =РегистрОПВ!T32 -> 0 | I33: 0 | J33: =IF(D33<=Описание!E$26*25,I33*J$13/10,I33*J$13) -> 0 | K33: 100000 | L33: 100000 | M33: 100000 | N33: 100000 | O33: 0.5 | Q33: 0 | R33: 0 | S33: 0
A34: 7 | B34: =РегистрОПВ!B33 -> 0 | D34: =РегистрОПВ!E33 -> 0 | G34: =РегистрОПВ!L33 -> 0 | H34: =РегистрОПВ!T33 -> 0 | I34: 0 | J34: =IF(D34<=Описание!E$26*25,I34*J$13/10,I34*J$13) -> 0 | L34: 0 | N34: 0 | O34: 0 | Q34: 0 | R34: 0 | S34: 0
A35: 8 | B35: =РегистрОПВ!B34 -> 0 | D35: =РегистрОПВ!E34 -> 0 | G35: =РегистрОПВ!L34 -> 0 | H35: =РегистрОПВ!T34 -> 0 | I35: 0 | J35: =IF(D35<=Описание!E$26*25,I35*J$13/10,I35*J$13) -> 0 | L35: 0 | N35: 0 | O35: 0 | Q35: 0 | R35: 0 | S35: 0
A36: 9 | B36: =РегистрОПВ!B35 -> 0 | D36: =РегистрОПВ!E35 -> 0 | G36: =РегистрОПВ!L35 -> 0 | H36: =РегистрОПВ!T35 -> 0 | I36: 0 | J36: =IF(D36<=Описание!E$26*25,I36*J$13/10,I36*J$13) -> 0 | L36: 0 | N36: 0 | O36: 0 | Q36: 0 | R36: 0 | S36: 0
A37: 10 | B37: =РегистрОПВ!B36 -> 0 | D37: =РегистрОПВ!E36 -> 0 | G37: =РегистрОПВ!L36 -> 0 | H37: =РегистрОПВ!T36 -> 0 | I37: 0 | J37: =IF(D37<=Описание!E$26*25,I37*J$13/10,I37*J$13) -> 0 | L37: 0 | N37: 0 | O37: 0 | Q37: 0 | R37: 0 | S37: 0
A38: 11 | B38: =РегистрОПВ!B37 -> 0 | D38: =РегистрОПВ!E37 -> 0 | G38: =РегистрОПВ!L37 -> 0 | H38: =РегистрОПВ!T37 -> 0 | I38: 0 | J38: =IF(D38<=Описание!E$26*25,I38*J$13/10,I38*J$13) -> 0 | L38: 0 | N38: 0 | O38: 0 | Q38: 0 | R38: 0 | S38: 0
A39: 12 | B39: =РегистрОПВ!B38 -> 0 | D39: =РегистрОПВ!E38 -> 0 | G39: =РегистрОПВ!L38 -> 0 | H39: =РегистрОПВ!T38 -> 0 | I39: 0 | J39: =IF(D39<=Описание!E$26*25,I39*J$13/10,I39*J$13) -> 0 | L39: 0 | N39: 0 | O39: 0 | Q39: 0 | R39: 0 | S39: 0
B40: 3 месяц квартала | D40: =SUM(D41:D53) -> 1440000 | E40: 0 | F40: 341500 | G40: 116000 | H40: 23200 | I40: 959300 | J40: =SUM(J41:J53) -> 95930 | K40: =SUM(K41:K53) -> 1204870 | L40: 1204870 | M40: =SUM(M41:M53) -> 1204870 | N40: 1204870 | P40: 103069.4593 | Q40: 95930 | R40: 99499.72963 | S40: 99499.72963
A41: 1 | B41: =РегистрОПВ!B40 -> Первый | D41: =РегистрОПВ!E40 -> 350000 | F41: 48300 | G41: =РегистрОПВ!L40 -> 35000 | H41: =РегистрОПВ!T40 -> 7000 | I41: =IF((D41-E41-F41-G41-H41)>0,(D41-E41-F41-G41-H41),0) -> 259700 | J41: =IF(D41<=Описание!E$26*25,I41*J$13/10,I41*J$13) -> 25970 | K41: 282030 | L41: =D41-G41-J41-H41 -> 282030 | M41: 282030 | N41: =K41+L41-M41 -> 282030 | O41: =IF(D41=0,0,M41/(K41+L41)) -> 0.5 | P41: 27250 | Q41: =J41 -> 25970 | R41: =IF(N41<=0,(P41+Q41),(P41+Q41)*O41) -> 26610 | S41: =P41+Q41-R41 -> 26610
A42: 2 | B42: =РегистрОПВ!B41 -> Второй | D42: =РегистрОПВ!E41 -> 300000 | F42: 48300 | G42: =РегистрОПВ!L41 -> 30000 | H42: =РегистрОПВ!T41 -> 6000 | I42: =IF((D42-E42-F42-G42-H42)>0,(D42-E42-F42-G42-H42),0) -> 215700 | J42: =IF(D42<=Описание!E$26*25,I42*J$13/10,I42*J$13) -> 21570 | K42: 242430 | L42: =D42-G42-J42-H42 -> 242430 | M42: 242430 | N42: =K42+L42-M42 -> 242430 | O42: 0.5 | P42: 22750 | Q42: =J42 -> 21570 | R42: 22160 | S42: =P42+Q42-R42 -> 22160
A43: 3 | B43: =РегистрОПВ!B42 -> Третий | D43: =РегистрОПВ!E42 -> 280000 | F43: 48300 | G43: =РегистрОПВ!L42 -> 28000 | H43: =РегистрОПВ!T42 -> 5600 | I43: 198100 | J43: =IF(D43<=Описание!E$26*25,I43*J$13/10,I43*J$13) -> 19810 | K43: 226590 | L43: 226590 | M43: 226590 | N43: 226590 | O43: 0.5 | P43: 20950 | Q43: 19810 | R43: 20380 | S43: 20380
A44: 4 | B44: =РегистрОПВ!B43 -> Четвертый | D44: =РегистрОПВ!E43 -> 230000 | F44: 48300 | G44: =РегистрОПВ!L43 -> 23000 | H44: =РегистрОПВ!T43 -> 4600 | I44: 154100 | J44: =IF(D44<=Описание!E$26*25,I44*J$13/10,I44*J$13) -> 15410 | K44: 186990 | L44: 186990 | M44: 186990 | N44: 186990 | O44: 0.5 | P44: 16450 | Q44: 15410 | R44: 15930 | S44: 15930
A45: 5 | B45: =РегистрОПВ!B44 -> Пятый | D45: =РегистрОПВ!E44 -> 180000 | F45: 48300 | G45: =РегистрОПВ!L44 -> 0 | H45: =РегистрОПВ!T44 -> 0 | I45: 131700 | J45: =IF(D45<=Описание!E$26*25,I45*J$13/10,I45*J$13) -> 13170 | K45: 166830 | L45: 166830 | M45: 166830 | N45: 166830 | O45: 0.5 | P45: 15669.45925 | Q45: 13170 | R45: 14419.72963 | S45: 14419.72963
A46: 6 | B46: =РегистрОПВ!B45 -> Шестой | D46: =РегистрОПВ!E45 -> 100000 | F46: 100000 | G46: =РегистрОПВ!L45 -> 0 | H46: =РегистрОПВ!T45 -> 0 | I46: 0 | J46: =IF(D46<=Описание!E$26*25,I46*J$13/10,I46*J$13) -> 0 | K46: 100000 | L46: 100000 | M46: 100000 | N46: 100000 | O46: 0.5 | Q46: 0 | R46: 0 | S46: 0
A47: 7 | B47: =РегистрОПВ!B46 -> 0 | D47: =РегистрОПВ!E46 -> 0 | G47: =РегистрОПВ!L46 -> 0 | H47: =РегистрОПВ!T46 -> 0 | I47: 0 | J47: =IF(D47<=Описание!E$26*25,I47*J$13/10,I47*J$13) -> 0 | L47: 0 | N47: 0 | O47: 0 | Q47: 0 | R47: 0 | S47: 0
A48: 8 | B48: =РегистрОПВ!B47 -> 0 | D48: =РегистрОПВ!E47 -> 0 | G48: =РегистрОПВ!L47 -> 0 | H48: =РегистрОПВ!T47 -> 0 | I48: 0 | J48: =IF(D48<=Описание!E$26*25,I48*J$13/10,I48*J$13) -> 0 | L48: 0 | N48: 0 | O48: 0 | Q48: 0 | R48: 0 | S48: 0
A49: 9 | B49: =РегистрОПВ!B48 -> 0 | D49: =РегистрОПВ!E48 -> 0 | G49: =РегистрОПВ!L48 -> 0 | H49: =РегистрОПВ!T48 -> 0 | I49: 0 | J49: =IF(D49<=Описание!E$26*25,I49*J$13/10,I49*J$13) -> 0 | L49: 0 | N49: 0 | O49: 0 | Q49: =J49 -> 0 | R49: 0 | S49: 0
A50: 10 | B50: =РегистрОПВ!B49 -> 0 | D50: =РегистрОПВ!E49 -> 0 | G50: =РегистрОПВ!L49 -> 0 | H50: =РегистрОПВ!T49 -> 0 | I50: 0 | J50: =IF(D50<=Описание!E$26*25,I50*J$13/10,I50*J$13) -> 0 | L50: 0 | N50: 0 | O50: 0 | Q50: 0 | R50: 0 | S50: 0
A51: 11 | B51: =РегистрОПВ!B50 -> 0 | D51: =РегистрОПВ!E50 -> 0 | G51: =РегистрОПВ!L50 -> 0 | H51: =РегистрОПВ!T50 -> 0 | I51: 0 | J51: =IF(D51<=Описание!E$26*25,I51*J$13/10,I51*J$13) -> 0 | L51: 0 | N51: 0 | O51: 0 | Q51: 0 | R51: 0 | S51: 0
A52: 12 | B52: =РегистрОПВ!B51 -> 0 | D52: =РегистрОПВ!E51 -> 0 | G52: =РегистрОПВ!L51 -> 0 | H52: =РегистрОПВ!T51 -> 0 | I52: 0 | J52: =IF(D52<=Описание!E$26*25,I52*J$13/10,I52*J$13) -> 0 | L52: 0 | O52: 0 | Q52: 0 | R52: 0 | S52: 0
A53: 13 | B53: =РегистрОПВ!B52 -> 0 | D53: =РегистрОПВ!E52 -> 0 | G53: =РегистрОПВ!L52 -> 0 | H53: =РегистрОПВ!T52 -> 0 | I53: =IF((D53-E53-F53-G53-H53)>0,(D53-E53-F53-G53-H53),0) -> 0 | J53: =IF(D53<=Описание!E$26*25,I53*J$13/10,I53*J$13) -> 0 | L53: 0 | N53: 0 | O53: 0 | Q53: 0 | R53: 0 | S53: 0
B54: Итого(строка заполняется по итогам квартала) | D54: =D40+D27+D14 -> 4320000 | E54: =E40+E27+E14 -> 0 | F54: =F40+F27+F14 -> 1024500 | G54: =G40+G27+G14 -> 348000 | H54: =H40+H27+H14 -> 69600 | I54: =I40+I27+I14 -> 2877900 | J54: =J40+J27+J14 -> 287790 | K54: =K14 -> 1222850 | L54: 3614610 | M54: 3611710 | N54: =N40 -> 1204870 | O54: 0 | P54: =P14 -> 96480 | Q54: =Q40+Q27+Q14 -> 287790 | R54: =R40+R27+R14 -> 293105.2057 | S54: =S40 -> 99499.72963
A57: _______________________________________________________________________________________
A58: (Ф.И.О., подпись руководителя (налогоплательщика), печать)
A59: _______________________________________________________________________________________
A60: (Ф.И.О., подпись главного бухгалтера)
A61: _______________________________________________________________________________________
A62: (Ф.И.О., подпись лица, ответственного за составление налогового регистра)
A63: __________________________________
A64: (Дата составления налогового регистра)

Sheet РегистрСО ОСМС
A1: 1. | B1: РНН
A2: 2. | B2: ИИН/БИН | C2: ='200.00 200.01'!E10 -> 152152152
B3: (при их наличии)
A4: 3. | B4: Ф.И.О. или наименование налогоплательщика | D4: ='200.00 200.01'!J14 -> ТОО ggggggg
A5: 4. | B5: Налоговый период (квартал) | F5: квартал | G5: ='200.00 200.01'!J12 -> 2 | H5: год | I5: ='200.00 200.01'!M12 -> 2023
B8: Расчет социальных отчислений
I9: (тенге)
A10: № | B10: Ф.И.О. сотрудника | C10: Доход сотрудника за отчетный период | D10: Доход сотрудника с которого не удерживаются соцотчисления, кроме ОПВ | E10: ОПВ | F10: Доход сотрудника с которого удерживаются соцотчисления | G10: Максимальный размер ежемесячного дохода, принимаемого для исчисления соцотчислений | H10: Начисленные доходы, с которых исчисляются социальные отчисления | I10: Сумма социальных отчислений за отчетный период | J10: Доход сотрудника с которого не исчисляются ОСМС | K10: Корректировка дохода 90% | L10: Доход сотрудника с которого исчисляются ОСМС | M10: Начисленные доходы, с которых исчисляются ОСМС | N10: принятые доходы, с которых исчисляются ОСМС | O10: Сумма отчислений на обязательное социальное медицинское страхование
A11: 1 | B11: 2 | C11: 4 | D11: 5 | F11: 6 | G11: 7 | H11: 8 | I11: 9 | J11: 10 | K11: 11 | L11: 12 | N11: 13 | O11: 14
C12: гр.4 регистр по ИПН | E12: гр.7 регистр по расчету ОПВ | F12: гр.5-гр.6 | G12: МРЗП х7 | H12: наименьшая из гр.7 и гр. 8 | I12: гр.9 х ставку | M12: не менее 1МРЗП и не более 10МРЗП | N12: не менее 1МРЗП и не более 10МРЗП | O12: гр.12 х ставку
B13: ставка | I13: 0.035 | O13: 0.03
B14: 1 месяц квартала | C14: =SUM(C15:C26) -> 1440000 | D14: 0 | E14: 116000 | F14: 1144000 | H14: 1144000 | I14: 40040 | J14: 100000 | K14: 0 | L14: =SUM(L15:L26) -> 1160000 | M14: =SUM(M15:M26) -> 1160000 | N14: 1160000 | O14: 34800
A15: 1 | B15: =РегистрИПН!B15 -> Первый | C15: =РегистрИПН!D15 -> 350000 | E15: =РегистрОПВ!L14 -> 35000 | F15: =IF(РегистрОПВ!F14=1,0,C15-D15-E15) -> 315000 | G15: =Описание!E$16*7 -> 490000 | H15: =IF(F15=0,0,IF(F15>Описание!E$20,Описание!E$20,IF(F15>Описание!E$16,F15,Описание!E$16))) -> 315000 | I15: =H15*I$13 -> 11025 | K15: =IF(C15<=Описание!E$26*25,РегистрИПН!I15*90/100,0) -> 0 | L15: =IF(РегистрОПВ!F14=1,0,C15-J15-K15) -> 350000 | M15: =IF(L15=0,0,(IF(L15<Описание!E$23,Описание!E$23,(L15)))) -> 350000 | N15: =IF(M15>Описание!E$22,Описание!E$22,M15) -> 350000 | O15: =N15*O$13 -> 10500
A16: 2 | B16: =РегистрИПН!B16 -> Второй | C16: =РегистрИПН!D16 -> 300000 | E16: =РегистрОПВ!L15 -> 30000 | F16: =IF(РегистрОПВ!F15=1,0,C16-D16-E16) -> 270000 | G16: =Описание!E$16*7 -> 490000 | H16: =IF(F16=0,0,IF(F16>Описание!E$20,Описание!E$20,IF(F16>Описание!E$16,F16,Описание!E$16))) -> 270000 | I16: =H16*I$13 -> 9450 | K16: =IF(C16<=Описание!E$26*25,РегистрИПН!I16*90/100,0) -> 0 | L16: =IF(РегистрОПВ!F15=1,0,C16-J16-K16) -> 300000 | M16: =IF(L16=0,0,(IF(L16<Описание!E$23,Описание!E$23,(L16)))) -> 300000 | N16: =IF(M16>Описание!E$22,Описание!E$22,M16) -> 300000 | O16: =N16*O$13 -> 9000
A17: 3 | B17: =РегистрИПН!B17 -> Третий | C17: =РегистрИПН!D17 -> 280000 | E17: =РегистрОПВ!L16 -> 28000 | F17: =IF(РегистрОПВ!F16=1,0,C17-D17-E17) -> 252000 | G17: =Описание!E$16*7 -> 490000 | H17: =IF(F17=0,0,IF(F17>Описание!E$20,Описание!E$20,IF(F17>Описание!E$16,F17,Описание!E$16))) -> 252000 | I17: =H17*I$13 -> 8820 | K17: =IF(C17<=Описание!E$26*25,РегистрИПН!I17*90/100,0) -> 0 | L17: =IF(РегистрОПВ!F16=1,0,C17-J17-K17) -> 280000 | M17: =IF(L17=0,0,(IF(L17<Описание!E$23,Описание!E$23,(L17)))) -> 280000 | N17: =IF(M17>Описание!E$22,Описание!E$22,M17) -> 280000 | O17: 8400
A18: 4 | B18: =РегистрИПН!B18 -> Четвертый | C18: =РегистрИПН!D18 -> 230000 | E18: =РегистрОПВ!L17 -> 23000 | F18: =IF(РегистрОПВ!F17=1,0,C18-D18-E18) -> 207000 | G18: =Описание!E$16*7 -> 490000 | H18: =IF(F18=0,0,IF(F18>Описание!E$20,Описание!E$20,IF(F18>Описание!E$16,F18,Описание!E$16))) -> 207000 | I18: 7245 | K18: =IF(C18<=Описание!E$26*25,РегистрИПН!I18*90/100,0) -> 0 | L18: =IF(РегистрОПВ!F17=1,0,C18-J18-K18) -> 230000 | M18: =IF(L18=0,0,(IF(L18<Описание!E$23,Описание!E$23,(L18)))) -> 230000 | N18: =IF(M18>Описание!E$22,Описание!E$22,M18) -> 230000 | O18: 6900
A19: 5 | B19: =РегистрИПН!B19 -> Пятый | C19: =РегистрИПН!D19 -> 180000 | E19: =РегистрОПВ!L18 -> 0 | F19: =IF(РегистрОПВ!F18=1,0,C19-D19-E19) -> 0 | G19: =Описание!E$16*7 -> 490000 | H19: =IF(F19=0,0,IF(F19>Описание!E$20,Описание!E$20,IF(F19>Описание!E$16,F19,Описание!E$16))) -> 0 | I19: 0 | K19: =IF(C19<=Описание!E$26*25,РегистрИПН!I19*90/100,0) -> 0 | L19: =IF(РегистрОПВ!F18=1,0,C19-J19-K19) -> 0 | M19: =IF(L19=0,0,(IF(L19<Описание!E$23,Описание!E$23,(L19)))) -> 0 | N19: =IF(M19>Описание!E$22,Описание!E$22,M19) -> 0 | O19: 0
A20: 6 | B20: =РегистрИПН!B20 -> Шестой | C20: =РегистрИПН!D20 -> 100000 | E20: =РегистрОПВ!L19 -> 0 | F20: =IF(РегистрОПВ!F19=1,0,C20-D20-E20) -> 100000 | G20: =Описание!E$16*7 -> 490000 | H20: =IF(F20=0,0,IF(F20>Описание!E$20,Описание!E$20,IF(F20>Описание!E$16,F20,Описание!E$16))) -> 100000 | I20: 3500 | J20: 100000 | K20: =IF(C20<=Описание!E$26*25,РегистрИПН!I20*90/100,0) -> 0 | L20: =IF(РегистрОПВ!F19=1,0,C20-J20-K20) -> 0 | M20: =IF(L20=0,0,(IF(L20<Описание!E$23,Описание!E$23,(L20)))) -> 0 | N20: =IF(M20>Описание!E$22,Описание!E$22,M20) -> 0 | O20: 0
A21: 7 | B21: =РегистрИПН!B21 -> 0 | C21: =РегистрИПН!D21 -> 0 | E21: =РегистрОПВ!L20 -> 0 | F21: =IF(РегистрОПВ!F20=1,0,C21-D21-E21) -> 0 | G21: =Описание!E$16*7 -> 490000 | H21: =IF(F21=0,0,IF(F21>Описание!E$20,Описание!E$20,IF(F21>Описание!E$16,F21,Описание!E$16))) -> 0 | I21: 0 | K21: =IF(C21<=Описание!E$26*25,РегистрИПН!I21*90/100,0) -> 0 | L21: =IF(РегистрОПВ!F20=1,0,C21-J21-K21) -> 0 | M21: =IF(L21=0,0,(IF(L21<Описание!E$23,Описание!E$23,(L21)))) -> 0 | N21: =IF(M21>Описание!E$22,Описание!E$22,M21) -> 0 | O21: 0
A22: 8 | B22: =РегистрИПН!B22 -> 0 | C22: =РегистрИПН!D22 -> 0 | E22: =РегистрОПВ!L21 -> 0 | F22: =IF(РегистрОПВ!F21=1,0,C22-D22-E22) -> 0 | G22: =Описание!E$16*7 -> 490000 | H22: =IF(F22=0,0,IF(F22>Описание!E$20,Описание!E$20,IF(F22>Описание!E$16,F22,Описание!E$16))) -> 0 | I22: =H22*I$13 -> 0 | K22: =IF(C22<=Описание!E$26*25,РегистрИПН!I22*90/100,0) -> 0 | L22: =IF(РегистрОПВ!F21=1,0,C22-J22-K22) -> 0 | M22: =IF(L22=0,0,(IF(L22<Описание!E$23,Описание!E$23,(L22)))) -> 0 | N22: =IF(M22>Описание!E$22,Описание!E$22,M22) -> 0 | O22: 0
A23: 9 | B23: =РегистрИПН!B23 -> 0 | C23: =РегистрИПН!D23 -> 0 | E23: =РегистрОПВ!L22 -> 0 | F23: =IF(РегистрОПВ!F22=1,0,C23-D23-E23) -> 0 | G23: =Описание!E$16*7 -> 490000 | H23: =IF(F23=0,0,IF(F23>Описание!E$20,Описание!E$20,IF(F23>Описание!E$16,F23,Описание!E$16))) -> 0 | I23: 0 | K23: =IF(C23<=Описание!E$26*25,РегистрИПН!I23*90/100,0) -> 0 | L23: =IF(РегистрОПВ!F22=1,0,C23-J23-K23) -> 0 | M23: =IF(L23=0,0,(IF(L23<Описание!E$23,Описание!E$23,(L23)))) -> 0 | N23: =IF(M23>Описание!E$22,Описание!E$22,M23) -> 0 | O23: 0
A24: 10 | B24: =РегистрИПН!B24 -> 0 | C24: =РегистрИПН!D24 -> 0 | E24: =РегистрОПВ!L23 -> 0 | F24: =IF(РегистрОПВ!F23=1,0,C24-D24-E24) -> 0 | G24: =Описание!E$16*7 -> 490000 | H24: =IF(F24=0,0,IF(F24>Описание!E$20,Описание!E$20,IF(F24>Описание!E$16,F24,Описание!E$16))) -> 0 | I24: 0 | K24: =IF(C24<=Описание!E$26*25,РегистрИПН!I24*90/100,0) -> 0 | L24: =IF(РегистрОПВ!F23=1,0,C24-J24-K24) -> 0 | M24: =IF(L24=0,0,(IF(L24<Описание!E$23,Описание!E$23,(L24)))) -> 0 | N24: =IF(M24>Описание!E$22,Описание!E$22,M24) -> 0 | O24: 0
A25: 11 | B25: =РегистрИПН!B25 -> 0 | C25: =РегистрИПН!D25 -> 0 | E25: =РегистрОПВ!L24 -> 0 | F25: =IF(РегистрОПВ!F24=1,0,C25-D25-E25) -> 0 | G25: =Описание!E$16*7 -> 490000 | H25: =IF(F25=0,0,IF(F25>Описание!E$20,Описание!E$20,IF(F25>Описание!E$16,F25,Описание!E$16))) -> 0 | I25: 0 | K25: =IF(C25<=Описание!E$26*25,РегистрИПН!I25*90/100,0) -> 0 | L25: =IF(РегистрОПВ!F24=1,0,C25-J25-K25) -> 0 | M25: =IF(L25=0,0,(IF(L25<Описание!E$23,Описание!E$23,(L25)))) -> 0 | N25: =IF(M25>Описание!E$22,Описание!E$22,M25) -> 0 | O25: 0
A26: 12 | B26: =РегистрИПН!B26 -> 0 | C26: =РегистрИПН!D26 -> 0 | E26: =РегистрОПВ!L25 -> 0 | F26: =IF(РегистрОПВ!F25=1,0,C26-D26-E26) -> 0 | G26: =Описание!E$16*7 -> 490000 | H26: =IF(F26=0,0,IF(F26>Описание!E$20,Описание!E$20,IF(F26>Описание!E$16,F26,Описание!E$16))) -> 0 | I26: 0 | K26: =IF(C26<=Описание!E$26*25,РегистрИПН!I26*90/100,0) -> 0 | L26: =IF(РегистрОПВ!F25=1,0,C26-J26-K26) -> 0 | M26: =IF(L26=0,0,(IF(L26<Описание!E$23,Описание!E$23,(L26)))) -> 0 | N26: =IF(M26>Описание!E$22,Описание!E$22,M26) -> 0 | O26: 0
B27: 2 месяц квартала | C27: =SUM(C28:C39) -> 1440000 | D27: =SUM(D28:D39) -> 0 | E27: 116000 | F27: 1144000 | H27: 1144000 | I27: 40040 | J27: 100000 | K27: 0 | L27: 1160000 | M27: 1160000 | N27: 1160000 | O27: 34800
A28: 1 | B28: =РегистрИПН!B28 -> Первый | C28: =РегистрИПН!D28 -> 350000 | E28: =РегистрОПВ!L27 -> 35000 | F28: =IF(РегистрОПВ!F27=1,0,C28-D28-E28) -> 315000 | G28: =Описание!E$16*7 -> 490000 | H28: =IF(F28=0,0,IF(F28>Описание!E$20,Описание!E$20,IF(F28>Описание!E$16,F28,Описание!E$16))) -> 315000 | I28: =H28*I$13 -> 11025 | K28: =IF(C28<=Описание!E$26*25,РегистрИПН!I28*90/100,0) -> 0 | L28: =IF(РегистрОПВ!F27=1,0,C28-J28-K28) -> 350000 | M28: =IF(L28=0,0,(IF(L28<Описание!E$23,Описание!E$23,(L28)))) -> 350000 | N28: =IF(M28>Описание!E$22,Описание!E$22,M28) -> 350000 | O28: =N28*O$13 -> 10500
A29: 2 | B29: =РегистрИПН!B29 -> Второй | C29: =РегистрИПН!D29 -> 300000 | E29: =РегистрОПВ!L28 -> 30000 | F29: =IF(РегистрОПВ!F28=1,0,C29-D29-E29) -> 270000 | G29: =Описание!E$16*7 -> 490000 | H29: =IF(F29=0,0,IF(F29>Описание!E$20,Описание!E$20,IF(F29>Описание!E$16,F29,Описание!E$16))) -> 270000 | I29: =H29*I$13 -> 9450 | K29: =IF(C29<=Описание!E$26*25,РегистрИПН!I29*90/100,0) -> 0 | L29: =IF(РегистрОПВ!F28=1,0,C29-J29-K29) -> 300000 | M29: =IF(L29=0,0,(IF(L29<Описание!E$23,Описание!E$23,(L29)))) -> 300000 | N29: =IF(M29>Описание!E$22,Описание!E$22,M29) -> 300000 | O29: =N29*O$13 -> 9000
A30: 3 | B30: =РегистрИПН!B30 -> Третий | C30: =РегистрИПН!D30 -> 280000 | E30: =РегистрОПВ!L29 -> 28000 | F30: =IF(РегистрОПВ!F29=1,0,C30-D30-E30) -> 252000 | G30: =Описание!E$16*7 -> 490000 | H30: =IF(F30=0,0,IF(F30>Описание!E$20,Описание!E$20,IF(F30>Описание!E$16,F30,Описание!E$16))) -> 252000 | I30: =H30*I$13 -> 8820 | K30: =IF(C30<=Описание!E$26*25,РегистрИПН!I30*90/100,0) -> 0 | L30: =IF(РегистрОПВ!F29=1,0,C30-J30-K30) -> 280000 | M30: =IF(L30=0,0,(IF(L30<Описание!E$23,Описание!E$23,(L30)))) -> 280000 | N30: =IF(M30>Описание!E$22,Описание!E$22,M30) -> 280000 | O30: 8400
A31: 4 | B31: =РегистрИПН!B31 -> Четвертый | C31: =РегистрИПН!D31 -> 230000 | E31: =РегистрОПВ!L30 -> 23000 | F31: =IF(РегистрОПВ!F30=1,0,C31-D31-E31) -> 207000 | G31: =Описание!E$16*7 -> 490000 | H31: =IF(F31=0,0,IF(F31>Описание!E$20,Описание!E$20,IF(F31>Описание!E$16,F31,Описание!E$16))) -> 207000 | I31: 7245 | K31: =IF(C31<=Описание!E$26*25,РегистрИПН!I31*90/100,0) -> 0 | L31: =IF(РегистрОПВ!F30=1,0,C31-J31-K31) -> 230000 | M31: =IF(L31=0,0,(IF(L31<Описание!E$23,Описание!E$23,(L31)))) -> 230000 | N31: =IF(M31>Описание!E$22,Описание!E$22,M31) -> 230000 | O31: 6900
A32: 5 | B32: =РегистрИПН!B32 -> Пятый | C32: =РегистрИПН!D32 -> 180000 | E32: =РегистрОПВ!L31 -> 0 | F32: =IF(РегистрОПВ!F31=1,0,C32-D32-E32) -> 0 | G32: =Описание!E$16*7 -> 490000 | H32: =IF(F32=0,0,IF(F32>Описание!E$20,Описание!E$20,IF(F32>Описание!E$16,F32,Описание!E$16))) -> 0 | I32: 0 | K32: =IF(C32<=Описание!E$26*25,РегистрИПН!I32*90/100,0) -> 0 | L32: =IF(РегистрОПВ!F31=1,0,C32-J32-K32) -> 0 | M32: =IF(L32=0,0,(IF(L32<Описание!E$23,Описание!E$23,(L32)))) -> 0 | N32: =IF(M32>Описание!E$22,Описание!E$22,M32) -> 0 | O32: 0
A33: 6 | B33: =РегистрИПН!B33 -> Шестой | C33: =РегистрИПН!D33 -> 100000 | E33: =РегистрОПВ!L32 -> 0 | F33: =IF(РегистрОПВ!F32=1,0,C33-D33-E33) -> 100000 | G33: =Описание!E$16*7 -> 490000 | H33: =IF(F33=0,0,IF(F33>Описание!E$20,Описание!E$20,IF(F33>Описание!E$16,F33,Описание!E$16))) -> 100000 | I33: 3500 | J33: 100000 | K33: =IF(C33<=Описание!E$26*25,РегистрИПН!I33*90/100,0) -> 0 | L33: =IF(РегистрОПВ!F32=1,0,C33-J33-K33) -> 0 | M33: =IF(L33=0,0,(IF(L33<Описание!E$23,Описание!E$23,(L33)))) -> 0 | N33: =IF(M33>Описание!E$22,Описание!E$22,M33) -> 0 | O33: 0
A34: 7 | B34: =РегистрИПН!B34 -> 0 | C34: =РегистрИПН!D34 -> 0 | E34: =РегистрОПВ!L33 -> 0 | F34: =IF(РегистрОПВ!F33=1,0,C34-D34-E34) -> 0 | G34: =Описание!E$16*7 -> 490000 | H34: =IF(F34=0,0,IF(F34>Описание!E$20,Описание!E$20,IF(F34>Описание!E$16,F34,Описание!E$16))) -> 0 | I34: 0 | K34: =IF(C34<=Описание!E$26*25,РегистрИПН!I34*90/100,0) -> 0 | L34: =IF(РегистрОПВ!F33=1,0,C34-J34-K34) -> 0 | M34: =IF(L34=0,0,(IF(L34<Описание!E$23,Описание!E$23,(L34)))) -> 0 | N34: =IF(M34>Описание!E$22,Описание!E$22,M34) -> 0 | O34: 0
A35: 8 | B35: =РегистрИПН!B35 -> 0 | C35: =РегистрИПН!D35 -> 0 | E35: =РегистрОПВ!L34 -> 0 | F35: =IF(РегистрОПВ!F34=1,0,C35-D35-E35) -> 0 | G35: =Описание!E$16*7 -> 490000 | H35: =IF(F35=0,0,IF(F35>Описание!E$20,Описание!E$20,IF(F35>Описание!E$16,F35,Описание!E$16))) -> 0 | I35: 0 | K35: =IF(C35<=Описание!E$26*25,РегистрИПН!I35*90/100,0) -> 0 | L35: =IF(РегистрОПВ!F34=1,0,C35-J35-K35) -> 0 | M35: =IF(L35=0,0,(IF(L35<Описание!E$23,Описание!E$23,(L35)))) -> 0 | N35: =IF(M35>Описание!E$22,Описание!E$22,M35) -> 0 | O35: 0
A36: 9 | B36: =РегистрИПН!B36 -> 0 | C36: =РегистрИПН!D36 -> 0 | E36: =РегистрОПВ!L35 -> 0 | F36: =IF(РегистрОПВ!F35=1,0,C36-D36-E36) -> 0 | G36: =Описание!E$16*7 -> 490000 | H36: =IF(F36=0,0,IF(F36>Описание!E$20,Описание!E$20,IF(F36>Описание!E$16,F36,Описание!E$16))) -> 0 | I36: 0 | K36: =IF(C36<=Описание!E$26*25,РегистрИПН!I36*90/100,0) -> 0 | L36: =IF(РегистрОПВ!F35=1,0,C36-J36-K36) -> 0 | M36: =IF(L36=0,0,(IF(L36<Описание!E$23,Описание!E$23,(L36)))) -> 0 | N36: =IF(M36>Описание!E$22,Описание!E$22,M36) -> 0 | O36: 0
A37: 10 | B37: =РегистрИПН!B37 -> 0 | C37: =РегистрИПН!D37 -> 0 | E37: =РегистрОПВ!L36 -> 0 | F37: =IF(РегистрОПВ!F36=1,0,C37-D37-E37) -> 0 | G37: =Описание!E$16*7 -> 490000 | H37: =IF(F37=0,0,IF(F37>Описание!E$20,Описание!E$20,IF(F37>Описание!E$16,F37,Описание!E$16))) -> 0 | I37: 0 | K37: =IF(C37<=Описание!E$26*25,РегистрИПН!I37*90/100,0) -> 0 | L37: =IF(РегистрОПВ!F36=1,0,C37-J37-K37) -> 0 | M37: =IF(L37=0,0,(IF(L37<Описание!E$23,Описание!E$23,(L37)))) -> 0 | N37: =IF(M37>Описание!E$22,Описание!E$22,M37) -> 0 | O37: 0
A38: 11 | B38: =РегистрИПН!B38 -> 0 | C38: =РегистрИПН!D38 -> 0 | E38: =РегистрОПВ!L37 -> 0 | F38: =IF(РегистрОПВ!F37=1,0,C38-D38-E38) -> 0 | G38: =Описание!E$16*7 -> 490000 | H38: =IF(F38=0,0,IF(F38>Описание!E$20,Описание!E$20,IF(F38>Описание!E$16,F38,Описание!E$16))) -> 0 | I38: 0 | K38: =IF(C38<=Описание!E$26*25,РегистрИПН!I38*90/100,0) -> 0 | L38: =IF(РегистрОПВ!F37=1,0,C38-J38-K38) -> 0 | M38: =IF(L38=0,0,(IF(L38<Описание!E$23,Описание!E$23,(L38)))) -> 0 | N38: =IF(M38>Описание!E$22,Описание!E$22,M38) -> 0 | O38: 0
A39: 12 | B39: =РегистрИПН!B39 -> 0 | C39: =РегистрИПН!D39 -> 0 | E39: =РегистрОПВ!L38 -> 0 | F39: =IF(РегистрОПВ!F38=1,0,C39-D39-E39) -> 0 | G39: =Описание!E$16*7 -> 490000 | H39: =IF(F39=0,0,IF(F39>Описание!E$20,Описание!E$20,IF(F39>Описание!E$16,F39,Описание!E$16))) -> 0 | I39: 0 | K39: =IF(C39<=Описание!E$26*25,РегистрИПН!I39*90/100,0) -> 0 | L39: =IF(РегистрОПВ!F38=1,0,C39-J39-K39) -> 0 | M39: =IF(L39=0,0,(IF(L39<Описание!E$23,Описание!E$23,(L39)))) -> 0 | N39: =IF(M39>Описание!E$22,Описание!E$22,M39) -> 0 | O39: 0
B40: 3 месяц квартала | C40: =SUM(C41:C53) -> 1440000 | D40: 0 | E40: 116000 | F40: 1144000 | H40: 1144000 | I40: 40040 | J40: 100000 | K40: 0 | L40: 1160000 | M40: 1160000 | N40: 1160000 | O40: 34800
A41: 1 | B41: =РегистрИПН!B41 -> Первый | C41: =РегистрИПН!D41 -> 350000 | E41: =РегистрОПВ!L40 -> 35000 | F41: =IF(РегистрОПВ!F40=1,0,C41-D41-E41) -> 315000 | G41: =Описание!E$16*7 -> 490000 | H41: =IF(F41=0,0,IF(F41>Описание!E$20,Описание!E$20,IF(F41>Описание!E$16,F41,Описание!E$16))) -> 315000 | I41: =H41*I$13 -> 11025 | K41: =IF(C41<=Описание!E$26*25,РегистрИПН!I41*90/100,0) -> 0 | L41: =IF(РегистрОПВ!F40=1,0,C41-J41-K41) -> 350000 | M41: =IF(L41=0,0,(IF(L41<Описание!E$23,Описание!E$23,(L41)))) -> 350000 | N41: =IF(M41>Описание!E$22,Описание!E$22,M41) -> 350000 | O41: =N41*O$13 -> 10500
A42: 2 | B42: =РегистрИПН!B42 -> Второй | C42: =РегистрИПН!D42 -> 300000 | E42: =РегистрОПВ!L41 -> 30000 | F42: =IF(РегистрОПВ!F41=1,0,C42-D42-E42) -> 270000 | G42: =Описание!E$16*7 -> 490000 | H42: =IF(F42=0,0,IF(F42>Описание!E$20,Описание!E$20,IF(F42>Описание!E$16,F42,Описание!E$16))) -> 270000 | I42: =H42*I$13 -> 9450 | K42: =IF(C42<=Описание!E$26*25,РегистрИПН!I42*90/100,0) -> 0 | L42: =IF(РегистрОПВ!F41=1,0,C42-J42-K42) -> 300000 | M42: =IF(L42=0,0,(IF(L42<Описание!E$23,Описание!E$23,(L42)))) -> 300000 | N42: =IF(M42>Описание!E$22,Описание!E$22,M42) -> 300000 | O42: =N42*O$13 -> 9000
A43: 3 | B43: =РегистрИПН!B43 -> Третий | C43: =РегистрИПН!D43 -> 280000 | E43: =РегистрОПВ!L42 -> 28000 | F43: =IF(РегистрОПВ!F42=1,0,C43-D43-E43) -> 252000 | G43: =Описание!E$16*7 -> 490000 | H43: =IF(F43=0,0,IF(F43>Описание!E$20,Описание!E$20,IF(F43>Описание!E$16,F43,Описание!E$16))) -> 252000 | I43: 8820 | K43: =IF(C43<=Описание!E$26*25,РегистрИПН!I43*90/100,0) -> 0 | L43: =IF(РегистрОПВ!F42=1,0,C43-J43-K43) -> 280000 | M43: =IF(L43=0,0,(IF(L43<Описание!E$23,Описание!E$23,(L43)))) -> 280000 | N43: =IF(M43>Описание!E$22,Описание!E$22,M43) -> 280000 | O43: 8400
A44: 4 | B44: =РегистрИПН!B44 -> Четвертый | C44: =РегистрИПН!D44 -> 230000 | E44: =РегистрОПВ!L43 -> 23000 | F44: =IF(РегистрОПВ!F43=1,0,C44-D44-E44) -> 207000 | G44: =Описание!E$16*7 -> 490000 | H44: =IF(F44=0,0,IF(F44>Описание!E$20,Описание!E$20,IF(F44>Описание!E$16,F44,Описание!E$16))) -> 207000 | I44: 7245 | K44: =IF(C44<=Описание!E$26*25,РегистрИПН!I44*90/100,0) -> 0 | L44: =IF(РегистрОПВ!F43=1,0,C44-J44-K44) -> 230000 | M44: =IF(L44=0,0,(IF(L44<Описание!E$23,Описание!E$23,(L44)))) -> 230000 | N44: =IF(M44>Описание!E$22,Описание!E$22,M44) -> 230000 | O44: 6900
A45: 5 | B45: =РегистрИПН!B45 -> Пятый | C45: =РегистрИПН!D45 -> 180000 | E45: =РегистрОПВ!L44 -> 0 | F45: =IF(РегистрОПВ!F44=1,0,C45-D45-E45) -> 0 | G45: =Описание!E$16*7 -> 490000 | H45: =IF(F45=0,0,IF(F45>Описание!E$20,Описание!E$20,IF(F45>Описание!E$16,F45,Описание!E$16))) -> 0 | I45: 0 | K45: =IF(C45<=Описание!E$26*25,РегистрИПН!I45*90/100,0) -> 0 | L45: =IF(РегистрОПВ!F44=1,0,C45-J45-K45) -> 0 | M45: =IF(L45=0,0,(IF(L45<Описание!E$23,Описание!E$23,(L45)))) -> 0 | N45: =IF(M45>Описание!E$22,Описание!E$22,M45) -> 0 | O45: 0
A46: 6 | B46: =РегистрИПН!B46 -> Шестой | C46: =РегистрИПН!D46 -> 100000 | E46: =РегистрОПВ!L45 -> 0 | F46: =IF(РегистрОПВ!F45=1,0,C46-D46-E46) -> 100000 | G46: =Описание!E$16*7 -> 490000 | H46: =IF(F46=0,0,IF(F46>Описание!E$20,Описание!E$20,IF(F46>Описание!E$16,F46,Описание!E$16))) -> 100000 | I46: 3500 | J46: 100000 | K46: =IF(C46<=Описание!E$26*25,РегистрИПН!I46*90/100,0) -> 0 | L46: =IF(РегистрОПВ!F45=1,0,C46-J46-K46) -> 0 | M46: =IF(L46=0,0,(IF(L46<Описание!E$23,Описание!E$23,(L46)))) -> 0 | N46: =IF(M46>Описание!E$22,Описание!E$22,M46) -> 0 | O46: 0
A47: 7 | B47: =РегистрИПН!B47 -> 0 | C47: =РегистрИПН!D47 -> 0 | E47: =РегистрОПВ!L46 -> 0 | F47: =IF(РегистрОПВ!F46=1,0,C47-D47-E47) -> 0 | G47: =Описание!E$16*7 -> 490000 | H47: =IF(F47=0,0,IF(F47>Описание!E$20,Описание!E$20,IF(F47>Описание!E$16,F47,Описание!E$16))) -> 0 | I47: 0 | K47: =IF(C47<=Описание!E$26*25,РегистрИПН!I47*90/100,0) -> 0 | L47: =IF(РегистрОПВ!F46=1,0,C47-J47-K47) -> 0 | M47: =IF(L47=0,0,(IF(L47<Описание!E$23,Описание!E$23,(L47)))) -> 0 | N47: =IF(M47>Описание!E$22,Описание!E$22,M47) -> 0 | O47: 0
A48: 8 | B48: =РегистрИПН!B48 -> 0 | C48: =РегистрИПН!D48 -> 0 | E48: =РегистрОПВ!L47 -> 0 | F48: =IF(РегистрОПВ!F47=1,0,C48-D48-E48) -> 0 | G48: =Описание!E$16*7 -> 490000 | H48: =IF(F48=0,0,IF(F48>Описание!E$20,Описание!E$20,IF(F48>Описание!E$16,F48,Описание!E$16))) -> 0 | I48: 0 | K48: =IF(C48<=Описание!E$26*25,РегистрИПН!I48*90/100,0) -> 0 | L48: =IF(РегистрОПВ!F47=1,0,C48-J48-K48) -> 0 | M48: =IF(L48=0,0,(IF(L48<Описание!E$23,Описание!E$23,(L48)))) -> 0 | N48: =IF(M48>Описание!E$22,Описание!E$22,M48) -> 0 | O48: 0
A49: 9 | B49: =РегистрИПН!B49 -> 0 | C49: =РегистрИПН!D49 -> 0 | E49: =РегистрОПВ!L48 -> 0 | F49: =IF(РегистрОПВ!F48=1,0,C49-D49-E49) -> 0 | G49: =Описание!E$16*7 -> 490000 | H49: =IF(F49=0,0,IF(F49>Описание!E$20,Описание!E$20,IF(F49>Описание!E$16,F49,Описание!E$16))) -> 0 | I49: =H49*I$13 -> 0 | K49: =IF(C49<=Описание!E$26*25,РегистрИПН!I49*90/100,0) -> 0 | L49: =IF(РегистрОПВ!F48=1,0,C49-J49-K49) -> 0 | M49: =IF(L49=0,0,(IF(L49<Описание!E$23,Описание!E$23,(L49)))) -> 0 | N49: =IF(M49>Описание!E$22,Описание!E$22,M49) -> 0 | O49: 0
A50: 10 | B50: =РегистрИПН!B50 -> 0 | C50: =РегистрИПН!D50 -> 0 | E50: =РегистрОПВ!L49 -> 0 | F50: =IF(РегистрОПВ!F49=1,0,C50-D50-E50) -> 0 | G50: =Описание!E$16*7 -> 490000 | H50: =IF(F50=0,0,IF(F50>Описание!E$20,Описание!E$20,IF(F50>Описание!E$16,F50,Описание!E$16))) -> 0 | I50: 0 | K50: =IF(C50<=Описание!E$26*25,РегистрИПН!I50*90/100,0) -> 0 | L50: =IF(РегистрОПВ!F49=1,0,C50-J50-K50) -> 0 | M50: =IF(L50=0,0,(IF(L50<Описание!E$23,Описание!E$23,(L50)))) -> 0 | N50: =IF(M50>Описание!E$22,Описание!E$22,M50) -> 0 | O50: 0
A51: 11 | B51: =РегистрИПН!B51 -> 0 | C51: =РегистрИПН!D51 -> 0 | E51: =РегистрОПВ!L50 -> 0 | F51: =IF(РегистрОПВ!F50=1,0,C51-D51-E51) -> 0 | G51: =Описание!E$16*7 -> 490000 | H51: =IF(F51=0,0,IF(F51>Описание!E$20,Описание!E$20,IF(F51>Описание!E$16,F51,Описание!E$16))) -> 0 | I51: 0 | K51: =IF(C51<=Описание!E$26*25,РегистрИПН!I51*90/100,0) -> 0 | L51: =IF(РегистрОПВ!F50=1,0,C51-J51-K51) -> 0 | M51: =IF(L51=0,0,(IF(L51<Описание!E$23,Описание!E$23,(L51)))) -> 0 | N51: =IF(M51>Описание!E$22,Описание!E$22,M51) -> 0 | O51: 0
A52: 12 | B52: =РегистрИПН!B52 -> 0 | C52: =РегистрИПН!D52 -> 0 | E52: =РегистрОПВ!L51 -> 0 | F52: =IF(РегистрОПВ!F51=1,0,C52-D52-E52) -> 0 | G52: =Описание!E$16*7 -> 490000 | H52: =IF(F52=0,0,IF(F52>Описание!E$20,Описание!E$20,IF(F52>Описание!E$16,F52,Описание!E$16))) -> 0 | I52: 0 | K52: =IF(C52<=Описание!E$26*25,РегистрИПН!I52*90/100,0) -> 0 | L52: =IF(РегистрОПВ!F51=1,0,C52-J52-K52) -> 0 | M52: =IF(L52=0,0,(IF(L52<Описание!E$23,Описание!E$23,(L52)))) -> 0 | N52: =IF(M52>Описание!E$22,Описание!E$22,M52) -> 0 | O52: 0
A53: 13 | B53: =РегистрИПН!B53 -> 0 | C53: =РегистрИПН!D53 -> 0 | E53: =РегистрОПВ!L52 -> 0 | F53: =IF(РегистрОПВ!F52=1,0,C53-D53-E53) -> 0 | G53: =Описание!E$16*7 -> 490000 | H53: =IF(F53=0,0,IF(F53>Описание!E$20,Описание!E$20,IF(F53>Описание!E$16,F53,Описание!E$16))) -> 0 | I53: 0 | K53: =IF(C53<=Описание!E$26*25,РегистрИПН!I53*90/100,0) -> 0 | L53: =IF(РегистрОПВ!F52=1,0,C53-J53-K53) -> 0 | M53: =IF(L53=0,0,(IF(L53<Описание!E$23,Описание!E$23,(L53)))) -> 0 | N53: =IF(M53>Описание!E$22,Описание!E$22,M53) -> 0 | O53: =N53*O$13 -> 0
A54: Итого (заполняется по итогу формы) | C54: =C40+C27+C14 -> 4320000 | D54: 0 | E54: 348000 | F54: 3432000 | G54: 0 | H54: =H40+H27+H14 -> 3432000 | I54: 120120 | J54: =J40+J27+J14 -> 300000 | K54: 0 | L54: 3480000 | M54: 3480000 | N54: 3480000 | O54: 104400
A56: _______________________________________________________________________________________
A57: (Ф.И.О., подпись руководителя (налогоплательщика), печать)
A58: _______________________________________________________________________________________
A59: (Ф.И.О., подпись главного бухгалтера)
A60: _______________________________________________________________________________________
A61: (Ф.И.О., подпись лица, ответственного за составление налогового регистра)
A62: __________________________________
A63: (Дата составления налогового регистра)

Sheet РегистрСН
A1: 1. | B1: РНН
A2: 2. | B2: ИИН/БИН | C2: ='200.00 200.01'!E10 -> 152152152
B3: (при их наличии)
A4: 3. | B4: Ф.И.О. или наименование налогоплательщика | D4: ='200.00 200.01'!J14 -> ТОО ggggggg
A5: 4. | B5: Налоговый период (квартал) | C5: ='200.00 200.01'!J12 -> 2 | J5: год | K5: ='200.00 200.01'!M12 -> 2023
B8: Расчет социального налога для резидентов
K9: (тенге)
A10: № | B10: Ф.И.О. сотрудника | C10: Доход сотрудника за отчетный период | D10: ОПВ | E10: Взносы ОСМС | F10: Корректировка дохода 90% | G10: Прочие доходы, не облагаемые соц. Налогом, кроме взносов на ОСМС | H10: Доходы, облагаемые соц. Налогом | I10: Сумма исчисленного социального налога | J10: Сумма исчисленных социальных отчислений | K10: Сумма исчисленного социального налога, подлежащего перечислению в бюджет
A11: 1 | B11: 2 | C11: 3 | D11: 4 | E11: 5 | F11: 6 | G11: 7 | H11: 8 | I11: 9 | J11: 10 | K11: 11
K12: гр.6-гр.7
B14: 1 месяц квартала | C14: =SUM(C15:C26) -> 1440000 | D14: 116000 | E14: 23200 | F14: 0 | G14: 0 | H14: 1300800 | I14: 123576 | J14: 40040 | K14: 83536
A15: 1 | B15: ='РегистрСО ОСМС'!B15 -> Первый | C15: =РегистрОПВ!E14 -> 350000 | D15: =РегистрОПВ!L14 -> 35000 | E15: =SUMIF(РегистрОПВ!B$14:B$25,РегистрСН!B15,РегистрОПВ!T$14:T$25) -> 7000 | F15: ='РегистрСО ОСМС'!K15 -> 0 | H15: =C15-D15-G15-E15 -> 308000 | I15: =IF(H15=0,0,(IF(H15<Описание!E$17,Описание!E$17*9.5%,(H15*9.5%)))) -> 29260 | J15: ='РегистрСО ОСМС'!I15 -> 11025 | K15: =IF(I15>J15,I15-J15,0) -> 18235
A16: 2 | B16: ='РегистрСО ОСМС'!B16 -> Второй | C16: =РегистрОПВ!E15 -> 300000 | D16: =РегистрОПВ!L15 -> 30000 | E16: =SUMIF(РегистрОПВ!B$14:B$25,РегистрСН!B16,РегистрОПВ!T$14:T$25) -> 6000 | F16: ='РегистрСО ОСМС'!K16 -> 0 | H16: =C16-D16-G16-E16 -> 264000 | I16: =IF(H16=0,0,(IF(H16<Описание!E$17,Описание!E$17*9.5%,(H16*9.5%)))) -> 25080 | J16: ='РегистрСО ОСМС'!I16 -> 9450 | K16: =IF(I16>J16,I16-J16,0) -> 15630
A17: 3 | B17: ='РегистрСО ОСМС'!B17 -> Третий | C17: =РегистрОПВ!E16 -> 280000 | D17: =РегистрОПВ!L16 -> 28000 | E17: =SUMIF(РегистрОПВ!B$14:B$25,РегистрСН!B17,РегистрОПВ!T$14:T$25) -> 5600 | F17: ='РегистрСО ОСМС'!K17 -> 0 | H17: =C17-D17-G17-E17 -> 246400 | I17: =IF(H17=0,0,(IF(H17<Описание!E$17,Описание!E$17*9.5%,(H17*9.5%)))) -> 23408 | J17: ='РегистрСО ОСМС'!I17 -> 8820 | K17: =IF(I17>J17,I17-J17,0) -> 14588
A18: 4 | B18: ='РегистрСО ОСМС'!B18 -> Четвертый | C18: =РегистрОПВ!E17 -> 230000 | D18: =РегистрОПВ!L17 -> 23000 | E18: =SUMIF(РегистрОПВ!B$14:B$25,РегистрСН!B18,РегистрОПВ!T$14:T$25) -> 4600 | F18: ='РегистрСО ОСМС'!K18 -> 0 | H18: 202400 | I18: =IF(H18=0,0,(IF(H18<Описание!E$17,Описание!E$17*9.5%,(H18*9.5%)))) -> 19228 | J18: ='РегистрСО ОСМС'!I18 -> 7245 | K18: 11983
A19: 5 | B19: ='РегистрСО ОСМС'!B19 -> Пятый | C19: =РегистрОПВ!E18 -> 180000 | D19: =РегистрОПВ!L18 -> 0 | E19: =SUMIF(РегистрОПВ!B$14:B$25,РегистрСН!B19,РегистрОПВ!T$14:T$25) -> 0 | F19: ='РегистрСО ОСМС'!K19 -> 0 | H19: 180000 | I19: =IF(H19=0,0,(IF(H19<Описание!E$17,Описание!E$17*9.5%,(H19*9.5%)))) -> 17100 | J19: ='РегистрСО ОСМС'!I19 -> 0 | K19: =IF(I19>J19,I19-J19,0) -> 17100
A20: 6 | B20: ='РегистрСО ОСМС'!B20 -> Шестой | C20: =РегистрОПВ!E19 -> 100000 | D20: =РегистрОПВ!L19 -> 0 | E20: =SUMIF(РегистрОПВ!B$14:B$25,РегистрСН!B20,РегистрОПВ!T$14:T$25) -> 0 | F20: ='РегистрСО ОСМС'!K20 -> 0 | H20: 100000 | I20: =IF(H20=0,0,(IF(H20<Описание!E$17,Описание!E$17*9.5%,(H20*9.5%)))) -> 9500 | J20: ='РегистрСО ОСМС'!I20 -> 3500 | K20: 6000
A21: 7 | B21: ='РегистрСО ОСМС'!B21 -> 0 | C21: =РегистрОПВ!E20 -> 0 | D21: =РегистрОПВ!L20 -> 0 | E21: =SUMIF(РегистрОПВ!B$14:B$25,РегистрСН!B21,РегистрОПВ!T$14:T$25) -> 0 | F21: ='РегистрСО ОСМС'!K21 -> 0 | H21: =C21-D21-G21-E21 -> 0 | I21: =IF(H21=0,0,(IF(H21<Описание!E$17,Описание!E$17*9.5%,(H21*9.5%)))) -> 0 | J21: ='РегистрСО ОСМС'!I21 -> 0 | K21: =IF(I21>J21,I21-J21,0) -> 0
A22: 8 | B22: ='РегистрСО ОСМС'!B22 -> 0 | C22: =РегистрОПВ!E21 -> 0 | D22: =РегистрОПВ!L21 -> 0 | E22: =SUMIF(РегистрОПВ!B$14:B$25,РегистрСН!B22,РегистрОПВ!T$14:T$25) -> 0 | F22: ='РегистрСО ОСМС'!K22 -> 0 | H22: 0 | I22: =IF(H22=0,0,(IF(H22<Описание!E$17,Описание!E$17*9.5%,(H22*9.5%)))) -> 0 | J22: ='РегистрСО ОСМС'!I22 -> 0 | K22: 0
A23: 9 | B23: ='РегистрСО ОСМС'!B23 -> 0 | C23: =РегистрОПВ!E22 -> 0 | D23: =РегистрОПВ!L22 -> 0 | E23: =SUMIF(РегистрОПВ!B$14:B$25,РегистрСН!B23,РегистрОПВ!T$14:T$25) -> 0 | F23: ='РегистрСО ОСМС'!K23 -> 0 | H23: 0 | I23: =IF(H23=0,0,(IF(H23<Описание!E$16,Описание!E$16*9.5%,(H23*9.5%)))) -> 0 | J23: ='РегистрСО ОСМС'!I23 -> 0 | K23: 0
A24: 10 | B24: ='РегистрСО ОСМС'!B24 -> 0 | C24: =РегистрОПВ!E23 -> 0 | D24: =РегистрОПВ!L23 -> 0 | E24: =SUMIF(РегистрОПВ!B$14:B$25,РегистрСН!B24,РегистрОПВ!T$14:T$25) -> 0 | F24: ='РегистрСО ОСМС'!K24 -> 0 | H24: 0 | I24: =IF(H24=0,0,(IF(H24<Описание!E$16,Описание!E$16*9.5%,(H24*9.5%)))) -> 0 | J24: ='РегистрСО ОСМС'!I24 -> 0 | K24: 0
A25: 11 | B25: ='РегистрСО ОСМС'!B25 -> 0 | C25: =РегистрОПВ!E24 -> 0 | D25: =РегистрОПВ!L24 -> 0 | E25: =SUMIF(РегистрОПВ!B$14:B$25,РегистрСН!B25,РегистрОПВ!T$14:T$25) -> 0 | F25: ='РегистрСО ОСМС'!K25 -> 0 | H25: 0 | I25: =IF(H25=0,0,(IF(H25<Описание!E$16,Описание!E$16*9.5%,(H25*9.5%)))) -> 0 | J25: ='РегистрСО ОСМС'!I25 -> 0 | K25: 0
A26: 12 | B26: ='РегистрСО ОСМС'!B26 -> 0 | C26: =РегистрОПВ!E25 -> 0 | D26: =РегистрОПВ!L25 -> 0 | E26: =SUMIF(РегистрОПВ!B$14:B$25,РегистрСН!B26,РегистрОПВ!T$14:T$25) -> 0 | F26: ='РегистрСО ОСМС'!K26 -> 0 | H26: 0 | I26: =IF(H26=0,0,(IF(H26<Описание!E$16,Описание!E$16*9.5%,(H26*9.5%)))) -> 0 | J26: ='РегистрСО ОСМС'!I26 -> 0 | K26: =IF(I26>J26,I26-J26,0) -> 0
B27: 2 месяц квартала | C27: =SUM(C28:C39) -> 1440000 | D27: 116000 | E27: 23200 | F27: 0 | G27: 0 | H27: 1300800 | I27: 123576 | J27: 40040 | K27: 83536
A28: 1 | B28: ='РегистрСО ОСМС'!B28 -> Первый | C28: =РегистрОПВ!E27 -> 350000 | D28: =РегистрОПВ!L27 -> 35000 | E28: =SUMIF(РегистрОПВ!B$27:B$38,РегистрСН!B28,РегистрОПВ!T$27:T$38) -> 7000 | F28: ='РегистрСО ОСМС'!K28 -> 0 | H28: =C28-D28-G28-E28 -> 308000 | I28: =IF(H28=0,0,(IF(H28<Описание!E$16,Описание!E$16*9.5%,(H28*9.5%)))) -> 29260 | J28: ='РегистрСО ОСМС'!I28 -> 11025 | K28: =IF(I28>J28,I28-J28,0) -> 18235
A29: 2 | B29: ='РегистрСО ОСМС'!B29 -> Второй | C29: =РегистрОПВ!E28 -> 300000 | D29: =РегистрОПВ!L28 -> 30000 | E29: =SUMIF(РегистрОПВ!B$27:B$38,РегистрСН!B29,РегистрОПВ!T$27:T$38) -> 6000 | F29: ='РегистрСО ОСМС'!K29 -> 0 | H29: =C29-D29-G29-E29 -> 264000 | I29: =IF(H29=0,0,(IF(H29<Описание!E$16,Описание!E$16*9.5%,(H29*9.5%)))) -> 25080 | J29: ='РегистрСО ОСМС'!I29 -> 9450 | K29: =IF(I29>J29,I29-J29,0) -> 15630
A30: 3 | B30: ='РегистрСО ОСМС'!B30 -> Третий | C30: =РегистрОПВ!E29 -> 280000 | D30: =РегистрОПВ!L29 -> 28000 | E30: =SUMIF(РегистрОПВ!B$27:B$38,РегистрСН!B30,РегистрОПВ!T$27:T$38) -> 5600 | F30: ='РегистрСО ОСМС'!K30 -> 0 | H30: 246400 | I30: =IF(H30=0,0,(IF(H30<Описание!E$16,Описание!E$16*9.5%,(H30*9.5%)))) -> 23408 | J30: ='РегистрСО ОСМС'!I30 -> 8820 | K30: 14588
A31: 4 | B31: ='РегистрСО ОСМС'!B31 -> Четвертый | C31: =РегистрОПВ!E30 -> 230000 | D31: =РегистрОПВ!L30 -> 23000 | E31: =SUMIF(РегистрОПВ!B$27:B$38,РегистрСН!B31,РегистрОПВ!T$27:T$38) -> 4600 | F31: ='РегистрСО ОСМС'!K31 -> 0 | H31: 202400 | I31: =IF(H31=0,0,(IF(H31<Описание!E$16,Описание!E$16*9.5%,(H31*9.5%)))) -> 19228 | J31: ='РегистрСО ОСМС'!I31 -> 7245 | K31: 11983
A32: 5 | B32: ='РегистрСО ОСМС'!B32 -> Пятый | C32: =РегистрОПВ!E31 -> 180000 | D32: =РегистрОПВ!L31 -> 0 | E32: =SUMIF(РегистрОПВ!B$27:B$38,РегистрСН!B32,РегистрОПВ!T$27:T$38) -> 0 | F32: ='РегистрСО ОСМС'!K32 -> 0 | H32: 180000 | I32: =IF(H32=0,0,(IF(H32<Описание!E$16,Описание!E$16*9.5%,(H32*9.5%)))) -> 17100 | J32: ='РегистрСО ОСМС'!I32 -> 0 | K32: 17100
A33: 6 | B33: ='РегистрСО ОСМС'!B33 -> Шестой | C33: =РегистрОПВ!E32 -> 100000 | D33: =РегистрОПВ!L32 -> 0 | E33: =SUMIF(РегистрОПВ!B$27:B$38,РегистрСН!B33,РегистрОПВ!T$27:T$38) -> 0 | F33: ='РегистрСО ОСМС'!K33 -> 0 | H33: 100000 | I33: =IF(H33=0,0,(IF(H33<Описание!E$16,Описание!E$16*9.5%,(H33*9.5%)))) -> 9500 | J33: ='РегистрСО ОСМС'!I33 -> 3500 | K33: 6000
A34: 7 | B34: ='РегистрСО ОСМС'!B34 -> 0 | C34: =РегистрОПВ!E33 -> 0 | D34: =РегистрОПВ!L33 -> 0 | E34: =SUMIF(РегистрОПВ!B$27:B$38,РегистрСН!B34,РегистрОПВ!T$27:T$38) -> 0 | F34: ='РегистрСО ОСМС'!K34 -> 0 | H34: 0 | I34: =IF(H34=0,0,(IF(H34<Описание!E$16,Описание!E$16*9.5%,(H34*9.5%)))) -> 0 | J34: ='РегистрСО ОСМС'!I34 -> 0 | K34: 0
A35: 8 | B35: ='РегистрСО ОСМС'!B35 -> 0 | C35: =РегистрОПВ!E34 -> 0 | D35: =РегистрОПВ!L34 -> 0 | E35: =SUMIF(РегистрОПВ!B$27:B$38,РегистрСН!B35,РегистрОПВ!T$27:T$38) -> 0 | F35: ='РегистрСО ОСМС'!K35 -> 0 | H35: 0 | I35: =IF(H35=0,0,(IF(H35<Описание!E$16,Описание!E$16*9.5%,(H35*9.5%)))) -> 0 | J35: ='РегистрСО ОСМС'!I35 -> 0 | K35: 0
A36: 9 | B36: ='РегистрСО ОСМС'!B36 -> 0 | C36: =РегистрОПВ!E35 -> 0 | D36: =РегистрОПВ!L35 -> 0 | E36: =SUMIF(РегистрОПВ!B$27:B$38,РегистрСН!B36,РегистрОПВ!T$27:T$38) -> 0 | F36: ='РегистрСО ОСМС'!K36 -> 0 | H36: 0 | I36: =IF(H36=0,0,(IF(H36<Описание!E$16,Описание!E$16*9.5%,(H36*9.5%)))) -> 0 | J36: ='РегистрСО ОСМС'!I36 -> 0 | K36: 0
A37: 10 | B37: ='РегистрСО ОСМС'!B37 -> 0 | C37: =РегистрОПВ!E36 -> 0 | D37: =РегистрОПВ!L36 -> 0 | E37: =SUMIF(РегистрОПВ!B$27:B$38,РегистрСН!B37,РегистрОПВ!T$27:T$38) -> 0 | F37: ='РегистрСО ОСМС'!K37 -> 0 | H37: 0 | I37: =IF(H37=0,0,(IF(H37<Описание!E$16,Описание!E$16*9.5%,(H37*9.5%)))) -> 0 | J37: ='РегистрСО ОСМС'!I37 -> 0 | K37: 0
A38: 11 | B38: ='РегистрСО ОСМС'!B38 -> 0 | C38: =РегистрОПВ!E37 -> 0 | D38: =РегистрОПВ!L37 -> 0 | E38: =SUMIF(РегистрОПВ!B$27:B$38,РегистрСН!B38,РегистрОПВ!T$27:T$38) -> 0 | F38: ='РегистрСО ОСМС'!K38 -> 0 | H38: 0 | I38: =IF(H38=0,0,(IF(H38<Описание!E$16,Описание!E$16*9.5%,(H38*9.5%)))) -> 0 | J38: ='РегистрСО ОСМС'!I38 -> 0 | K38: 0
A39: 12 | B39: ='РегистрСО ОСМС'!B39 -> 0 | C39: =РегистрОПВ!E38 -> 0 | D39: =РегистрОПВ!L38 -> 0 | E39: =SUMIF(РегистрОПВ!B$27:B$38,РегистрСН!B39,РегистрОПВ!T$27:T$38) -> 0 | F39: ='РегистрСО ОСМС'!K39 -> 0 | H39: =C39-D39-G39 -> 0 | I39: =IF(H39=0,0,(IF(H39<Описание!E$16,Описание!E$16*9.5%,(H39*9.5%)))) -> 0 | J39: ='РегистрСО ОСМС'!I39 -> 0 | K39: =IF(I39>J39,I39-J39,0) -> 0
B40: 3 месяц квартала | C40: =SUM(C41:C53) -> 1440000 | D40: 116000 | E40: 23200 | F40: 0 | G40: 0 | H40: 1300800 | I40: 123576 | J40: 40040 | K40: 83536
A41: 1 | B41: ='РегистрСО ОСМС'!B41 -> Первый | C41: =РегистрОПВ!E40 -> 350000 | D41: =РегистрОПВ!L40 -> 35000 | E41: =SUMIF(РегистрОПВ!B$40:B$52,РегистрСН!B41,РегистрОПВ!T$40:T$52) -> 7000 | F41: ='РегистрСО ОСМС'!K41 -> 0 | H41: =C41-D41-G41-E41 -> 308000 | I41: =IF(H41=0,0,(IF(H41<Описание!E$16,Описание!E$16*9.5%,(H41*9.5%)))) -> 29260 | J41: ='РегистрСО ОСМС'!I41 -> 11025 | K41: =IF(I41>J41,I41-J41,0) -> 18235
A42: 2 | B42: ='РегистрСО ОСМС'!B42 -> Второй | C42: =РегистрОПВ!E41 -> 300000 | D42: =РегистрОПВ!L41 -> 30000 | E42: =SUMIF(РегистрОПВ!B$40:B$52,РегистрСН!B42,РегистрОПВ!T$40:T$52) -> 6000 | F42: ='РегистрСО ОСМС'!K42 -> 0 | H42: 264000 | I42: =IF(H42=0,0,(IF(H42<Описание!E$16,Описание!E$16*9.5%,(H42*9.5%)))) -> 25080 | J42: ='РегистрСО ОСМС'!I42 -> 9450 | K42: =IF(I42>J42,I42-J42,0) -> 15630
A43: 3 | B43: ='РегистрСО ОСМС'!B43 -> Третий | C43: =РегистрОПВ!E42 -> 280000 | D43: =РегистрОПВ!L42 -> 28000 | E43: =SUMIF(РегистрОПВ!B$40:B$52,РегистрСН!B43,РегистрОПВ!T$40:T$52) -> 5600 | F43: ='РегистрСО ОСМС'!K43 -> 0 | H43: 246400 | I43: =IF(H43=0,0,(IF(H43<Описание!E$16,Описание!E$16*9.5%,(H43*9.5%)))) -> 23408 | J43: ='РегистрСО ОСМС'!I43 -> 8820 | K43: 14588
A44: 4 | B44: ='РегистрСО ОСМС'!B44 -> Четвертый | C44: =РегистрОПВ!E43 -> 230000 | D44: =РегистрОПВ!L43 -> 23000 | E44: =SUMIF(РегистрОПВ!B$40:B$52,РегистрСН!B44,РегистрОПВ!T$40:T$52) -> 4600 | F44: ='РегистрСО ОСМС'!K44 -> 0 | H44: 202400 | I44: =IF(H44=0,0,(IF(H44<Описание!E$16,Описание!E$16*9.5%,(H44*9.5%)))) -> 19228 | J44: ='РегистрСО ОСМС'!I44 -> 7245 | K44: 11983
A45: 5 | B45: ='РегистрСО ОСМС'!B45 -> Пятый | C45: =РегистрОПВ!E44 -> 180000 | D45: =РегистрОПВ!L44 -> 0 | E45: =SUMIF(РегистрОПВ!B$40:B$52,РегистрСН!B45,РегистрОПВ!T$40:T$52) -> 0 | F45: ='РегистрСО ОСМС'!K45 -> 0 | H45: 180000 | I45: =IF(H45=0,0,(IF(H45<Описание!E$16,Описание!E$16*9.5%,(H45*9.5%)))) -> 17100 | J45: ='РегистрСО ОСМС'!I45 -> 0 | K45: 17100
A46: 6 | B46: ='РегистрСО ОСМС'!B46 -> Шестой | C46: =РегистрОПВ!E45 -> 100000 | D46: =РегистрОПВ!L45 -> 0 | E46: =SUMIF(РегистрОПВ!B$40:B$52,РегистрСН!B46,РегистрОПВ!T$40:T$52) -> 0 | F46: ='РегистрСО ОСМС'!K46 -> 0 | H46: 100000 | I46: =IF(H46=0,0,(IF(H46<Описание!E$16,Описание!E$16*9.5%,(H46*9.5%)))) -> 9500 | J46: ='РегистрСО ОСМС'!I46 -> 3500 | K46: 6000
A47: 7 | B47: ='РегистрСО ОСМС'!B47 -> 0 | C47: =РегистрОПВ!E46 -> 0 | D47: =РегистрОПВ!L46 -> 0 | E47: =SUMIF(РегистрОПВ!B$40:B$52,РегистрСН!B47,РегистрОПВ!T$40:T$52) -> 0 | F47: ='РегистрСО ОСМС'!K47 -> 0 | H47: 0 | I47: =IF(H47=0,0,(IF(H47<Описание!E$16,Описание!E$16*9.5%,(H47*9.5%)))) -> 0 | J47: ='РегистрСО ОСМС'!I47 -> 0 | K47: 0
A48: 8 | B48: ='РегистрСО ОСМС'!B48 -> 0 | C48: =РегистрОПВ!E47 -> 0 | D48: =РегистрОПВ!L47 -> 0 | E48: =SUMIF(РегистрОПВ!B$40:B$52,РегистрСН!B48,РегистрОПВ!T$40:T$52) -> 0 | F48: ='РегистрСО ОСМС'!K48 -> 0 | H48: 0 | I48: =IF(H48=0,0,(IF(H48<Описание!E$16,Описание!E$16*9.5%,(H48*9.5%)))) -> 0 | J48: ='РегистрСО ОСМС'!I48 -> 0 | K48: 0
A49: 9 | B49: ='РегистрСО ОСМС'!B49 -> 0 | C49: =РегистрОПВ!E48 -> 0 | D49: =РегистрОПВ!L48 -> 0 | E49: =SUMIF(РегистрОПВ!B$40:B$52,РегистрСН!B49,РегистрОПВ!T$40:T$52) -> 0 | F49: ='РегистрСО ОСМС'!K49 -> 0 | H49: 0 | I49: =IF(H49=0,0,(IF(H49<Описание!E$16,Описание!E$16*9.5%,(H49*9.5%)))) -> 0 | J49: ='РегистрСО ОСМС'!I49 -> 0 | K49: 0
A50: 10 | B50: ='РегистрСО ОСМС'!B50 -> 0 | C50: =РегистрОПВ!E49 -> 0 | D50: =РегистрОПВ!L49 -> 0 | E50: =SUMIF(РегистрОПВ!B$40:B$52,РегистрСН!B50,РегистрОПВ!T$40:T$52) -> 0 | F50: ='РегистрСО ОСМС'!K50 -> 0 | H50: 0 | I50: =IF(H50=0,0,(IF(H50<Описание!E$16,Описание!E$16*9.5%,(H50*9.5%)))) -> 0 | J50: ='РегистрСО ОСМС'!I50 -> 0 | K50: 0
A51: 11 | B51: ='РегистрСО ОСМС'!B51 -> 0 | C51: =РегистрОПВ!E50 -> 0 | D51: =РегистрОПВ!L50 -> 0 | E51: =SUMIF(РегистрОПВ!B$40:B$52,РегистрСН!B51,РегистрОПВ!T$40:T$52) -> 0 | F51: ='РегистрСО ОСМС'!K51 -> 0 | H51: 0 | I51: =IF(H51=0,0,(IF(H51<Описание!E$16,Описание!E$16*9.5%,(H51*9.5%)))) -> 0 | J51: ='РегистрСО ОСМС'!I51 -> 0 | K51: 0
A52: 12 | B52: ='РегистрСО ОСМС'!B52 -> 0 | C52: =РегистрОПВ!E51 -> 0 | D52: =РегистрОПВ!L51 -> 0 | E52: =SUMIF(РегистрОПВ!B$40:B$52,РегистрСН!B52,РегистрОПВ!T$40:T$52) -> 0 | F52: ='РегистрСО ОСМС'!K52 -> 0 | H52: 0 | I52: =IF(H52=0,0,(IF(H52<Описание!E$16,Описание!E$16*9.5%,(H52*9.5%)))) -> 0 | J52: ='РегистрСО ОСМС'!I52 -> 0 | K52: =IF(I52>J52,I52-J52,0) -> 0
A53: 13 | B53: ='РегистрСО ОСМС'!B53 -> 0 | C53: =РегистрОПВ!E52 -> 0 | D53: =РегистрОПВ!L52 -> 0 | E53: =SUMIF(РегистрОПВ!B$40:B$52,РегистрСН!B53,РегистрОПВ!T$40:T$52) -> 0 | F53: ='РегистрСО ОСМС'!K53 -> 0 | H53: 0 | I53: =IF(H53=0,0,(IF(H53<Описание!E$16,Описание!E$16*9.5%,(H53*9.5%)))) -> 0 | J53: ='РегистрСО ОСМС'!I53 -> 0 | K53: =IF(I53>J53,I53-J53,0) -> 0
A54: Итого (заполняется по итогу формы) | C54: =C40+C27+C14 -> 4320000 | D54: 348000 | E54: 69600 | G54: 0 | H54: 3902400 | I54: 370728 | J54: 120120 | K54: 250608
A56: _______________________________________________________________________________________
A57: (Ф.И.О., подпись руководителя (налогоплательщика), печать)
A58: _______________________________________________________________________________________
A59: (Ф.И.О., подпись главного бухгалтера)
A60: _______________________________________________________________________________________
A61: (Ф.И.О., подпись лица, ответственного за составление налогового регистра)
A62: __________________________________
A63: (Дата составления налогового регистра)

Sheet ДоговораГПХ
A3: Расчет налогов по договорам ГПХ
A6: № | B6: Ф.И.О. физического лица | C6: ИИН физического лица | D6: Доход физ. лица за отчетный период | E6: Пенсионер (если да, то нужно поставить 1) | F6: Доход физ.лица с которого не удерживаются ОПВ | G6: Доход физ.лица с которого удерживаются ОПВ | H6: Сумма исчисленного ОПВ | I6: Предел в размере 75-кратного МЗП | J6: Сумма ОПВ, с предельной суммы дохода | K6: Сумма начисленных обязательных пенсионных взносов в НПФ | L6: Удельный вес выплаченных доходов к доходам, причитающимся к выплате | M6: Сумма ОПВ в НПФ, подлежащая перечислению за физ.лиц | N6: Сумма задолженности по ОПВ на начало месяца | O6: Сумма задолженности по ОПВ на конец месяца | P6: Корректировка дохода, согласно пункта 1 статьи 341 НК | Q6: Налоговые вычеты, согласно подпункта 2,3 пункта 1 статьи 346 Налогового кодекса | R6: Доходы физ. лица, с которого не исчисляются взносы на ОСМС (п.7 ст.28 Закона "Об ОСМС") | S6: Облагаемый доход физ. лица | T6: ИПН | U6: Задолженность по доходам, невыплаченным физическим лицам на начало периода | V6: Выплачено по договорам ГПХ физ. лицам | W6: Задолженность по доходам, невыплаченным физическим лицам на конец периода | X6: Удельный вес выплаченных доходов к доходам, причитающимся к выплате | Y6: Задолженность по ИПН на начало месяца | Z6: Начислено ИПН за отчетный месяц | AA6: Сумма ИПН, подлежащего перечислению | AB6: Задолженность по ИПН на конец месяца | AC6: Доходы, с которых не удерживаются взносы ОСМС | AD6: Доходы, с которых удерживаются взносы ОСМС | AE6: Максимальный доход для взносов ОСМС | AF6: Доходы, с которых исчисляются взносы на ОСМС | AG6: Взносы ОСМС
B7: ставка | H7: 0.1 | J7: 0.1 | N7: переносится с предыдущего периода | T7: 0.1 | AE7: 10МЗП
B8: 1 месяц квартала | D8: =SUM(D9:D20) -> 0 | G8: 0 | H8: 0 | K8: 0 | M8: 0 | N8: =SUM(N9:N20) -> 0 | O8: =SUM(O9:O20) -> 0 | P8: =SUM(P9:P20) -> 0 | Q8: =SUM(Q9:Q20) -> 0 | R8: 0 | S8: =SUM(S9:S20) -> 0 | T8: 0 | U8: 0 | V8: 0 | W8: 0 | Y8: 0 | Z8: 0 | AA8: =SUM(AA9:AA20) -> 0 | AB8: 0 | AC8: 0 | AD8: 0 | AE8: 8400000 | AF8: 0 | AG8: 0
A9: 1 | B9: Восьмой | G9: =IF(E9=1,0,D9-F9) -> 0 | H9: =G9*H$7 -> 0 | I9: =Описание!E$18 -> 3500000 | J9: =I9*J$7 -> 350000 | K9: =IF(J9<H9,J9,H9) -> 0 | L9: =X9 -> 0 | M9: =IF(РегистрИПН!N15<=0,(N9+K9),(N9+K9)*L9) -> 0 | O9: =N9+K9-M9 -> 0 | S9: =IF((D9-P9-Q9-AG9-K9)<=0,0,(D9-P9-Q9-AG9-K9)) -> 0 | T9: =S9*10% -> 0 | W9: =U9+D9-T9-V9-O9-AG9 -> 0 | X9: =IF(D9=0,0,V9/(U9+D9-K9-T9)) -> 0 | Z9: =T9 -> 0 | AA9: =IF(W9<=0,(Y9+Z9),(Y9+Z9)*X9) -> 0 | AB9: =Y9+Z9-AA9 -> 0 | AD9: =IF(E9=1,0,D9-AC9) -> 0 | AE9: =10*Описание!E$16 -> 700000 | AF9: =IF(AD9<AE9,AD9,AE9) -> 0 | AG9: =AF9*2% -> 0
A10: 2 | G10: 0 | H10: =G10*H$7 -> 0 | I10: =Описание!E$18 -> 3500000 | J10: =I10*J$7 -> 350000 | K10: =IF(J10<H10,J10,H10) -> 0 | L10: =X10 -> 0 | M10: =IF(РегистрИПН!N16<=0,(N10+K10),(N10+K10)*L10) -> 0 | O10: =N10+K10-M10 -> 0 | S10: =IF((D10-P10-Q10-AG10-K10)<0,0,(D10-P10-Q10-AG10-K10)) -> 0 | T10: =S10*10% -> 0 | W10: 0 | X10: 0 | Z10: =T10 -> 0 | AA10: =IF(W10<=0,(Y10+Z10),(Y10+Z10)*X10) -> 0 | AB10: =Y10+Z10-AA10 -> 0 | AD10: 0 | AE10: =10*Описание!E$16 -> 700000 | AF10: =IF(AD10<AE10,AD10,AE10) -> 0 | AG10: =AF10*2% -> 0
A11: 3 | G11: 0 | H11: 0 | I11: =Описание!E$18 -> 3500000 | J11: 350000 | K11: 0 | L11: 0 | M11: =IF(РегистрИПН!N17<=0,(N11+K11),(N11+K11)*L11) -> 0 | O11: 0 | S11: 0 | T11: 0 | W11: 0 | X11: 0 | Z11: 0 | AA11: =IF(W11<=0,(Y11+Z11),(Y11+Z11)*X11) -> 0 | AB11: 0 | AD11: 0 | AE11: =10*Описание!E$16 -> 700000 | AF11: 0 | AG11: =AF11*2% -> 0
A12: 4 | G12: 0 | H12: 0 | I12: =Описание!E$18 -> 3500000 | J12: 350000 | K12: 0 | L12: 0 | M12: =IF(РегистрИПН!N18<=0,(N12+K12),(N12+K12)*L12) -> 0 | O12: 0 | S12: 0 | T12: 0 | W12: 0 | X12: 0 | Z12: 0 | AA12: 0 | AB12: 0 | AD12: 0 | AE12: =10*Описание!E$16 -> 700000 | AF12: 0 | AG12: 0
A13: 5 | G13: 0 | H13: 0 | I13: =Описание!E$18 -> 3500000 | J13: 350000 | K13: 0 | L13: 0 | M13: =IF(РегистрИПН!N19<=0,(N13+K13),(N13+K13)*L13) -> 0 | O13: 0 | S13: 0 | T13: 0 | W13: 0 | X13: 0 | Z13: 0 | AA13: 0 | AB13: 0 | AD13: 0 | AE13: =10*Описание!E$16 -> 700000 | AF13: 0 | AG13: 0
A14: 6 | G14: 0 | H14: 0 | I14: =Описание!E$18 -> 3500000 | J14: 350000 | K14: 0 | L14: 0 | M14: =IF(РегистрИПН!N20<=0,(N14+K14),(N14+K14)*L14) -> 0 | O14: 0 | S14: 0 | T14: 0 | W14: 0 | X14: 0 | Z14: 0 | AA14: 0 | AB14: 0 | AD14: 0 | AE14: =10*Описание!E$16 -> 700000 | AF14: 0 | AG14: 0
A15: 7 | G15: 0 | H15: 0 | I15: =Описание!E$18 -> 3500000 | J15: 350000 | K15: 0 | L15: 0 | M15: =IF(РегистрИПН!N21<=0,(N15+K15),(N15+K15)*L15) -> 0 | O15: 0 | S15: 0 | T15: 0 | W15: 0 | X15: 0 | Z15: 0 | AA15: 0 | AB15: 0 | AD15: 0 | AE15: =10*Описание!E$16 -> 700000 | AF15: 0 | AG15: 0
A16: 8 | G16: 0 | H16: 0 | I16: =Описание!E$18 -> 3500000 | J16: 350000 | K16: 0 | L16: 0 | M16: =IF(РегистрИПН!N22<=0,(N16+K16),(N16+K16)*L16) -> 0 | O16: 0 | S16: 0 | T16: 0 | W16: 0 | X16: 0 | Z16: 0 | AA16: 0 | AB16: 0 | AD16: 0 | AE16: =10*Описание!E$16 -> 700000 | AF16: 0 | AG16: 0
A17: 9 | G17: 0 | H17: 0 | I17: =Описание!E$18 -> 3500000 | J17: 350000 | K17: 0 | L17: 0 | M17: =IF(РегистрИПН!N23<=0,(N17+K17),(N17+K17)*L17) -> 0 | O17: 0 | S17: 0 | T17: 0 | W17: 0 | X17: 0 | Z17: 0 | AA17: 0 | AB17: 0 | AD17: 0 | AE17: =10*Описание!E$16 -> 700000 | AF17: 0 | AG17: 0
A18: 10 | G18: 0 | H18: 0 | I18: =Описание!E$18 -> 3500000 | J18: 350000 | K18: 0 | L18: 0 | M18: =IF(РегистрИПН!N24<=0,(N18+K18),(N18+K18)*L18) -> 0 | O18: 0 | S18: 0 | T18: 0 | W18: 0 | X18: 0 | Z18: 0 | AA18: 0 | AB18: 0 | AD18: 0 | AE18: =10*Описание!E$16 -> 700000 | AF18: 0 | AG18: 0
A19: 11 | G19: 0 | H19: 0 | I19: =Описание!E$18 -> 3500000 | J19: 350000 | K19: 0 | L19: 0 | M19: =IF(РегистрИПН!N25<=0,(N19+K19),(N19+K19)*L19) -> 0 | O19: 0 | S19: 0 | T19: 0 | W19: 0 | X19: 0 | Z19: 0 | AA19: 0 | AB19: 0 | AD19: 0 | AE19: =10*Описание!E$16 -> 700000 | AF19: 0 | AG19: 0
A20: 12 | G20: 0 | H20: 0 | I20: =Описание!E$18 -> 3500000 | J20: 350000 | K20: 0 | L20: 0 | M20: =IF(РегистрИПН!N26<=0,(N20+K20),(N20+K20)*L20) -> 0 | O20: 0 | S20: 0 | T20: 0 | W20: 0 | X20: 0 | Z20: 0 | AA20: 0 | AB20: 0 | AD20: 0 | AE20: =10*Описание!E$16 -> 700000 | AF20: 0 | AG20: =AF20*2% -> 0
B21: 2 месяц квартала | D21: =SUM(D22:D33) -> 250000 | E21: 1 | F21: 0 | G21: 0 | H21: 0 | K21: 0 | M21: 0 | N21: =SUM(N22:N33) -> 0 | O21: =SUM(O22:O33) -> 0 | P21: =SUM(P22:P33) -> 0 | Q21: =SUM(Q22:Q33) -> 0 | R21: 0 | S21: =SUM(S22:S33) -> 250000 | T21: 25000 | U21: 0 | V21: 0 | W21: 225000 | X21: 0 | Y21: 0 | Z21: 25000 | AA21: =SUM(AA22:AA33) -> 0 | AB21: 25000 | AC21: 0 | AD21: 0 | AE21: 8400000 | AF21: 0 | AG21: 0
A22: 1 | B22: Восьмой | D22: 250000 | E22: 1 | G22: 0 | H22: =G22*H$7 -> 0 | I22: =Описание!E$18 -> 3500000 | J22: =I22*J$7 -> 350000 | K22: =IF(J22<H22,J22,H22) -> 0 | L22: =X22 -> 0 | M22: =(C22+K22)*L22 -> 0 | O22: =N22+K22-M22 -> 0 | S22: =IF((D22-P22-Q22-AG22-K22)<0,0,(D22-P22-Q22-AG22-K22)) -> 250000 | T22: =S22*10% -> 25000 | W22: =U22+D22-T22-V22-O22-AG22 -> 225000 | X22: =IF(D22=0,0,V22/(U22+D22-K22-T22)) -> 0 | Z22: 25000 | AA22: =IF(W22<=0,(Y22+Z22),(Y22+Z22)*X22) -> 0 | AB22: =Y22+Z22-AA22 -> 25000 | AD22: =IF(E22=1,0,D22-AC22) -> 0 | AE22: =10*Описание!E$16 -> 700000 | AF22: =IF(AD22<AE22,AD22,AE22) -> 0 | AG22: =AF22*2% -> 0
A23: 2 | G23: 0 | H23: 0 | I23: =Описание!E$18 -> 3500000 | J23: 350000 | K23: 0 | L23: 0 | M23: 0 | O23: =N23+K23-M23 -> 0 | S23: 0 | T23: =S23*10% -> 0 | W23: 0 | X23: 0 | Z23: 0 | AA23: 0 | AB23: =Y23+Z23-AA23 -> 0 | AD23: =IF(E23=1,0,D23-AC23) -> 0 | AE23: =10*Описание!E$16 -> 700000 | AF23: =IF(AD23<AE23,AD23,AE23) -> 0 | AG23: =AF23*2% -> 0
A24: 3 | G24: 0 | H24: 0 | I24: =Описание!E$18 -> 3500000 | J24: 350000 | K24: 0 | L24: 0 | M24: 0 | O24: 0 | S24: 0 | T24: 0 | W24: 0 | X24: 0 | Z24: 0 | AA24: 0 | AB24: 0 | AD24: 0 | AE24: =10*Описание!E$16 -> 700000 | AF24: 0 | AG24: 0
A25: 4 | G25: 0 | H25: 0 | I25: =Описание!E$18 -> 3500000 | J25: 350000 | K25: 0 | L25: 0 | M25: 0 | O25: 0 | S25: 0 | T25: 0 | W25: 0 | X25: 0 | Z25: 0 | AA25: 0 | AB25: 0 | AD25: 0 | AE25: =10*Описание!E$16 -> 700000 | AF25: 0 | AG25: 0
A26: 5 | G26: 0 | H26: 0 | I26: =Описание!E$18 -> 3500000 | J26: 350000 | K26: 0 | L26: 0 | M26: 0 | O26: 0 | S26: 0 | T26: 0 | W26: 0 | X26: 0 | Z26: 0 | AA26: 0 | AB26: 0 | AD26: 0 | AE26: =10*Описание!E$16 -> 700000 | AF26: 0 | AG26: 0
A27: 6 | G27: 0 | H27: 0 | I27: =Описание!E$18 -> 3500000 | J27: 350000 | K27: 0 | L27: 0 | M27: 0 | O27: 0 | S27: 0 | T27: 0 | W27: 0 | X27: 0 | Z27: 0 | AA27: 0 | AB27: 0 | AD27: 0 | AE27: =10*Описание!E$16 -> 700000 | AF27: 0 | AG27: 0
A28: 7 | G28: 0 | H28: 0 | I28: =Описание!E$18 -> 3500000 | J28: 350000 | K28: 0 | L28: 0 | M28: 0 | O28: 0 | S28: 0 | T28: 0 | W28: 0 | X28: 0 | Z28: 0 | AA28: 0 | AB28: 0 | AD28: 0 | AE28: =10*Описание!E$16 -> 700000 | AF28: 0 | AG28: 0
A29: 8 | G29: 0 | H29: 0 | I29: =Описание!E$18 -> 3500000 | J29: 350000 | K29: 0 | L29: 0 | M29: 0 | O29: 0 | S29: 0 | T29: 0 | W29: 0 | X29: 0 | Z29: 0 | AA29: 0 | AB29: 0 | AD29: 0 | AE29: =10*Описание!E$16 -> 700000 | AF29: 0 | AG29: 0
A30: 9 | G30: 0 | H30: 0 | I30: =Описание!E$18 -> 3500000 | J30: 350000 | K30: 0 | L30: 0 | M30: 0 | O30: 0 | S30: 0 | T30: 0 | W30: 0 | X30: 0 | Z30: 0 | AA30: 0 | AB30: 0 | AD30: 0 | AE30: =10*Описание!E$16 -> 700000 | AF30: 0 | AG30: 0
A31: 10 | G31: 0 | H31: 0 | I31: =Описание!E$18 -> 3500000 | J31: 350000 | K31: 0 | L31: 0 | M31: 0 | O31: 0 | S31: 0 | T31: 0 | W31: 0 | X31: 0 | Z31: 0 | AA31: 0 | AB31: 0 | AD31: 0 | AE31: =10*Описание!E$16 -> 700000 | AF31: 0 | AG31: 0
A32: 11 | G32: 0 | H32: 0 | I32: =Описание!E$18 -> 3500000 | J32: 350000 | K32: 0 | L32: 0 | M32: 0 | O32: 0 | S32: 0 | T32: 0 | W32: 0 | X32: 0 | Z32: 0 | AA32: 0 | AB32: 0 | AD32: 0 | AE32: =10*Описание!E$16 -> 700000 | AF32: 0 | AG32: 0
A33: 12 | G33: 0 | H33: 0 | I33: =Описание!E$18 -> 3500000 | J33: 350000 | K33: 0 | L33: 0 | M33: 0 | O33: 0 | S33: 0 | T33: 0 | W33: 0 | X33: 0 | Z33: 0 | AA33: 0 | AB33: 0 | AD33: 0 | AE33: =10*Описание!E$16 -> 700000 | AF33: 0 | AG33: =AF33*2% -> 0
B34: 3 месяц квартала | D34: =SUM(D35:D46) -> 0 | E34: 0 | F34: 0 | G34: 0 | H34: 0 | K34: 0 | M34: 0 | N34: =SUM(N35:N46) -> 0 | O34: =SUM(O35:O46) -> 0 | P34: =SUM(P35:P46) -> 0 | Q34: =SUM(Q35:Q46) -> 0 | R34: 0 | S34: =SUM(S35:S46) -> 0 | T34: 0 | U34: 225000 | V34: 225000 | W34: 0 | X34: 0 | Y34: 25000 | Z34: 0 | AA34: =SUM(AA35:AA46) -> 25000 | AB34: 0 | AC34: 0 | AD34: 0 | AE34: 8400000 | AF34: 0 | AG34: 0
A35: 1 | B35: Восьмой | G35: 0 | H35: =G35*H$7 -> 0 | I35: =Описание!E$18 -> 3500000 | J35: =I35*J$7 -> 350000 | K35: =IF(J35<H35,J35,H35) -> 0 | L35: =X35 -> 0 | M35: 0 | O35: =N35+K35-M35 -> 0 | S35: =IF((D35-P35-Q35-AG35-K35)<0,0,(D35-P35-Q35-AG35-K35)) -> 0 | T35: =S35*10% -> 0 | U35: 225000 | V35: 225000 | W35: =U35+D35-T35-V35-O35-AG35 -> 0 | X35: =IF(D35=0,0,V35/(U35+D35-K35-T35)) -> 0 | Y35: 25000 | Z35: 0 | AA35: =IF(W35<=0,(Y35+Z35),(Y35+Z35)*X35) -> 25000 | AB35: =Y35+Z35-AA35 -> 0 | AD35: =IF(E35=1,0,D35-AC35) -> 0 | AE35: =10*Описание!E$16 -> 700000 | AF35: =IF(AD35<AE35,AD35,AE35) -> 0 | AG35: =AF35*2% -> 0
A36: 2 | G36: 0 | H36: 0 | I36: =Описание!E$18 -> 3500000 | J36: 350000 | K36: 0 | L36: 0 | M36: 0 | O36: 0 | S36: 0 | T36: 0 | W36: 0 | X36: 0 | Z36: 0 | AA36: 0 | AB36: =Y36+Z36-AA36 -> 0 | AD36: 0 | AE36: =10*Описание!E$16 -> 700000 | AF36: =IF(AD36<AE36,AD36,AE36) -> 0 | AG36: =AF36*2% -> 0
A37: 3 | G37: 0 | H37: 0 | I37: =Описание!E$18 -> 3500000 | J37: 350000 | K37: 0 | L37: 0 | M37: 0 | O37: 0 | S37: 0 | T37: 0 | W37: 0 | X37: 0 | Z37: 0 | AA37: 0 | AB37: 0 | AD37: 0 | AE37: =10*Описание!E$16 -> 700000 | AF37: 0 | AG37: =AF37*2% -> 0
A38: 4 | G38: 0 | H38: 0 | I38: =Описание!E$18 -> 3500000 | J38: 350000 | K38: 0 | L38: 0 | M38: 0 | O38: 0 | S38: 0 | T38: 0 | W38: 0 | X38: 0 | Z38: 0 | AA38: 0 | AB38: 0 | AD38: 0 | AE38: =10*Описание!E$16 -> 700000 | AF38: 0 | AG38: 0
A39: 5 | G39: 0 | H39: 0 | I39: =Описание!E$18 -> 3500000 | J39: 350000 | K39: 0 | L39: 0 | M39: 0 | O39: 0 | S39: 0 | T39: 0 | W39: 0 | X39: 0 | Z39: 0 | AA39: 0 | AB39: 0 | AD39: 0 | AE39: =10*Описание!E$16 -> 700000 | AF39: 0 | AG39: 0
A40: 6 | G40: 0 | H40: 0 | I40: =Описание!E$18 -> 3500000 | J40: 350000 | K40: 0 | L40: 0 | M40: 0 | O40: 0 | S40: 0 | T40: 0 | W40: 0 | X40: 0 | Z40: 0 | AA40: 0 | AB40: 0 | AD40: 0 | AE40: =10*Описание!E$16 -> 700000 | AF40: 0 | AG40: 0
A41: 7 | G41: 0 | H41: 0 | I41: =Описание!E$18 -> 3500000 | J41: 350000 | K41: 0 | L41: 0 | M41: 0 | O41: 0 | S41: 0 | T41: 0 | W41: 0 | X41: 0 | Z41: 0 | AA41: 0 | AB41: 0 | AD41: 0 | AE41: =10*Описание!E$16 -> 700000 | AF41: 0 | AG41: 0
A42: 8 | G42: 0 | H42: 0 | I42: =Описание!E$18 -> 3500000 | J42: 350000 | K42: 0 | L42: 0 | M42: 0 | O42: 0 | S42: 0 | T42: 0 | W42: 0 | X42: 0 | Z42: 0 | AA42: 0 | AB42: 0 | AD42: 0 | AE42: =10*Описание!E$16 -> 700000 | AF42: 0 | AG42: 0
A43: 9 | G43: 0 | H43: 0 | I43: =Описание!E$18 -> 3500000 | J43: 350000 | K43: 0 | L43: 0 | M43: 0 | O43: 0 | S43: 0 | T43: 0 | W43: 0 | X43: 0 | Z43: 0 | AA43: 0 | AB43: 0 | AD43: 0 | AE43: =10*Описание!E$16 -> 700000 | AF43: 0 | AG43: 0
A44: 10 | G44: 0 | H44: 0 | I44: =Описание!E$18 -> 3500000 | J44: 350000 | K44: 0 | L44: 0 | M44: 0 | O44: 0 | S44: 0 | T44: 0 | W44: 0 | X44: 0 | Z44: 0 | AA44: 0 | AB44: 0 | AD44: 0 | AE44: =10*Описание!E$16 -> 700000 | AF44: 0 | AG44: 0
A45: 11 | G45: 0 | H45: 0 | I45: =Описание!E$18 -> 3500000 | J45: 350000 | K45: 0 | L45: 0 | M45: 0 | O45: 0 | S45: 0 | T45: 0 | W45: 0 | X45: 0 | Z45: 0 | AA45: 0 | AB45: 0 | AD45: 0 | AE45: =10*Описание!E$16 -> 700000 | AF45: 0 | AG45: 0
A46: 12 | G46: 0 | H46: 0 | I46: =Описание!E$18 -> 3500000 | J46: 350000 | K46: 0 | L46: 0 | M46: 0 | O46: 0 | S46: 0 | T46: 0 | W46: 0 | X46: 0 | Z46: 0 | AA46: 0 | AB46: 0 | AD46: 0 | AE46: =10*Описание!E$16 -> 700000 | AF46: 0 | AG46: 0
A47: Итого (заполняется по итогу формы) | D47: =D34+D21+D8 -> 250000 | E47: =E34+E21+E8 -> 1 | F47: 0 | G47: 0 | H47: 0 | I47: 0 | J47: 0 | K47: 0 | L47: 0 | M47: 0 | N47: =N34+N21+N8 -> 0 | O47: 0 | P47: 0 | Q47: 0 | R47: 0 | S47: 250000 | T47: 25000 | U47: =U8 -> 0 | V47: =V34+V21+V8 -> 225000 | W47: =W34+W21+W8 -> 225000 | X47: 0 | Y47: 25000 | Z47: 25000 | AA47: 25000 | AB47: 25000 | AC47: 0 | AD47: 0 | AE47: 25200000 | AF47: =AF34+AF21+AF7 -> 0 | AG47: 0
A49: ИТОГО по физ. Лицам

Sheet ЕП
A1: 1. | B1: РНН
A2: 2. | B2: ИИН/БИН | C2: ='200.00 200.01'!E10 -> 152152152
B3: (при их наличии)
A4: 3. | B4: Ф.И.О. или наименование налогоплательщика | D4: ='200.00 200.01'!J14 -> ТОО ggggggg
A5: 4. | B5: Налоговый период (квартал) | G5: квартал | H5: ='200.00 200.01'!J12 -> 2 | I5: год | J5: ='200.00 200.01'!M12 -> 2023
B7: Единый платеж
L8: (тенге)
A9: № | B9: Ф.И.О. сотрудника | C9: Должность сотрудника | D9: Доход сотрудника за отчетный период | E9: Пенсионер (если да, то нужно поставить 1) | F9: Доход сотрудника с которого не удерживаются ОПВ | G9: Доход сотрудника с которого удерживаются ОПВ | H9: Сумма исчисленного ОПВ | I9: Предел в размере 75-кратного МЗП | J9: Сумма ОПВ, с предельной суммы дохода | K9: Сумма исчисленных ОПВ в ЕНПФ | L9: Доходы, с которых не удерживаются взносы и отчисления ОСМС | M9: Доходы, с которых удерживаются взносы ОСМС | N9: Максимальный доход для взносов ОСМС | O9: Доходы, с которых исчисляются взносы на ОСМС | P9: Взносы ОСМС | Q9: Отчисления ОСМС | R9: Доходы, с которых не удерживаются СО | S9: Доходы, с которых удерживаются СО | T9: Максимальный доход для СО | U9: Доходы, с которых исчисляются СО | V9: СО | W9: ИПН | X9: ОПВ работодателя, исчисленные | Y9: Единый платеж итого
B10: 1 | C10: 2 | D10: 3 | E10: 4 | F10: 5 | G10: 6 | H10: 7 | I10: 8 | J10: 9 | K10: 10 | L10: 11 | M10: 12 | N10: 13 | O10: 14 | P10: 15 | Q10: 15 | R10: 16 | S10: 17 | T10: 18 | U10: 19 | V10: 20 | W10: 21 | X10: 22 | Y10: 23
G11: гр.3-гр.5 | H11: гр.6х20%х50% | I11: 50хМЗП | J11: гр.8х 10% | K11: наименьшая из гр.7 или гр.9 | M11: гр.3-гр.11 | N11: 10 МЗП | O11: min гр.12/гр.13 | P11: =20%*10% -> 0.02 | Q11: =20%*15% -> 0.03 | S11: гр.3-гр.16 | T11: 7 МЗП | U11: min гр.17/гр.18 | V11: =20%*16% -> 0.032 | W11: =20%*9% -> 0.018 | X11: гр.6*0%
B12: ставки | H12: =20%*50% -> 0.1 | J12: =20%*50% -> 0.1
B13: 1 месяц квартала | D13: =SUM(D14:D25) -> 0 | F13: 0 | G13: 0 | H13: 0 | K13: 0 | L13: 0 | M13: 0 | N13: 8400000 | O13: 0 | P13: 0 | Q13: =SUM(Q14:Q25) -> 0 | R13: 0 | S13: 0 | T13: 5880000 | U13: 0 | V13: 0 | W13: 0 | X13: =SUM(X14:X25) -> 0 | Y13: =SUM(Y14:Y25) -> 0
A14: 1 | B14: Первый | G14: =IF(E14=1,0,D14-F14) -> 0 | H14: =G14*$H$12 -> 0 | I14: =50*Описание!E$16 -> 3500000 | J14: =I14*J$12 -> 350000 | K14: =IF(J14<H14,J14,H14) -> 0 | M14: =IF(E14=1,0,D14-L14) -> 0 | N14: =10*Описание!E$16 -> 700000 | O14: =IF(M14<N14,M14,N14) -> 0 | P14: =O14*P$11 -> 0 | Q14: =O14*Q$11 -> 0 | S14: =IF(E14=1,0,D14-R14) -> 0 | T14: =Описание!$E$20 -> 490000 | U14: =MIN(S14,T14) -> 0 | V14: =U14*V$11 -> 0 | W14: =D14*W$11 -> 0 | X14: =G14*0% -> 0 | Y14: =K14+P14+Q14+V14+W14+X14 -> 0
A15: 2 | B15: Второй | G15: =IF(E15=1,0,D15-F15) -> 0 | H15: =G15*$H$12 -> 0 | I15: =50*Описание!E$16 -> 3500000 | J15: =I15*J$12 -> 350000 | K15: =IF(J15<H15,J15,H15) -> 0 | M15: =IF(E15=1,0,D15-L15) -> 0 | N15: =10*Описание!E$16 -> 700000 | O15: =IF(M15<N15,M15,N15) -> 0 | P15: =O15*P$11 -> 0 | Q15: =O15*Q$11 -> 0 | S15: =IF(E15=1,0,D15-R15) -> 0 | T15: =Описание!$E$20 -> 490000 | U15: =MIN(S15,T15) -> 0 | V15: =U15*V$11 -> 0 | W15: =D15*W$11 -> 0 | X15: 0 | Y15: =K15+P15+Q15+V15+W15+X15 -> 0
A16: 3 | B16: Третий | G16: =IF(E16=1,0,D16-F16) -> 0 | H16: 0 | I16: =50*Описание!E$16 -> 3500000 | J16: =I16*J$12 -> 350000 | K16: 0 | M16: =IF(E16=1,0,D16-L16) -> 0 | N16: =10*Описание!E$16 -> 700000 | O16: 0 | P16: 0 | Q16: 0 | S16: 0 | T16: =Описание!$E$20 -> 490000 | U16: 0 | V16: 0 | W16: 0 | X16: 0 | Y16: 0
A17: 4 | B17: Четвертый | G17: 0 | H17: 0 | I17: =50*Описание!E$16 -> 3500000 | J17: 350000 | K17: 0 | M17: =IF(E17=1,0,D17-L17) -> 0 | N17: =10*Описание!E$16 -> 700000 | O17: 0 | P17: 0 | Q17: 0 | S17: 0 | T17: =Описание!$E$20 -> 490000 | U17: 0 | V17: 0 | W17: 0 | X17: 0 | Y17: 0
A18: 5 | B18: Пятый | G18: =IF(E18=1,0,D18-F18) -> 0 | H18: 0 | I18: =50*Описание!E$16 -> 3500000 | J18: 350000 | K18: 0 | M18: =IF(E18=1,0,D18-L18) -> 0 | N18: =10*Описание!E$16 -> 700000 | O18: 0 | P18: 0 | Q18: 0 | S18: 0 | T18: =Описание!$E$20 -> 490000 | U18: 0 | V18: 0 | W18: 0 | X18: 0 | Y18: 0
A19: 6 | B19: Шестой | G19: 0 | H19: 0 | I19: =50*Описание!E$16 -> 3500000 | J19: 350000 | K19: 0 | M19: =IF(E19=1,0,D19-L19) -> 0 | N19: =10*Описание!E$16 -> 700000 | O19: 0 | P19: 0 | Q19: 0 | S19: 0 | T19: =Описание!$E$20 -> 490000 | U19: 0 | V19: 0 | W19: 0 | X19: 0 | Y19: 0
A20: 7 | G20: =IF(E20=1,0,D20-F20) -> 0 | H20: 0 | I20: =50*Описание!E$16 -> 3500000 | J20: 350000 | K20: 0 | M20: 0 | N20: =10*Описание!E$16 -> 700000 | O20: 0 | P20: 0 | Q20: 0 | S20: 0 | T20: =Описание!$E$20 -> 490000 | U20: 0 | V20: 0 | W20: 0 | X20: 0 | Y20: 0
A21: 8 | G21: 0 | H21: 0 | I21: =50*Описание!E$16 -> 3500000 | J21: 350000 | K21: 0 | M21: 0 | N21: =10*Описание!E$16 -> 700000 | O21: 0 | P21: 0 | Q21: 0 | S21: 0 | T21: =Описание!$E$20 -> 490000 | U21: 0 | V21: 0 | W21: 0 | X21: 0 | Y21: 0
A22: 9 | G22: 0 | H22: 0 | I22: =50*Описание!E$16 -> 3500000 | J22: 350000 | K22: 0 | M22: 0 | N22: =10*Описание!E$16 -> 700000 | O22: 0 | P22: 0 | Q22: 0 | S22: 0 | T22: =Описание!$E$20 -> 490000 | U22: 0 | V22: 0 | W22: 0 | X22: 0 | Y22: 0
A23: 10 | G23: 0 | H23: 0 | I23: =50*Описание!E$16 -> 3500000 | J23: 350000 | K23: 0 | M23: 0 | N23: =10*Описание!E$16 -> 700000 | O23: 0 | P23: 0 | Q23: 0 | S23: 0 | T23: =Описание!$E$20 -> 490000 | U23: 0 | V23: 0 | W23: 0 | X23: 0 | Y23: 0
A24: 11 | G24: 0 | H24: 0 | I24: =50*Описание!E$16 -> 3500000 | J24: 350000 | K24: 0 | M24: 0 | N24: =10*Описание!E$16 -> 700000 | O24: 0 | P24: 0 | Q24: 0 | S24: 0 | T24: =Описание!$E$20 -> 490000 | U24: 0 | V24: 0 | W24: 0 | X24: 0 | Y24: 0
A25: 12 | G25: 0 | H25: 0 | I25: =50*Описание!E$16 -> 3500000 | J25: 350000 | K25: 0 | M25: 0 | N25: =10*Описание!E$16 -> 700000 | O25: 0 | P25: 0 | Q25: 0 | S25: 0 | T25: =Описание!$E$20 -> 490000 | U25: 0 | V25: 0 | W25: 0 | X25: 0 | Y25: 0
B26: 2 месяц квартала | D26: =SUM(D27:D38) -> 0 | F26: 0 | G26: 0 | H26: 0 | K26: 0 | L26: 0 | M26: 0 | N26: 8400000 | O26: 0 | P26: 0 | Q26: =SUM(Q27:Q38) -> 0 | R26: 0 | S26: 0 | T26: 5880000 | U26: 0 | V26: 0 | W26: 0 | X26: =SUM(X27:X38) -> 0 | Y26: =SUM(Y27:Y38) -> 0
A27: 1 | B27: Первый | G27: =IF(E27=1,0,D27-F27) -> 0 | H27: =G27*$H$12 -> 0 | I27: =50*Описание!E$16 -> 3500000 | J27: =I27*J$12 -> 350000 | K27: =IF(J27<H27,J27,H27) -> 0 | M27: =IF(E27=1,0,D27-L27) -> 0 | N27: =10*Описание!E$16 -> 700000 | O27: =IF(M27<N27,M27,N27) -> 0 | P27: =O27*P$11 -> 0 | Q27: =O27*Q$11 -> 0 | S27: =IF(E27=1,0,D27-R27) -> 0 | T27: =Описание!$E$20 -> 490000 | U27: =MIN(S27,T27) -> 0 | V27: =U27*V$11 -> 0 | W27: =D27*W$11 -> 0 | X27: =G27*0% -> 0 | Y27: =K27+P27+Q27+V27+W27+X27 -> 0
A28: 2 | B28: Второй | G28: =IF(E28=1,0,D28-F28) -> 0 | H28: =G28*$H$12 -> 0 | I28: =50*Описание!E$16 -> 3500000 | J28: =I28*J$12 -> 350000 | K28: =IF(J28<H28,J28,H28) -> 0 | M28: 0 | N28: =10*Описание!E$16 -> 700000 | O28: =IF(M28<N28,M28,N28) -> 0 | P28: 0 | Q28: 0 | S28: 0 | T28: =Описание!$E$20 -> 490000 | U28: 0 | V28: 0 | W28: 0 | X28: 0 | Y28: 0
A29: 3 | B29: Третий | G29: =IF(E29=1,0,D29-F29) -> 0 | H29: 0 | I29: =50*Описание!E$16 -> 3500000 | J29: 350000 | K29: =IF(J29<H29,J29,H29) -> 0 | M29: 0 | N29: =10*Описание!E$16 -> 700000 | O29: 0 | P29: 0 | Q29: 0 | S29: 0 | T29: =Описание!$E$20 -> 490000 | U29: 0 | V29: 0 | W29: 0 | X29: 0 | Y29: 0
A30: 4 | B30: Четвертый | G30: 0 | H30: 0 | I30: =50*Описание!E$16 -> 3500000 | J30: 350000 | K30: 0 | M30: 0 | N30: =10*Описание!E$16 -> 700000 | O30: =IF(M30<N30,M30,N30) -> 0 | P30: 0 | Q30: 0 | S30: 0 | T30: =Описание!$E$20 -> 490000 | U30: 0 | V30: 0 | W30: 0 | X30: 0 | Y30: 0
A31: 5 | B31: Пятый | G31: 0 | H31: 0 | I31: =50*Описание!E$16 -> 3500000 | J31: 350000 | K31: 0 | M31: 0 | N31: =10*Описание!E$16 -> 700000 | O31: 0 | P31: 0 | Q31: 0 | S31: 0 | T31: =Описание!$E$20 -> 490000 | U31: 0 | V31: 0 | W31: 0 | X31: 0 | Y31: 0
A32: 6 | B32: Шестой | G32: 0 | H32: =G32*$H$12 -> 0 | I32: =50*Описание!E$16 -> 3500000 | J32: 350000 | K32: 0 | M32: 0 | N32: =10*Описание!E$16 -> 700000 | O32: 0 | P32: 0 | Q32: 0 | S32: 0 | T32: =Описание!$E$20 -> 490000 | U32: 0 | V32: 0 | W32: 0 | X32: 0 | Y32: 0
A33: 7 | G33: 0 | H33: 0 | I33: =50*Описание!E$16 -> 3500000 | J33: 350000 | K33: 0 | M33: 0 | N33: =10*Описание!E$16 -> 700000 | O33: 0 | P33: 0 | Q33: 0 | S33: 0 | T33: =Описание!$E$20 -> 490000 | U33: 0 | V33: 0 | W33: 0 | X33: 0 | Y33: 0
A34: 8 | G34: 0 | H34: 0 | I34: =50*Описание!E$16 -> 3500000 | J34: 350000 | K34: 0 | M34: 0 | N34: =10*Описание!E$16 -> 700000 | O34: 0 | P34: 0 | Q34: 0 | S34: 0 | T34: =Описание!$E$20 -> 490000 | U34: 0 | V34: 0 | W34: 0 | X34: 0 | Y34: 0
A35: 9 | G35: 0 | H35: 0 | I35: =50*Описание!E$16 -> 3500000 | J35: 350000 | K35: 0 | M35: 0 | N35: =10*Описание!E$16 -> 700000 | O35: 0 | P35: 0 | Q35: 0 | S35: 0 | T35: =Описание!$E$20 -> 490000 | U35: 0 | V35: 0 | W35: 0 | X35: 0 | Y35: 0
A36: 10 | G36: 0 | H36: 0 | I36: =50*Описание!E$16 -> 3500000 | J36: 350000 | K36: 0 | M36: 0 | N36: =10*Описание!E$16 -> 700000 | O36: 0 | P36: 0 | Q36: 0 | S36: 0 | T36: =Описание!$E$20 -> 490000 | U36: 0 | V36: 0 | W36: 0 | X36: 0 | Y36: 0
A37: 11 | G37: 0 | H37: 0 | I37: =50*Описание!E$16 -> 3500000 | J37: 350000 | K37: 0 | M37: 0 | N37: =10*Описание!E$16 -> 700000 | O37: 0 | P37: 0 | Q37: 0 | S37: 0 | T37: =Описание!$E$20 -> 490000 | U37: 0 | V37: 0 | W37: 0 | X37: 0 | Y37: 0
A38: 12 | G38: 0 | H38: 0 | I38: =50*Описание!E$16 -> 3500000 | J38: 350000 | K38: 0 | M38: 0 | N38: =10*Описание!E$16 -> 700000 | O38: 0 | P38: 0 | Q38: 0 | S38: 0 | T38: =Описание!$E$20 -> 490000 | U38: 0 | V38: 0 | W38: 0 | X38: 0 | Y38: 0
B39: 3 месяц квартала | D39: =SUM(D40:D52) -> 0 | F39: 0 | G39: 0 | H39: 0 | K39: 0 | L39: 0 | M39: =SUM(M40:M52) -> 0 | N39: =SUM(N40:N52) -> 9100000 | O39: =SUM(O40:O52) -> 0 | P39: 0 | Q39: =SUM(Q40:Q52) -> 0 | R39: 0 | S39: 0 | T39: 6370000 | U39: 0 | V39: 0 | W39: 0 | X39: =SUM(X40:X52) -> 0 | Y39: =SUM(Y40:Y52) -> 0
A40: 1 | B40: Первый | G40: =IF(E40=1,0,D40-F40) -> 0 | H40: =G40*$H$12 -> 0 | I40: =50*Описание!E$16 -> 3500000 | J40: =I40*J$12 -> 350000 | K40: 0 | M40: =IF(E40=1,0,D40-L40) -> 0 | N40: =10*Описание!E$16 -> 700000 | O40: =IF(M40<N40,M40,N40) -> 0 | P40: =O40*P$11 -> 0 | Q40: =O40*Q$11 -> 0 | S40: =IF(E40=1,0,D40-R40) -> 0 | T40: =Описание!$E$20 -> 490000 | U40: =MIN(S40,T40) -> 0 | V40: =U40*V$11 -> 0 | W40: =D40*W$11 -> 0 | X40: =G40*0% -> 0 | Y40: =K40+P40+Q40+V40+W40+X40 -> 0
A41: 2 | B41: Второй | G41: =IF(E41=1,0,D41-F41) -> 0 | H41: =G41*$H$12 -> 0 | I41: =50*Описание!E$16 -> 3500000 | J41: =I41*J$12 -> 350000 | K41: =IF(J41<H41,J41,H41) -> 0 | M41: 0 | N41: =10*Описание!E$16 -> 700000 | O41: =IF(M41<N41,M41,N41) -> 0 | P41: 0 | Q41: 0 | S41: 0 | T41: =Описание!$E$20 -> 490000 | U41: 0 | V41: 0 | W41: 0 | X41: 0 | Y41: 0
A42: 3 | B42: Третий | G42: =IF(E42=1,0,D42-F42) -> 0 | H42: 0 | I42: =50*Описание!E$16 -> 3500000 | J42: 350000 | K42: 0 | M42: 0 | N42: =10*Описание!E$16 -> 700000 | O42: =IF(M42<N42,M42,N42) -> 0 | P42: 0 | Q42: 0 | S42: 0 | T42: =Описание!$E$20 -> 490000 | U42: 0 | V42: 0 | W42: 0 | X42: 0 | Y42: 0
A43: 4 | B43: Четвертый | G43: 0 | H43: 0 | I43: =50*Описание!E$16 -> 3500000 | J43: 350000 | K43: 0 | M43: 0 | N43: =10*Описание!E$16 -> 700000 | O43: 0 | P43: 0 | Q43: 0 | S43: 0 | T43: =Описание!$E$20 -> 490000 | U43: 0 | V43: 0 | W43: 0 | X43: 0 | Y43: 0
A44: 5 | B44: Пятый | G44: 0 | H44: 0 | I44: =50*Описание!E$16 -> 3500000 | J44: 350000 | K44: 0 | M44: 0 | N44: =10*Описание!E$16 -> 700000 | O44: 0 | P44: 0 | Q44: 0 | S44: 0 | T44: =Описание!$E$20 -> 490000 | U44: 0 | V44: 0 | W44: 0 | X44: 0 | Y44: 0
A45: 6 | B45: Шестой | G45: 0 | H45: 0 | I45: =50*Описание!E$16 -> 3500000 | J45: 350000 | K45: 0 | M45: 0 | N45: =10*Описание!E$16 -> 700000 | O45: 0 | P45: 0 | Q45: 0 | S45: 0 | T45: =Описание!$E$20 -> 490000 | U45: 0 | V45: 0 | W45: 0 | X45: 0 | Y45: 0
A46: 7 | G46: 0 | H46: 0 | I46: =50*Описание!E$16 -> 3500000 | J46: 350000 | K46: 0 | M46: 0 | N46: =10*Описание!E$16 -> 700000 | O46: 0 | P46: 0 | Q46: 0 | S46: 0 | T46: =Описание!$E$20 -> 490000 | U46: 0 | V46: 0 | W46: 0 | X46: 0 | Y46: 0
A47: 8 | G47: 0 | H47: 0 | I47: =50*Описание!E$16 -> 3500000 | J47: 350000 | K47: 0 | M47: 0 | N47: =10*Описание!E$16 -> 700000 | O47: 0 | P47: 0 | Q47: 0 | S47: 0 | T47: =Описание!$E$20 -> 490000 | U47: 0 | V47: 0 | W47: 0 | X47: 0 | Y47: 0
A48: 9 | G48: 0 | H48: 0 | I48: =50*Описание!E$16 -> 3500000 | J48: 350000 | K48: 0 | M48: 0 | N48: =10*Описание!E$16 -> 700000 | O48: 0 | P48: 0 | Q48: 0 | S48: 0 | T48: =Описание!$E$20 -> 490000 | U48: 0 | V48: 0 | W48: 0 | X48: 0 | Y48: 0
A49: 10 | G49: 0 | H49: 0 | I49: =50*Описание!E$16 -> 3500000 | J49: 350000 | K49: 0 | M49: 0 | N49: =10*Описание!E$16 -> 700000 | O49: 0 | P49: 0 | Q49: 0 | S49: 0 | T49: =Описание!$E$20 -> 490000 | U49: 0 | V49: 0 | W49: 0 | X49: 0 | Y49: 0
A50: 11 | G50: 0 | H50: 0 | I50: =50*Описание!E$16 -> 3500000 | J50: 350000 | K50: 0 | M50: 0 | N50: =10*Описание!E$16 -> 700000 | O50: 0 | P50: 0 | Q50: 0 | S50: 0 | T50: =Описание!$E$20 -> 490000 | U50: 0 | V50: 0 | W50: 0 | X50: 0 | Y50: 0
A51: 12 | G51: 0 | H51: 0 | I51: =50*Описание!E$16 -> 3500000 | J51: 350000 | K51: 0 | M51: 0 | N51: =10*Описание!E$16 -> 700000 | O51: 0 | P51: 0 | Q51: 0 | S51: 0 | T51: =Описание!$E$20 -> 490000 | U51: 0 | V51: 0 | W51: 0 | X51: 0 | Y51: 0
A52: 13 | G52: 0 | H52: 0 | I52: =50*Описание!E$16 -> 3500000 | J52: 350000 | K52: 0 | M52: 0 | N52: =10*Описание!E$16 -> 700000 | O52: =IF(M52<N52,M52,N52) -> 0 | P52: 0 | Q52: 0 | S52: 0 | T52: =Описание!$E$20 -> 490000 | U52: 0 | V52: 0 | W52: 0 | X52: 0 | Y52: 0
B53: Итого(строка заполняется по итогам квартала) | D53: =D39+D26+D13 -> 0 | F53: 0 | G53: 0 | H53: 0 | I53: 0 | J53: 0 | K53: 0 | L53: =L39 -> 0 | M53: =M39+M26+M13 -> 0 | N53: =N39+N26+N13 -> 25900000 | O53: =O39+O26+O13 -> 0 | P53: =P39+P26+P13 -> 0 | Q53: =Q39+Q26+Q13 -> 0 | R53: =R39+R26+R13 -> 0 | S53: 0 | T53: 18130000 | U53: 0 | V53: 0 | W53: 0 | X53: =X39+X26+X13 -> 0 | Y53: =Y39+Y26+Y13 -> 0
A56: _______________________________________________________________________________________
A57: (Ф.И.О., подпись руководителя (налогоплательщика), печать)
A58: _______________________________________________________________________________________
A59: (Ф.И.О., подпись главного бухгалтера)
A60: _______________________________________________________________________________________
A61: (Ф.И.О., подпись лица, ответственного за составление налогового регистра)
A62: __________________________________
A63: (Дата составления налогового регистра)
A65: Итого за квартал

Sheet 200.06
A1: № | B1: Ф.И.О. физ. лица | C1: ИИН физ. лица | D1: категория физического лица | E1: Начислено доходов | F1: Единый платеж исчисленный с начисленных доходов | G1: ИПН подлежащий уплате в бюджет | H1: Сумма ОПВ подлежащих перечислению | I1: Сумма ВОСМС подлежащих перечислению | J1: Сумма СО | K1: Сумма ООСМС | L1: Сумма ОПВ работодателя | M1: Сумма единого платежа, подлежащего перечислению | N1: Код страны гражданства | O1: Является физ.лицом структурного подразделения
A2: A | B2: B | C2: C | D2: D | E2: E | F2: F | G2: G | H2: H | I2: I | J2: J | K2: K | L2: L | M2: M | N2: N | O2: O
A3: работники
A4: 2 | B4: Первый | E4: =SUMIF(ЕП!B13:B53,B4,ЕП!D13:D53) -> 0 | F4: =SUMIF(ЕП!B13:B53,B4,ЕП!Y13:Y53) -> 0 | G4: =SUMIF(ЕП!B13:B53,B4,ЕП!W13:W53) -> 0 | H4: =SUMIF(ЕП!B13:B53,B4,ЕП!K13:K53) -> 0 | I4: =SUMIF(ЕП!B13:B53,B4,ЕП!P13:P53) -> 0 | J4: =SUMIF(ЕП!B13:B53,B4,ЕП!V13:V53) -> 0 | K4: =SUMIF(ЕП!B13:B53,B4,ЕП!Q13:Q53) -> 0 | L4: =SUMIF(ЕП!B13:B53,B4,ЕП!X13:X53) -> 0 | M4: =SUM(G4:L4) -> 0
A5: 3 | B5: Второй | E5: =SUMIF(ЕП!B14:B54,B5,ЕП!D14:D54) -> 0 | F5: =SUMIF(ЕП!B14:B54,B5,ЕП!Y14:Y54) -> 0 | G5: =SUMIF(ЕП!B14:B54,B5,ЕП!W14:W54) -> 0 | H5: =SUMIF(ЕП!B14:B54,B5,ЕП!K14:K54) -> 0 | I5: =SUMIF(ЕП!B14:B54,B5,ЕП!P14:P54) -> 0 | J5: =SUMIF(ЕП!B14:B54,B5,ЕП!V14:V54) -> 0 | K5: =SUMIF(ЕП!B14:B54,B5,ЕП!Q14:Q54) -> 0 | L5: =SUMIF(ЕП!B14:B54,B5,ЕП!X14:X54) -> 0 | M5: =SUM(G5:L5) -> 0
A6: 4 | B6: Третий | E6: =SUMIF(ЕП!B15:B55,B6,ЕП!D15:D55) -> 0 | F6: =SUMIF(ЕП!B15:B55,B6,ЕП!Y15:Y55) -> 0 | G6: =SUMIF(ЕП!B15:B55,B6,ЕП!W15:W55) -> 0 | H6: =SUMIF(ЕП!B15:B55,B6,ЕП!K15:K55) -> 0 | I6: =SUMIF(ЕП!B15:B55,B6,ЕП!P15:P55) -> 0 | J6: =SUMIF(ЕП!B15:B55,B6,ЕП!V15:V55) -> 0 | K6: =SUMIF(ЕП!B15:B55,B6,ЕП!Q15:Q55) -> 0 | L6: =SUMIF(ЕП!B15:B55,B6,ЕП!X15:X55) -> 0 | M6: 0
A7: 5 | B7: Четвертый | E7: =SUMIF(ЕП!B16:B56,B7,ЕП!D16:D56) -> 0 | F7: =SUMIF(ЕП!B16:B56,B7,ЕП!Y16:Y56) -> 0 | G7: =SUMIF(ЕП!B16:B56,B7,ЕП!W16:W56) -> 0 | H7: =SUMIF(ЕП!B16:B56,B7,ЕП!K16:K56) -> 0 | I7: =SUMIF(ЕП!B16:B56,B7,ЕП!P16:P56) -> 0 | J7: =SUMIF(ЕП!B16:B56,B7,ЕП!V16:V56) -> 0 | K7: =SUMIF(ЕП!B16:B56,B7,ЕП!Q16:Q56) -> 0 | L7: =SUMIF(ЕП!B16:B56,B7,ЕП!X16:X56) -> 0 | M7: 0
A8: 6 | B8: Пятый | E8: =SUMIF(ЕП!B17:B57,B8,ЕП!D17:D57) -> 0 | F8: =SUMIF(ЕП!B17:B57,B8,ЕП!Y17:Y57) -> 0 | G8: =SUMIF(ЕП!B17:B57,B8,ЕП!W17:W57) -> 0 | H8: =SUMIF(ЕП!B17:B57,B8,ЕП!K17:K57) -> 0 | I8: =SUMIF(ЕП!B17:B57,B8,ЕП!P17:P57) -> 0 | J8: =SUMIF(ЕП!B17:B57,B8,ЕП!V17:V57) -> 0 | K8: =SUMIF(ЕП!B17:B57,B8,ЕП!Q17:Q57) -> 0 | L8: =SUMIF(ЕП!B17:B57,B8,ЕП!X17:X57) -> 0 | M8: 0
A9: 7 | B9: Шестой | E9: =SUMIF(ЕП!B18:B58,B9,ЕП!D18:D58) -> 0 | F9: =SUMIF(ЕП!B18:B58,B9,ЕП!Y18:Y58) -> 0 | G9: =SUMIF(ЕП!B18:B58,B9,ЕП!W18:W58) -> 0 | H9: =SUMIF(ЕП!B18:B58,B9,ЕП!K18:K58) -> 0 | I9: =SUMIF(ЕП!B18:B58,B9,ЕП!P18:P58) -> 0 | J9: =SUMIF(ЕП!B18:B58,B9,ЕП!V18:V58) -> 0 | K9: =SUMIF(ЕП!B18:B58,B9,ЕП!Q18:Q58) -> 0 | L9: =SUMIF(ЕП!B18:B58,B9,ЕП!X18:X58) -> 0 | M9: 0
A10: 8 | E10: =SUMIF(ЕП!B19:B59,B10,ЕП!D19:D59) -> 0 | F10: =SUMIF(ЕП!B19:B59,B10,ЕП!Y19:Y59) -> 0 | G10: =SUMIF(ЕП!B19:B59,B10,ЕП!W19:W59) -> 0 | H10: =SUMIF(ЕП!B19:B59,B10,ЕП!K19:K59) -> 0 | I10: =SUMIF(ЕП!B19:B59,B10,ЕП!P19:P59) -> 0 | J10: =SUMIF(ЕП!B19:B59,B10,ЕП!V19:V59) -> 0 | K10: =SUMIF(ЕП!B19:B59,B10,ЕП!Q19:Q59) -> 0 | L10: =SUMIF(ЕП!B19:B59,B10,ЕП!X19:X59) -> 0 | M10: 0
A11: 9 | E11: =SUMIF(ЕП!B20:B60,B11,ЕП!D20:D60) -> 0 | F11: =SUMIF(ЕП!B20:B60,B11,ЕП!Y20:Y60) -> 0 | G11: =SUMIF(ЕП!B20:B60,B11,ЕП!W20:W60) -> 0 | H11: =SUMIF(ЕП!B20:B60,B11,ЕП!K20:K60) -> 0 | I11: =SUMIF(ЕП!B20:B60,B11,ЕП!P20:P60) -> 0 | J11: =SUMIF(ЕП!B20:B60,B11,ЕП!V20:V60) -> 0 | K11: =SUMIF(ЕП!B20:B60,B11,ЕП!Q20:Q60) -> 0 | L11: =SUMIF(ЕП!B20:B60,B11,ЕП!X20:X60) -> 0 | M11: 0
A12: 10 | E12: =SUMIF(ЕП!B21:B61,B12,ЕП!D21:D61) -> 0 | F12: =SUMIF(ЕП!B21:B61,B12,ЕП!Y21:Y61) -> 0 | G12: =SUMIF(ЕП!B21:B61,B12,ЕП!W21:W61) -> 0 | H12: =SUMIF(ЕП!B21:B61,B12,ЕП!K21:K61) -> 0 | I12: =SUMIF(ЕП!B21:B61,B12,ЕП!P21:P61) -> 0 | J12: =SUMIF(ЕП!B21:B61,B12,ЕП!V21:V61) -> 0 | K12: =SUMIF(ЕП!B21:B61,B12,ЕП!Q21:Q61) -> 0 | L12: =SUMIF(ЕП!B21:B61,B12,ЕП!X21:X61) -> 0 | M12: 0
A13: 11 | E13: =SUMIF(ЕП!B22:B62,B13,ЕП!D22:D62) -> 0 | F13: =SUMIF(ЕП!B22:B62,B13,ЕП!Y22:Y62) -> 0 | G13: =SUMIF(ЕП!B22:B62,B13,ЕП!W22:W62) -> 0 | H13: =SUMIF(ЕП!B22:B62,B13,ЕП!K22:K62) -> 0 | I13: =SUMIF(ЕП!B22:B62,B13,ЕП!P22:P62) -> 0 | J13: =SUMIF(ЕП!B22:B62,B13,ЕП!V22:V62) -> 0 | K13: =SUMIF(ЕП!B22:B62,B13,ЕП!Q22:Q62) -> 0 | L13: =SUMIF(ЕП!B22:B62,B13,ЕП!X22:X62) -> 0 | M13: 0
A14: 12 | E14: =SUMIF(ЕП!B23:B63,B14,ЕП!D23:D63) -> 0 | F14: =SUMIF(ЕП!B23:B63,B14,ЕП!Y23:Y63) -> 0 | G14: =SUMIF(ЕП!B23:B63,B14,ЕП!W23:W63) -> 0 | H14: =SUMIF(ЕП!B23:B63,B14,ЕП!K23:K63) -> 0 | I14: =SUMIF(ЕП!B23:B63,B14,ЕП!P23:P63) -> 0 | J14: =SUMIF(ЕП!B23:B63,B14,ЕП!V23:V63) -> 0 | K14: =SUMIF(ЕП!B23:B63,B14,ЕП!Q23:Q63) -> 0 | L14: =SUMIF(ЕП!B23:B63,B14,ЕП!X23:X63) -> 0 | M14: 0
A15: 13 | E15: =SUMIF(ЕП!B24:B64,B15,ЕП!D24:D64) -> 0 | F15: =SUMIF(ЕП!B24:B64,B15,ЕП!Y24:Y64) -> 0 | G15: =SUMIF(ЕП!B24:B64,B15,ЕП!W24:W64) -> 0 | H15: =SUMIF(ЕП!B24:B64,B15,ЕП!K24:K64) -> 0 | I15: =SUMIF(ЕП!B24:B64,B15,ЕП!P24:P64) -> 0 | J15: =SUMIF(ЕП!B24:B64,B15,ЕП!V24:V64) -> 0 | K15: =SUMIF(ЕП!B24:B64,B15,ЕП!Q24:Q64) -> 0 | L15: =SUMIF(ЕП!B24:B64,B15,ЕП!X24:X64) -> 0 | M15: 0
B16: итого | E16: =SUM(E4:E15) -> 0 | F16: 0 | G16: 0 | H16: 0 | I16: 0 | J16: 0 | K16: 0 | L16: 0 | M16: 0
B20: Категория физ.лица:
B21: 1-пенсионер
B22: 2-инвалид
B23: 3-лицо, приравненное к участникам Великой Отечественной войны
B24: 4-родитель, опекун, попечитель ребенка-инвалида, не достигшего восемнадцатилетнего возраста, или лица, признанного инвалидом по причине «инвалид с детства»;
B25: 5-усыновитель (удочеритель) ребенка, не достигшего восемнадцатилетнего возраста
B26: 6-приемный родитель, принявший детей-сирот и детей, оставшихся без попечения родителей, в приемную семью.
